Workbook

Sheet A1.1 Distributor Information
C3: ="Name of LDC: " &D21 -> Name of LDC: EPCOR Natural Gas Limited Partnership
C4: ="OEB Application Number: " & D23 -> OEB Application Number: EB-2018-0235 Exhibit C - 2018 IRM Application Amended October 24, 2018
C11: Distributor Information
C21: Distributor Name | D21: EPCOR Natural Gas Limited Partnership
C23: OEB Application Number | D23: EB-2018-0235 Exhibit C - 2018 IRM Application Amended October 24, 2018
C29: =MID(CELL("filename",A1),FIND("]",CELL("filename",A1))+1,255) -> A1.1 Distributor Information

Sheet B1.1 Current Distribution Rates
C2: ='A1.1 Distributor Information'!C3 -> Name of LDC: EPCOR Natural Gas Limited Partnership
C3: ='A1.1 Distributor Information'!C4 -> OEB Application Number: EB-2018-0235 Exhibit C - 2018 IRM Application Amended October 24, 2018
C10: Current Distribution Tariff Sheet Rates
C15: Rate Group | E15: Monthly Service Charge | F15: Delivery First 1,000 m3 | G15: Delivery Over 1,000 m3 | H15: Delivery Next 24,000 m3 | I15: Delivery Over 25,000 m3 | J15: Delivery - Firm | K15: Demand - Firm | L15: Commodity | M15: Delivery - Int - Lower | N15: Delivery - Int - Upper
C16: RATE 1 - General Service Rate - Residential | E16: 13.5 | F16: 17.03855739 | G16: 11.26179882 | L16: 0.0363
C17: RATE 1 - General Service Rate - Commercial | E17: 13.5 | F17: 17.03855739 | G17: 11.26179882 | L17: 0.0363
C18: RATE 1 - General Service Rate - Industrial | E18: 13.5 | F18: 17.03855739 | G18: 11.26179882 | L18: 0.0363
C19: RATE 2 - Seasonal Service - Apr to Oct | E19: 15 | F19: 17.27153179 | H19: 9.4826 | I19: 6.1698 | L19: 0.0363
C20: RATE 2 - Seasonal Service - Nov to Mar | E20: 15 | F20: 21.77052281 | H20: 15.696 | I20: 15.2899 | L20: 0.0363
C21: RATE 3 - Special Large Volume Contract Rate | E21: 150 | J21: 4.328556086 | K21: 29.0974 | L21: 0.0363 | M21: 7.9412 | N21: 10.9612
C22: RATE 4 - General Service Peaking - Apr to Dec | E22: 15 | F22: 17.08364526 | G22: 10.5218 | L22: 0.0363
C23: RATE 4 - General Service Peaking - Jan to Mar | E23: 15 | F23: 21.79407299 | G23: 16.9052 | L23: 0.0363
C24: RATE 5 - Interruptible Peaking Contract Rate | E24: 150 | J24: 7.474818607 | K24: 1 | L24: 0.0363 | M24: 5.4612 | N24: 8.4612
C25: RATE 6 - Integrated Grain Processors Co-Operative Aylmer Ethanol Production Facility | E25: 150 | J25: 4.0150037 | K25: 19.4468584 | M25: 7.9412 | N25: 10.9612
C27: 1 Placeholder rate for average application
C34: =MID(CELL("filename",A1),FIND("]",CELL("filename",A1))+1,255) -> B1.1 Current Distribution Rates

Sheet B1.2 Billing Determinants
C2: ='A1.1 Distributor Information'!C3 -> Name of LDC: EPCOR Natural Gas Limited Partnership
C3: ='A1.1 Distributor Information'!C4 -> OEB Application Number: EB-2018-0235 Exhibit C - 2018 IRM Application Amended October 24, 2018
C10: Billing Determinants - Actuals October 1, 2016 to September 30, 2017
C15: Rate Group | E15: Monthly Service Charge | F15: Delivery First 1,000 m3 | G15: Delivery Over 1,000 m3 | H15: Delivery Next 24,000 m3 | I15: Delivery Over 25,000 m3 | J15: Delivery - Firm | K15: Demand - Firm | L15: Commodity | M15: Delivery - Int - Lower | N15: Delivery - Int - Upper
C16: RATE 1 - General Service Rate - Residential | E16: 8148 | F16: =L16-SUM(G16:K16) -> 13875993.48 | G16: =L16*(733800/13103581) -> 823151.5187 | L16: 14699145
C17: RATE 1 - General Service Rate - Commercial | E17: 462 | F17: =L17-SUM(G17:K17) -> 1843267.552 | G17: =L17*(2371550/4131750) -> 2483468.448 | L17: 4326736
C18: RATE 1 - General Service Rate - Industrial | E18: 66 | F18: =L18-SUM(G18:K18) -> 338676.8268 | G18: =$L18*(466928/598028) -> 1206237.173 | L18: 1544914
C19: RATE 2 - Seasonal Service - Apr to Oct | E19: 53 | F19: =L19-SUM(G19:K19) -> 383293.9313 | H19: =$L19*(329621/453400) -> 1020704.069 | I19: 0 | L19: 1403998
C20: RATE 2 - Seasonal Service - Nov to Mar | E20: 53 | F20: =L20-SUM(G20:K20) -> 5767.236393 | H20: =$L20*(43772/49460) -> 44381.76361 | I20: 0 | L20: 50149
C21: RATE 3 - Special Large Volume Contract Rate | E21: 5 | J21: 1485572 | K21: 224723 | L21: =J21 -> 1485572
C22: RATE 4 - General Service Peaking - Apr to Dec | E22: 36 | F22: =L22-SUM(G22:K22) -> 231194.9451 | G22: =$L22*(221214/436924) -> 237094.0549 | L22: 468289
C23: RATE 4 - General Service Peaking - Jan to Mar | E23: 36 | F23: =L23-SUM(G23:K23) -> 112019.6249 | G23: =$L23*(12970/17338) -> 332622.3751 | L23: 444642
C24: RATE 5 - Interruptible Peaking Contract Rate | E24: 4 | J24: 553894 | L24: =J24 -> 553894
C25: RATE 6 - Integrated Grain Processors Co-Operative Aylmer Ethanol Production Facility | E25: 1 | J25: 38423518 | K25: 1606140
E26: =SUM(E16:E19,E21:E22,E24:E25) -> 8775 | F26: =SUM(F16:F25) -> 16790213.6 | G26: 5082573.57 | H26: 1065085.832 | I26: 0 | J26: 40462984 | K26: 1830863 | L26: 24977339 | M26: =SUM(M16:M25) -> 0 | N26: =SUM(N16:N25) -> 0
C30: =MID(CELL("filename",A1),FIND("]",CELL("filename",A1))+1,255) -> B1.2 Billing Determinants

Sheet B1.3 Current Rev From Rates
C2: ='A1.1 Distributor Information'!C3 -> Name of LDC: EPCOR Natural Gas Limited Partnership
C3: ='A1.1 Distributor Information'!C4 -> OEB Application Number: EB-2018-0235 Exhibit C - 2018 IRM Application Amended October 24, 2018
C10: Revenue from Current Rates
C15: Rate Group | E15: Monthly Service Charge | F15: Delivery First 1,000 m3 | G15: Delivery Over 1,000 m3 | H15: Delivery Next 24,000 m3 | I15: Delivery Over 25,000 m3 | J15: Demand - Firm | K15: Delivery - Firm | L15: Commodity | M15: Delivery - Int - Lower | N15: Delivery - Int - Upper | O15: Total
C16: RATE 1 - General Service Rate - Residential | E16: ='B1.1 Current Distribution Rates'!E16*'B1.2 Billing Determinants'!E16*12 -> 1319976 | F16: ='B1.1 Current Distribution Rates'!F16*'B1.2 Billing Determinants'!F16/100 -> 2364269.112 | G16: ='B1.1 Current Distribution Rates'!G16*'B1.2 Billing Determinants'!G16/100 -> 92701.66806 | H16: ='B1.1 Current Distribution Rates'!H16*'B1.2 Billing Determinants'!H16/100 -> 0 | I16: ='B1.1 Current Distribution Rates'!I16*'B1.2 Billing Determinants'!I16/100 -> 0 | J16: ='B1.1 Current Distribution Rates'!J16*'B1.2 Billing Determinants'!J16/100 -> 0 | K16: ='B1.1 Current Distribution Rates'!K16*'B1.2 Billing Determinants'!K16/100 -> 0 | L16: ='B1.1 Current Distribution Rates'!L16*'B1.2 Billing Determinants'!L16/100 -> 5335.789635 | M16: ='B1.1 Current Distribution Rates'!M16*'B1.2 Billing Determinants'!M16/100 -> 0 | N16: ='B1.1 Current Distribution Rates'!N16*'B1.2 Billing Determinants'!N16/100 -> 0 | O16: =SUM(E16:N16) -> 3782282.57
C17: RATE 1 - General Service Rate - Commercial | E17: ='B1.1 Current Distribution Rates'!E17*'B1.2 Billing Determinants'!E17*12 -> 74844 | F17: ='B1.1 Current Distribution Rates'!F17*'B1.2 Billing Determinants'!F17/100 -> 314066.1996 | G17: ='B1.1 Current Distribution Rates'!G17*'B1.2 Billing Determinants'!G17/100 -> 279683.2205 | H17: ='B1.1 Current Distribution Rates'!H17*'B1.2 Billing Determinants'!H17/100 -> 0 | I17: ='B1.1 Current Distribution Rates'!I17*'B1.2 Billing Determinants'!I17/100 -> 0 | J17: ='B1.1 Current Distribution Rates'!J17*'B1.2 Billing Determinants'!J17/100 -> 0 | K17: ='B1.1 Current Distribution Rates'!K17*'B1.2 Billing Determinants'!K17/100 -> 0 | L17: ='B1.1 Current Distribution Rates'!L17*'B1.2 Billing Determinants'!L17/100 -> 1570.605168 | M17: ='B1.1 Current Distribution Rates'!M17*'B1.2 Billing Determinants'!M17/100 -> 0 | N17: ='B1.1 Current Distribution Rates'!N17*'B1.2 Billing Determinants'!N17/100 -> 0 | O17: =SUM(E17:N17) -> 670164.0253
C18: RATE 1 - General Service Rate - Industrial | E18: ='B1.1 Current Distribution Rates'!E18*'B1.2 Billing Determinants'!E18*12 -> 10692 | F18: ='B1.1 Current Distribution Rates'!F18*'B1.2 Billing Determinants'!F18/100 -> 57705.64549 | G18: ='B1.1 Current Distribution Rates'!G18*'B1.2 Billing Determinants'!G18/100 -> 135844.0038 | H18: ='B1.1 Current Distribution Rates'!H18*'B1.2 Billing Determinants'!H18/100 -> 0 | I18: ='B1.1 Current Distribution Rates'!I18*'B1.2 Billing Determinants'!I18/100 -> 0 | J18: ='B1.1 Current Distribution Rates'!J18*'B1.2 Billing Determinants'!J18/100 -> 0 | K18: ='B1.1 Current Distribution Rates'!K18*'B1.2 Billing Determinants'!K18/100 -> 0 | L18: ='B1.1 Current Distribution Rates'!L18*'B1.2 Billing Determinants'!L18/100 -> 560.803782 | M18: ='B1.1 Current Distribution Rates'!M18*'B1.2 Billing Determinants'!M18/100 -> 0 | N18: ='B1.1 Current Distribution Rates'!N18*'B1.2 Billing Determinants'!N18/100 -> 0 | O18: 204802.4531
C19: RATE 2 - Seasonal Service - Apr to Oct | E19: ='B1.1 Current Distribution Rates'!E19*'B1.2 Billing Determinants'!E19*7 -> 5565 | F19: ='B1.1 Current Distribution Rates'!F19*'B1.2 Billing Determinants'!F19/100 -> 66200.73317 | G19: ='B1.1 Current Distribution Rates'!G19*'B1.2 Billing Determinants'!G19/100 -> 0 | H19: ='B1.1 Current Distribution Rates'!H19*'B1.2 Billing Determinants'!H19/100 -> 96789.28402 | I19: ='B1.1 Current Distribution Rates'!I19*'B1.2 Billing Determinants'!I19/100 -> 0 | J19: ='B1.1 Current Distribution Rates'!J19*'B1.2 Billing Determinants'!J19/100 -> 0 | K19: ='B1.1 Current Distribution Rates'!K19*'B1.2 Billing Determinants'!K19/100 -> 0 | L19: ='B1.1 Current Distribution Rates'!L19*'B1.2 Billing Determinants'!L19/100 -> 509.651274 | M19: ='B1.1 Current Distribution Rates'!M19*'B1.2 Billing Determinants'!M19/100 -> 0 | N19: ='B1.1 Current Distribution Rates'!N19*'B1.2 Billing Determinants'!N19/100 -> 0 | O19: 169064.6685
C20: RATE 2 - Seasonal Service - Nov to Mar | E20: ='B1.1 Current Distribution Rates'!E20*'B1.2 Billing Determinants'!E20*5 -> 3975 | F20: ='B1.1 Current Distribution Rates'!F20*'B1.2 Billing Determinants'!F20/100 -> 1255.557514 | G20: ='B1.1 Current Distribution Rates'!G20*'B1.2 Billing Determinants'!G20/100 -> 0 | H20: ='B1.1 Current Distribution Rates'!H20*'B1.2 Billing Determinants'!H20/100 -> 6966.161616 | I20: ='B1.1 Current Distribution Rates'!I20*'B1.2 Billing Determinants'!I20/100 -> 0 | J20: ='B1.1 Current Distribution Rates'!J20*'B1.2 Billing Determinants'!J20/100 -> 0 | K20: ='B1.1 Current Distribution Rates'!K20*'B1.2 Billing Determinants'!K20/100 -> 0 | L20: ='B1.1 Current Distribution Rates'!L20*'B1.2 Billing Determinants'!L20/100 -> 18.204087 | M20: ='B1.1 Current Distribution Rates'!M20*'B1.2 Billing Determinants'!M20/100 -> 0 | N20: ='B1.1 Current Distribution Rates'!N20*'B1.2 Billing Determinants'!N20/100 -> 0 | O20: 12214.92322
C21: RATE 3 - Special Large Volume Contract Rate | E21: ='B1.1 Current Distribution Rates'!E21*'B1.2 Billing Determinants'!E21*12 -> 9000 | F21: ='B1.1 Current Distribution Rates'!F21*'B1.2 Billing Determinants'!F21/100 -> 0 | G21: ='B1.1 Current Distribution Rates'!G21*'B1.2 Billing Determinants'!G21/100 -> 0 | H21: ='B1.1 Current Distribution Rates'!H21*'B1.2 Billing Determinants'!H21/100 -> 0 | I21: ='B1.1 Current Distribution Rates'!I21*'B1.2 Billing Determinants'!I21/100 -> 0 | J21: ='B1.1 Current Distribution Rates'!J21*'B1.2 Billing Determinants'!J21/100 -> 64303.81722 | K21: ='B1.1 Current Distribution Rates'!K21*'B1.2 Billing Determinants'!K21/100 -> 65388.5502 | L21: ='B1.1 Current Distribution Rates'!L21*'B1.2 Billing Determinants'!L21/100 -> 539.262636 | M21: ='B1.1 Current Distribution Rates'!M21*'B1.2 Billing Determinants'!M21/100 -> 0 | N21: ='B1.1 Current Distribution Rates'!N21*'B1.2 Billing Determinants'!N21/100 -> 0 | O21: 139231.6301
C22: RATE 4 - General Service Peaking - Apr to Dec | E22: ='B1.1 Current Distribution Rates'!E22*'B1.2 Billing Determinants'!E22*9 -> 4860 | F22: ='B1.1 Current Distribution Rates'!F22*'B1.2 Billing Determinants'!F22/100 -> 39496.52428 | G22: ='B1.1 Current Distribution Rates'!G22*'B1.2 Billing Determinants'!G22/100 -> 24946.56227 | H22: ='B1.1 Current Distribution Rates'!H22*'B1.2 Billing Determinants'!H22/100 -> 0 | I22: ='B1.1 Current Distribution Rates'!I22*'B1.2 Billing Determinants'!I22/100 -> 0 | J22: ='B1.1 Current Distribution Rates'!J22*'B1.2 Billing Determinants'!J22/100 -> 0 | K22: ='B1.1 Current Distribution Rates'!K22*'B1.2 Billing Determinants'!K22/100 -> 0 | L22: ='B1.1 Current Distribution Rates'!L22*'B1.2 Billing Determinants'!L22/100 -> 169.988907 | M22: ='B1.1 Current Distribution Rates'!M22*'B1.2 Billing Determinants'!M22/100 -> 0 | N22: ='B1.1 Current Distribution Rates'!N22*'B1.2 Billing Determinants'!N22/100 -> 0 | O22: 69473.07546
C23: RATE 4 - General Service Peaking - Jan to Mar | E23: ='B1.1 Current Distribution Rates'!E23*'B1.2 Billing Determinants'!E23*3 -> 1620 | F23: ='B1.1 Current Distribution Rates'!F23*'B1.2 Billing Determinants'!F23/100 -> 24413.63881 | G23: ='B1.1 Current Distribution Rates'!G23*'B1.2 Billing Determinants'!G23/100 -> 56230.47776 | H23: ='B1.1 Current Distribution Rates'!H23*'B1.2 Billing Determinants'!H23/100 -> 0 | I23: ='B1.1 Current Distribution Rates'!I23*'B1.2 Billing Determinants'!I23/100 -> 0 | J23: ='B1.1 Current Distribution Rates'!J23*'B1.2 Billing Determinants'!J23/100 -> 0 | K23: ='B1.1 Current Distribution Rates'!K23*'B1.2 Billing Determinants'!K23/100 -> 0 | L23: ='B1.1 Current Distribution Rates'!L23*'B1.2 Billing Determinants'!L23/100 -> 161.405046 | M23: ='B1.1 Current Distribution Rates'!M23*'B1.2 Billing Determinants'!M23/100 -> 0 | N23: ='B1.1 Current Distribution Rates'!N23*'B1.2 Billing Determinants'!N23/100 -> 0 | O23: 82425.52161
C24: RATE 5 - Interruptible Peaking Contract Rate | E24: ='B1.1 Current Distribution Rates'!E24*'B1.2 Billing Determinants'!E24*12 -> 7200 | F24: ='B1.1 Current Distribution Rates'!F24*'B1.2 Billing Determinants'!F24/100 -> 0 | G24: ='B1.1 Current Distribution Rates'!G24*'B1.2 Billing Determinants'!G24/100 -> 0 | H24: ='B1.1 Current Distribution Rates'!H24*'B1.2 Billing Determinants'!H24/100 -> 0 | I24: ='B1.1 Current Distribution Rates'!I24*'B1.2 Billing Determinants'!I24/100 -> 0 | J24: ='B1.1 Current Distribution Rates'!J24*'B1.2 Billing Determinants'!J24/100 -> 41402.57177 | K24: ='B1.1 Current Distribution Rates'!K24*'B1.2 Billing Determinants'!K24/100 -> 0 | L24: ='B1.1 Current Distribution Rates'!L24*'B1.2 Billing Determinants'!L24/100 -> 201.063522 | M24: ='B1.1 Current Distribution Rates'!M24*'B1.2 Billing Determinants'!M24/100 -> 0 | N24: ='B1.1 Current Distribution Rates'!N24*'B1.2 Billing Determinants'!N24/100 -> 0 | O24: 48803.6353
C25: RATE 6 - Integrated Grain Processors Co-Operative Aylmer Ethanol Production Facility | E25: ='B1.1 Current Distribution Rates'!E25*'B1.2 Billing Determinants'!E25*12 -> 1800 | F25: ='B1.1 Current Distribution Rates'!F25*'B1.2 Billing Determinants'!F25/100 -> 0 | G25: ='B1.1 Current Distribution Rates'!G25*'B1.2 Billing Determinants'!G25/100 -> 0 | H25: ='B1.1 Current Distribution Rates'!H25*'B1.2 Billing Determinants'!H25/100 -> 0 | I25: ='B1.1 Current Distribution Rates'!I25*'B1.2 Billing Determinants'!I25/100 -> 0 | J25: ='B1.1 Current Distribution Rates'!J25*'B1.2 Billing Determinants'!J25/100 -> 1542705.669 | K25: ='B1.1 Current Distribution Rates'!K25*'B1.2 Billing Determinants'!K25/100 -> 312343.7714 | L25: ='B1.1 Current Distribution Rates'!L25*'B1.2 Billing Determinants'!L25/100 -> 0 | M25: ='B1.1 Current Distribution Rates'!M25*'B1.2 Billing Determinants'!M25/100 -> 0 | N25: ='B1.1 Current Distribution Rates'!N25*'B1.2 Billing Determinants'!N25/100 -> 0 | O25: 1856849.441
E26: =SUM(E16:E25) -> 1439532 | F26: =SUM(F16:F25) -> 2867407.411 | G26: 589405.9324 | H26: 103755.4456 | I26: 0 | J26: 1648412.058 | K26: 377732.3216 | L26: 9066.774057 | M26: 0 | N26: 0 | O26: 7035311.943
C29: =MID(CELL("filename",A1),FIND("]",CELL("filename",A1))+1,255) -> B1.3 Current Rev From Rates

Sheet C1.1 Current Rate Riders
C2: ='A1.1 Distributor Information'!C3 -> Name of LDC: EPCOR Natural Gas Limited Partnership
C3: ='A1.1 Distributor Information'!C4 -> OEB Application Number: EB-2018-0235 Exhibit C - 2018 IRM Application Amended October 24, 2018
C10: Current Rate Riders
C12: Description | E12: Shared Tax Changes
C13: Effective for 2018 rate year
E14: $ Per Customer Per Month
C15: Rate Group
C16: RATE 1 - General Service Rate - Residential | E16: 0.1084
C17: RATE 1 - General Service Rate - Commercial | E17: 0.1084
C18: RATE 1 - General Service Rate - Industrial | E18: 0.1084
C19: RATE 2 - Seasonal Service - Apr to Oct | E19: 0.6908
C20: RATE 2 - Seasonal Service - Nov to Mar | E20: 0.6908
C21: RATE 3 - Special Large Volume Contract Rate | E21: 5.6243
C22: RATE 4 - General Service Peaking - Apr to Dec | E22: 0.8522
C23: RATE 4 - General Service Peaking - Jan to Mar | E23: 0.8522
C24: RATE 5 - Interruptible Peaking Contract Rate | E24: 2.4643
C25: RATE 6 - Integrated Grain Processors Co-Operative Aylmer Ethanol Production Facility | E25: 375.0371
C29: =MID(CELL("filename",A1),FIND("]",CELL("filename",A1))+1,255) -> C1.1 Current Rate Riders

Sheet C2.1 Regulatory Cost Adjustment (hidden)
C1: ='A1.1 Distributor Information'!#REF! -> 
C2: ='A1.1 Distributor Information'!C3 -> Name of LDC: EPCOR Natural Gas Limited Partnership
C3: ='A1.1 Distributor Information'!C4 -> OEB Application Number: EB-2018-0235 Exhibit C - 2018 IRM Application Amended October 24, 2018
C8: Regulatory Cost Adjustment
C9: Annual Regulatory Adjustment
C10: 22800 | D10: for 3 years | E10: =C10*3 -> 68400 | F10: Total to be collected
C11: A | E11: B= A * 3
C13: =E10 -> 68400 | D13: recovered over 33 months | E13: =C13/33 -> 2072.727273 | F13: per month
C14: B | E14: C = B / 33
C16: =E13 -> 2072.727273 | D16: Monthly charge annualized 12 months | E16: =C16*12 -> 24872.72727 | F16: Adjusted Regulatory Adjustment Value
C17: C | E17: D = C * 12
C19: Proposed recovery
C20: =E16 -> 24872.72727 | D20: Recovered over 9 months | E20: =C20/12*9 -> 18654.54545 | F20: Recovered in 2011/2012
C21: =C20 -> 24872.72727 | D21: Recovered over 12 months | E21: =C21 -> 24872.72727 | F21: Recovered in 2012/2013
C22: =C21 -> 24872.72727 | D22: Recovered over 12 months | E22: =C22 -> 24872.72727 | F22: Recovered in 2013/2014
E23: =SUM(E20:E22) -> 68400

Sheet C2.2 Alloc Reg Cost Adj (hidden)
C2: ='A1.1 Distributor Information'!C3 -> Name of LDC: EPCOR Natural Gas Limited Partnership
C3: ='A1.1 Distributor Information'!C4 -> OEB Application Number: EB-2018-0235 Exhibit C - 2018 IRM Application Amended October 24, 2018
C10: Allocation of Regualtory Cost Adjustment
C15: Rate Group | E15: Revenue By Rate Class | G15: Proportionate Revenue | I15: Regulatory Cost Adjustment | K15: Number of Customers | M15: Number of Months | O15: Fixed Rate Adjustment
C16: RATE 1 - General Service Rate | E16: =SUM('B1.3 Current Rev From Rates'!O16:O18) -> 4657249.048 | G16: =E16/$E$22 -> 0.6619818831 | I16: =$I$22*G16 -> 16465.29484 | K16: =SUM('B1.2 Billing Determinants'!E16:E18) -> 8676 | M16: 12 | O16: =I16/K16/M16 -> 0.1581498275
C17: RATE 2 - Seasonal Service | E17: =SUM('B1.3 Current Rev From Rates'!O19:O20) -> 181279.5917 | G17: 0.02576710076 | I17: 640.8980697 | K17: ='B1.2 Billing Determinants'!E19 -> 53 | M17: 12 | O17: =I17/K17/M17 -> 1.007701367
C18: RATE 3 - Special Large Volume Contract Rate | E18: ='B1.3 Current Rev From Rates'!O21 -> 139231.6301 | G18: 0.01979039894 | I18: 492.2411956 | K18: ='B1.2 Billing Determinants'!E21 -> 5 | M18: 12 | O18: 8.204019926
C19: RATE 4 - General Service Peaking | E19: =SUM('B1.3 Current Rev From Rates'!O22:O23) -> 151898.5971 | G19: 0.02159088301 | I19: 537.0241446 | K19: ='B1.2 Billing Determinants'!E22 -> 36 | M19: 12 | O19: 1.243111446
C20: RATE 5 - Interruptible Peaking Contract Rate | E20: ='B1.3 Current Rev From Rates'!O24 -> 48803.6353 | G20: 0.006936953996 | I20: 172.5409648 | K20: ='B1.2 Billing Determinants'!E24 -> 4 | M20: 12 | O20: 3.594603434
C21: RATE 6 - Integrated Grain Processors Co-Operative Aylmer Ethanol Production Facility | E21: ='B1.3 Current Rev From Rates'!O25 -> 1856849.441 | G21: 0.2639327802 | I21: 6564.72806 | K21: ='B1.2 Billing Determinants'!E25 -> 1 | M21: 12 | O21: 547.0606717
E22: =SUM(E16:E21) -> 7035311.943 | G22: =SUM(G16:G21) -> 1 | I22: ='C2.1 Regulatory Cost Adjustment'!E16 -> 24872.72727 | K22: =SUM(K16:K21) -> 8775
C26: =MID(CELL("filename",A1),FIND("]",CELL("filename",A1))+1,255) -> C2.2 Alloc Reg Cost Adj

Sheet C2.3 Adj Monthly Service Chg (hidden)
C1: ='A1.1 Distributor Information'!#REF! -> 
C2: ='A1.1 Distributor Information'!C3 -> Name of LDC: EPCOR Natural Gas Limited Partnership
C3: ='A1.1 Distributor Information'!C4 -> OEB Application Number: EB-2018-0235 Exhibit C - 2018 IRM Application Amended October 24, 2018
C10: Adjustment to Monthly Service Charge
C15: Rate Group | E15: Current Monthly Service Charge | G15: Reulatory Cost Adjustment | I15: Adjusted Monthly Service Charge
C16: RATE 1 - General Service Rate - Residential | E16: 13.5 | G16: 0 | I16: =E16+G16 -> 13.5
C17: RATE 1 - General Service Rate - Commercial | E17: 13.5 | G17: 0 | I17: =E17+G17 -> 13.5
C18: RATE 1 - General Service Rate - Industrial | E18: 13.5 | G18: 0 | I18: 13.5
C19: RATE 2 - Seasonal Service - Apr to Oct | E19: 15 | G19: 0 | I19: 15
C20: RATE 2 - Seasonal Service - Nov to Mar | E20: 15 | G20: 0 | I20: 15
C21: RATE 3 - Special Large Volume Contract Rate | E21: 150 | G21: 0 | I21: 150
C22: RATE 4 - General Service Peaking - Apr to Dec | E22: 15 | G22: 0 | I22: 15
C23: RATE 4 - General Service Peaking - Jan to Mar | E23: 15 | G23: 0 | I23: 15
C24: RATE 5 - Interruptible Peaking Contract Rate | E24: 150 | G24: 0 | I24: 150
C25: RATE 6 - Integrated Grain Processors Co-Operative Aylmer Ethanol Production Facility | E25: 150 | G25: 0 | I25: 150
C28: 1 Placeholder rate for average application

Sheet D1.1 Rate 1 Adjustment
C2: ='A1.1 Distributor Information'!C3 -> Name of LDC: EPCOR Natural Gas Limited Partnership
C3: ='A1.1 Distributor Information'!C4 -> OEB Application Number: EB-2018-0235 Exhibit C - 2018 IRM Application Amended October 24, 2018
C8: Rate 1 Price Cap Adjustment
C11: GDP-IPI | E11: =E24 -> 0.012
C12: Less Productivity | E12: 0
C13: Less Stretch Factor | E13: =I27 -> 0.004
C14: Price Cap Adjustment | E14: =E11-E12-E13 -> 0.008
E16: Current Rate | F16: Price Cap | G16: Adjusted Rates | H16: Billing Determinants | I16: Revenue | K16: Balanced Rates | L16: Revenue
C17: Monthly Service Charge | E17: ='C2.3 Adj Monthly Service Chg'!I16 -> 13.5 | F17: =E14 -> 0.008 | G17: =E17*(1+F17) -> 13.608 | H17: =SUM('B1.2 Billing Determinants'!E16:E18) -> 8676 | I17: =G17*H17*12 -> 1416756.096 | J17: No Change | K17: =E17+H11 -> 13.5 | L17: =H17*K17*12 -> 1405512
C18: Delivery First 1,000 m3 | E18: ='B1.1 Current Distribution Rates'!F16 -> 17.03855739 | F18: =E14 -> 0.008 | G18: =E18*(1+F18) -> 17.17486585 | H18: =SUM('B1.2 Billing Determinants'!F16:F18) -> 16057937.86 | I18: =G18*H18/100 -> 2757929.285 | J18: Re-Balance | K18: =L18/H18*100 -> 17.2452599 | L18: =($I$21-SUM($L$17,$L$20,$L$19)) -> 2769233.119
C19: Delivery Over 1,000 m3 | E19: ='B1.1 Current Distribution Rates'!G16 -> 11.26179882 | F19: =E14 -> 0.008 | G19: 11.35189322 | H19: =SUM('B1.2 Billing Determinants'!G16:G18) -> 4512857.14 | I19: =G19*H19/100 -> 512294.7235 | J19: Change | K19: =G19 -> 11.35189322 | L19: =H19*K19/100 -> 512294.7235
C20: Commodity | E20: ='B1.1 Current Distribution Rates'!L16 -> 0.0363 | F20: =E14 -> 0.008 | G20: 0.0365904 | H20: =SUM('B1.2 Billing Determinants'!L16:L18) -> 20570795 | I20: 7526.936174 | J20: No Change | K20: =E20 -> 0.0363 | L20: =H20*K20/100 -> 7467.198585
I21: =SUM(I17:I20) -> 4694507.041 | L21: =SUM(L17:L20) -> 4694507.041
C23: Data from 2014 IRM Rate Generator for Electric LDC. | L23: =I21-L21 -> 0
C24: Price Escalator | E24: 0.012 | F24: Choose Stretch Factor Group | I24: III | J24: Mid Group
C25: Productivity Factor | E25: 0 | F25: Associated Stretch Factor Value | I25: 0.003
C26: Price Cap Index | E26: =E24-E25-I27 -> 0.008 | F26: Settlement Agreement Adjustment | I26: 0.001
F27: Total Stretch Factor | I27: =SUM(I25:I26) -> 0.004
C30: =MID(CELL("filename",A1),FIND("]",CELL("filename",A1))+1,255) -> D1.1 Rate 1 Adjustment

Sheet D1.2 Rate 2 Adjustment
C2: ='A1.1 Distributor Information'!C3 -> Name of LDC: EPCOR Natural Gas Limited Partnership
C3: ='A1.1 Distributor Information'!C4 -> OEB Application Number: EB-2018-0235 Exhibit C - 2018 IRM Application Amended October 24, 2018
C8: Rate 2 Price Cap Adjustment
C11: GDP-IPI | E11: ='D1.1 Rate 1 Adjustment'!E11 -> 0.012
C12: Less Productivity | E12: ='D1.1 Rate 1 Adjustment'!E12 -> 0
C13: Less Stretch Factor | E13: ='D1.1 Rate 1 Adjustment'!E13 -> 0.004
C14: Price Cap Adjustment | E14: =E11-E12-E13 -> 0.008
E16: Current Rate | F16: Price Cap | G16: Adjusted Rates | H16: Billing Determinants | I16: Revenue | K16: Balanced Rates | L16: Revenue
C17: Monthly Service Charge | E17: ='C2.3 Adj Monthly Service Chg'!I19 -> 15 | F17: =$E$14 -> 0.008 | G17: =E17*(1+F17) -> 15.12 | H17: ='B1.2 Billing Determinants'!E19 -> 53 | I17: =G17*H17*12 -> 9616.32 | J17: No Change | K17: =E17+H11 -> 15 | L17: =H17*K17*12 -> 9540
C18: Delivery First 1,000 m3 - Apr To Oct | E18: ='B1.1 Current Distribution Rates'!F19 -> 17.27153179 | F18: =$E$14 -> 0.008 | G18: =E18*(1+F18) -> 17.40970404 | H18: ='B1.2 Billing Determinants'!F19 -> 383293.9313 | I18: =G18*H18/100 -> 66730.33904 | J18: Re-Balance | K18: =L18/H18*100 -> 17.6428509 | L18: =(I18/($I$18+$I$21))*(I25-SUM(L17,L19:L20,L22:L24)) -> 67623.97679
C19: Delivery Next 24,000 m3 - Apr To Oct | E19: ='B1.1 Current Distribution Rates'!H19 -> 9.4826 | F19: 0.008 | G19: 9.5584608 | H19: ='B1.2 Billing Determinants'!H19 -> 1020704.069 | I19: =G19*H19/100 -> 97563.59829 | J19: No Change | K19: =E19 -> 9.4826 | L19: =H19*K19/100 -> 96789.28402
C20: Delivery Over 25,000 m3 - Apr To Oct | E20: ='B1.1 Current Distribution Rates'!I19 -> 6.1698 | F20: 0.008 | G20: 6.2191584 | H20: ='B1.2 Billing Determinants'!I19 -> 0 | I20: 0 | J20: No Change | K20: =E20 -> 6.1698 | L20: 0
C21: Delivery First 1,000 m3 - Nov To Mar | E21: ='B1.1 Current Distribution Rates'!F20 -> 21.77052281 | F21: 0.008 | G21: 21.94468699 | H21: ='B1.2 Billing Determinants'!F20 -> 5767.236393 | I21: 1265.601975 | J21: Re-Balance | K21: =L21/H21*100 -> 22.23856532 | L21: =(I21/($I$18+$I$21))*(I25-SUM(L17,L19:L20,L22:L24)) -> 1282.550633
C22: Delivery Next 24,000 m3 - Nov To Mar | E22: ='B1.1 Current Distribution Rates'!H20 -> 15.696 | F22: 0.008 | G22: 15.821568 | H22: ='B1.2 Billing Determinants'!H20 -> 44381.76361 | I22: 7021.890909 | J22: No Change | K22: =E22 -> 15.696 | L22: =H22*K22/100 -> 6966.161616
C23: Delivery Over 25,000 m3 - Nov To Mar | E23: ='B1.1 Current Distribution Rates'!I20 -> 15.2899 | F23: 0.008 | G23: 15.4122192 | H23: ='B1.2 Billing Determinants'!I20 -> 0 | I23: 0 | J23: No Change | K23: =E23 -> 15.2899 | L23: 0
C24: Commodity | E24: ='B1.1 Current Distribution Rates'!L19 -> 0.0363 | F24: 0.008 | G24: 0.0365904 | H24: =SUM('B1.2 Billing Determinants'!L19:L20) -> 1454147 | I24: 532.0782039 | J24: No Change | K24: 0.0363 | L24: 527.855361
I25: =SUM(I17:I24) -> 182729.8284 | L25: =SUM(L17:L24) -> 182729.8284
L26: =I25-L25 -> 0
C31: =MID(CELL("filename",A1),FIND("]",CELL("filename",A1))+1,255) -> D1.2 Rate 2 Adjustment

Sheet D1.3 Rate 3 Adjustment
C2: ='A1.1 Distributor Information'!C3 -> Name of LDC: EPCOR Natural Gas Limited Partnership
C3: ='A1.1 Distributor Information'!C4 -> OEB Application Number: EB-2018-0235 Exhibit C - 2018 IRM Application Amended October 24, 2018
C8: Rate 3 Price Cap Adjustment
C11: GDP-IPI | E11: ='D1.1 Rate 1 Adjustment'!E11 -> 0.012
C12: Less Productivity | E12: ='D1.1 Rate 1 Adjustment'!E12 -> 0
C13: Less Stretch Factor | E13: ='D1.1 Rate 1 Adjustment'!E13 -> 0.004
C14: Price Cap Adjustment | E14: =E11-E12-E13 -> 0.008
E16: Current Rate | F16: Price Cap | G16: Adjusted Rates | H16: Billing Determinants | I16: Revenue | K16: Balanced Rates | L16: Revenue
C17: Monthly Service Charge | E17: ='C2.3 Adj Monthly Service Chg'!I21 -> 150 | F17: =E14 -> 0.008 | G17: =E17*(1+F17) -> 151.2 | H17: ='B1.2 Billing Determinants'!E21 -> 5 | I17: =G17*H17*12 -> 9072 | J17: No Change | K17: =E17+H11 -> 150 | L17: =H17*K17*12 -> 9000
C18: Delivery Firm | E18: ='B1.1 Current Distribution Rates'!J21 -> 4.328556086 | F18: =E14 -> 0.008 | G18: =E18*(1+F18) -> 4.363184534 | H18: ='B1.2 Billing Determinants'!J21 -> 1485572 | I18: =G18*H18/100 -> 64818.24775 | J18: Re-Balance | K18: =L18/H18*100 -> 4.403534144 | L18: =I21-(L17+L19+L20) -> 65417.67026
C19: Demand Firm | E19: ='B1.1 Current Distribution Rates'!K21 -> 29.0974 | F19: =E14 -> 0.008 | G19: 29.3301792 | H19: ='B1.2 Billing Determinants'!K21 -> 224723 | I19: =G19*H19/100 -> 65911.6586 | J19: No Change | K19: 29.0974 | L19: =H19*K19/100 -> 65388.5502
C20: Commodity | E20: ='B1.1 Current Distribution Rates'!L21 -> 0.0363 | F20: =E14 -> 0.008 | G20: 0.0365904 | H20: ='B1.2 Billing Determinants'!L21 -> 1485572 | I20: 543.5767371 | J20: No Change | K20: =E20 -> 0.0363 | L20: =H20*K20/100 -> 539.262636
I21: =SUM(I17:I20) -> 140345.4831 | L21: =SUM(L17:L20) -> 140345.4831
L22: =I21-L21 -> 0
C26: =MID(CELL("filename",A1),FIND("]",CELL("filename",A1))+1,255) -> D1.3 Rate 3 Adjustment

Sheet D1.4 Rate 4 Adjustment
C2: ='A1.1 Distributor Information'!C3 -> Name of LDC: EPCOR Natural Gas Limited Partnership
C3: ='A1.1 Distributor Information'!C4 -> OEB Application Number: EB-2018-0235 Exhibit C - 2018 IRM Application Amended October 24, 2018
C8: Rate 4 Price Cap Adjustment
C11: GDP-IPI | E11: ='D1.1 Rate 1 Adjustment'!E11 -> 0.012
C12: Less Productivity | E12: ='D1.1 Rate 1 Adjustment'!E12 -> 0
C13: Less Stretch Factor | E13: ='D1.1 Rate 1 Adjustment'!E13 -> 0.004
C14: Price Cap Adjustment | E14: =E11-E12-E13 -> 0.008
E16: Current Rate | F16: Price Cap | G16: Adjusted Rates | H16: Billing Determinants | I16: Revenue | K16: Balanced Rates | L16: Revenue
C17: Monthly Service Charge | E17: ='C2.3 Adj Monthly Service Chg'!I22 -> 15 | F17: =$E$14 -> 0.008 | G17: =E17*(1+F17) -> 15.12 | H17: ='B1.2 Billing Determinants'!E22 -> 36 | I17: =G17*H17*12 -> 6531.84 | J17: No Change | K17: =E17+H11 -> 15 | L17: =H17*K17*12 -> 6480
C18: Delivery First 1,000 m3 - Apr To Dec | E18: ='B1.1 Current Distribution Rates'!F22 -> 17.08364526 | F18: =$E$14 -> 0.008 | G18: =E18*(1+F18) -> 17.22031442 | H18: ='B1.2 Billing Determinants'!F22 -> 231194.9451 | I18: =G18*H18/100 -> 39812.49647 | J18: Re-Balance | K18: =L18/H18*100 -> 17.40847394 | L18: =(I18/($I$18+$I$20))*($I$23-SUM($L$17,$L$19,$L$21:$L$22)) -> 40247.51177
C19: Delivery Over 1,000 m3 - Apr To Dec | E19: ='B1.1 Current Distribution Rates'!G22 -> 10.5218 | F19: 0.008 | G19: 10.6059744 | H19: ='B1.2 Billing Determinants'!G22 -> 237094.0549 | I19: =G19*H19/100 -> 25146.13477 | J19: No Change | K19: 10.5218 | L19: =H19*K19/100 -> 24946.56227
C20: Delivery First 1,000 m3 - Jan To Mar | E20: ='B1.1 Current Distribution Rates'!F23 -> 21.79407299 | F20: 0.008 | G20: 21.96842557 | H20: ='B1.2 Billing Determinants'!F23 -> 112019.6249 | I20: 24608.94792 | J20: Re-Balance | K20: =L20/H20*100 -> 22.20846581 | L20: =(I20/($I$18+$I$20))*($I$23-SUM($L$17,$L$19,$L$21:$L$22)) -> 24877.84009
C21: Delivery Over 1,000 m3 - Jan To Mar | E21: ='B1.1 Current Distribution Rates'!G23 -> 16.9052 | F21: 0.008 | G21: 17.0404416 | H21: ='B1.2 Billing Determinants'!G23 -> 332622.3751 | I21: 56680.32158 | J21: No Change | K21: 16.9052 | L21: =H21*K21/100 -> 56230.47776
C22: Commodity | E22: ='B1.1 Current Distribution Rates'!L22 -> 0.0363 | F22: 0.008 | G22: 0.0365904 | H22: =SUM('B1.2 Billing Determinants'!L22:L23) -> 912931 | I22: 334.0451046 | J22: No Change | K22: =E22 -> 0.0363 | L22: 331.393953
I23: =SUM(I17:I22) -> 153113.7858 | L23: =SUM(L17:L22) -> 153113.7858
L24: =I23-L23 -> 0
C28: =MID(CELL("filename",A1),FIND("]",CELL("filename",A1))+1,255) -> D1.4 Rate 4 Adjustment

Sheet D1.5 Rate 5 Adjustment
C2: ='A1.1 Distributor Information'!C3 -> Name of LDC: EPCOR Natural Gas Limited Partnership
C3: ='A1.1 Distributor Information'!C4 -> OEB Application Number: EB-2018-0235 Exhibit C - 2018 IRM Application Amended October 24, 2018
C8: Rate 5 Price Cap Adjustment
C11: GDP-IPI | E11: ='D1.1 Rate 1 Adjustment'!E11 -> 0.012
C12: Less Productivity | E12: ='D1.1 Rate 1 Adjustment'!E12 -> 0
C13: Less Stretch Factor | E13: ='D1.1 Rate 1 Adjustment'!E13 -> 0.004
C14: Price Cap Adjustment | E14: =E11-E12-E13 -> 0.008
E16: Current Rate | F16: Price Cap | G16: Adjusted Rates | H16: Billing Determinants | I16: Revenue | K16: Balanced Rates | L16: Revenue
C17: Monthly Service Charge | E17: ='C2.3 Adj Monthly Service Chg'!I24 -> 150 | F17: =E14 -> 0.008 | G17: =E17*(1+F17) -> 151.2 | H17: ='B1.2 Billing Determinants'!E24 -> 4 | I17: =G17*H17*12 -> 7257.6 | J17: No Change | K17: =E17+H11 -> 150 | L17: =H17*K17*12 -> 7200
C18: Delivery Firm | E18: ='B1.1 Current Distribution Rates'!J24 -> 7.474818607 | F18: =E14 -> 0.008 | G18: =E18*(1+F18) -> 7.534617156 | H18: ='B1.2 Billing Determinants'!J24 -> 553894 | I18: =G18*H18/100 -> 41733.79235 | J18: Re-Balance | K18: =L18/H18*100 -> 7.545306657 | L18: =I20-L17-L19 -> 41793.00086
C19: Commodity | E19: ='B1.1 Current Distribution Rates'!L24 -> 0.0363 | F19: =E14 -> 0.008 | G19: 0.0365904 | H19: ='B1.2 Billing Determinants'!L24 -> 553894 | I19: =G19*H19/100 -> 202.6720302 | J19: No Change | K19: =E19 -> 0.0363 | L19: =H19*K19/100 -> 201.063522
I20: =SUM(I17:I19) -> 49194.06438 | L20: =SUM(L17:L19) -> 49194.06438
L21: =I20-L20 -> 0
C26: =MID(CELL("filename",A1),FIND("]",CELL("filename",A1))+1,255) -> D1.5 Rate 5 Adjustment

Sheet D1.6 Rate 6 Adjustment
C2: ='A1.1 Distributor Information'!C3 -> Name of LDC: EPCOR Natural Gas Limited Partnership
C3: ='A1.1 Distributor Information'!C4 -> OEB Application Number: EB-2018-0235 Exhibit C - 2018 IRM Application Amended October 24, 2018
C8: Rate 6 Price Cap Adjustment
C11: GDP-IPI | E11: ='D1.1 Rate 1 Adjustment'!E11 -> 0.012
C12: Less Productivity | E12: ='D1.1 Rate 1 Adjustment'!E12 -> 0
C13: Less Stretch Factor | E13: ='D1.1 Rate 1 Adjustment'!E13 -> 0.004
C14: Price Cap Adjustment | E14: =E11-E12-E13 -> 0.008
E16: Current Rate | F16: Price Cap | G16: Adjusted Rates | H16: Billing Determinants | I16: Revenue | K16: Balanced Rates | L16: Revenue
C17: Monthly Service Charge | E17: ='C2.3 Adj Monthly Service Chg'!I25 -> 150 | F17: =E14 -> 0.008 | G17: =E17*(1+F17) -> 151.2 | H17: ='B1.2 Billing Determinants'!E25 -> 1 | I17: =G17*H17*12 -> 1814.4 | J17: No Change | K17: =E17+H11 -> 150 | L17: =H17*K17*12 -> 1800
C18: Delivery Firm | E18: ='B1.1 Current Distribution Rates'!J25 -> 4.0150037 | F18: =E14 -> 0.008 | G18: =E18*(1+F18) -> 4.047123729 | H18: ='B1.2 Billing Determinants'!J25 -> 38423518 | I18: =G18*H18/100 -> 1555047.315 | J18: Re-Balance | K18: =L18/H18*100 -> 4.047161206 | L18: =I20-(L17+L19) -> 1555061.715
C19: Demand Firm | E19: ='B1.1 Current Distribution Rates'!K25 -> 19.4468584 | F19: =E14 -> 0.008 | G19: 19.60243326 | H19: ='B1.2 Billing Determinants'!K25 -> 1606140 | I19: =G19*H19/100 -> 314842.5216 | J19: Change | K19: =G19 -> 19.60243326 | L19: =H19*K19/100 -> 314842.5216
I20: =SUM(I17:I19) -> 1871704.236 | L20: =SUM(L17:L19) -> 1871704.236
L21: =I20-L20 -> 0
C24: =MID(CELL("filename",A1),FIND("]",CELL("filename",A1))+1,255) -> D1.6 Rate 6 Adjustment

Sheet E1.1 Proposed Dist Rates
C2: ='A1.1 Distributor Information'!C3 -> Name of LDC: EPCOR Natural Gas Limited Partnership
C3: ='A1.1 Distributor Information'!C4 -> OEB Application Number: EB-2018-0235 Exhibit C - 2018 IRM Application Amended October 24, 2018
C10: Proposed Distribution Tariff Sheet Rates
C15: Rate Group | E15: Monthly Service Charge | F15: Delivery First 1,000 m3 | G15: Delivery Over 1,000 m3 | H15: Delivery Next 24,000 m3 | I15: Delivery Over 25,000 m3 | J15: Delivery - Firm | K15: Demand - Firm | L15: Commodity | M15: Delivery - Int - Lower | N15: Delivery - Int - Upper
C16: RATE 1 - General Service Rate - Residential | E16: ='D1.1 Rate 1 Adjustment'!K17 -> 13.5 | F16: ='D1.1 Rate 1 Adjustment'!K18 -> 17.2452599 | G16: ='D1.1 Rate 1 Adjustment'!K19 -> 11.35189322 | L16: ='D1.1 Rate 1 Adjustment'!K20 -> 0.0363
C17: RATE 1 - General Service Rate - Commercial | E17: ='D1.1 Rate 1 Adjustment'!K17 -> 13.5 | F17: ='D1.1 Rate 1 Adjustment'!K18 -> 17.2452599 | G17: ='D1.1 Rate 1 Adjustment'!K19 -> 11.35189322 | L17: ='D1.1 Rate 1 Adjustment'!K20 -> 0.0363
C18: RATE 1 - General Service Rate - Industrial | E18: ='D1.1 Rate 1 Adjustment'!K17 -> 13.5 | F18: ='D1.1 Rate 1 Adjustment'!K18 -> 17.2452599 | G18: ='D1.1 Rate 1 Adjustment'!K19 -> 11.35189322 | L18: ='D1.1 Rate 1 Adjustment'!K20 -> 0.0363
C19: RATE 2 - Seasonal Service - Apr to Oct | E19: ='D1.2 Rate 2 Adjustment'!K17 -> 15 | F19: ='D1.2 Rate 2 Adjustment'!K18 -> 17.6428509 | H19: ='D1.2 Rate 2 Adjustment'!K19 -> 9.4826 | I19: ='D1.2 Rate 2 Adjustment'!K20 -> 6.1698 | L19: ='D1.2 Rate 2 Adjustment'!K24 -> 0.0363
C20: RATE 2 - Seasonal Service - Nov to Mar | E20: ='D1.2 Rate 2 Adjustment'!K17 -> 15 | F20: ='D1.2 Rate 2 Adjustment'!K21 -> 22.23856532 | H20: ='D1.2 Rate 2 Adjustment'!K22 -> 15.696 | I20: ='D1.2 Rate 2 Adjustment'!K23 -> 15.2899 | L20: ='D1.2 Rate 2 Adjustment'!K24 -> 0.0363
C21: RATE 3 - Special Large Volume Contract Rate | E21: ='D1.3 Rate 3 Adjustment'!K17 -> 150 | J21: ='D1.3 Rate 3 Adjustment'!K18 -> 4.403534144 | K21: ='D1.3 Rate 3 Adjustment'!K19 -> 29.0974 | L21: ='D1.3 Rate 3 Adjustment'!K20 -> 0.0363 | M21: ='B1.1 Current Distribution Rates'!M21 -> 7.9412 | N21: ='B1.1 Current Distribution Rates'!N21 -> 10.9612
C22: RATE 4 - General Service Peaking - Apr to Dec | E22: ='D1.4 Rate 4 Adjustment'!K17 -> 15 | F22: ='D1.4 Rate 4 Adjustment'!K18 -> 17.40847394 | G22: ='D1.4 Rate 4 Adjustment'!K19 -> 10.5218 | L22: ='D1.4 Rate 4 Adjustment'!K22 -> 0.0363
C23: RATE 4 - General Service Peaking - Jan to Mar | E23: ='D1.4 Rate 4 Adjustment'!K17 -> 15 | F23: ='D1.4 Rate 4 Adjustment'!K20 -> 22.20846581 | G23: ='D1.4 Rate 4 Adjustment'!K21 -> 16.9052 | L23: ='D1.4 Rate 4 Adjustment'!K22 -> 0.0363
C24: RATE 5 - Interruptible Peaking Contract Rate | E24: ='D1.5 Rate 5 Adjustment'!K17 -> 150 | J24: ='D1.5 Rate 5 Adjustment'!K18 -> 7.545306657 | K24: 1 | L24: ='D1.5 Rate 5 Adjustment'!K19 -> 0.0363 | M24: ='B1.1 Current Distribution Rates'!M24 -> 5.4612 | N24: ='B1.1 Current Distribution Rates'!N24 -> 8.4612
C25: RATE 6 - Integrated Grain Processors Co-Operative Aylmer Ethanol Production Facility | E25: ='D1.6 Rate 6 Adjustment'!K17 -> 150 | J25: ='D1.6 Rate 6 Adjustment'!K18 -> 4.047161206 | K25: ='D1.6 Rate 6 Adjustment'!K19 -> 19.60243326 | M25: ='B1.1 Current Distribution Rates'!M25 -> 7.9412 | N25: ='B1.1 Current Distribution Rates'!N25 -> 10.9612
C27: 1 Placeholder rate for average application
C34: =MID(CELL("filename",A1),FIND("]",CELL("filename",A1))+1,255) -> E1.1 Proposed Dist Rates

Sheet E1.2 Billing Determinants
C2: ='A1.1 Distributor Information'!C3 -> Name of LDC: EPCOR Natural Gas Limited Partnership
C3: ='A1.1 Distributor Information'!C4 -> OEB Application Number: EB-2018-0235 Exhibit C - 2018 IRM Application Amended October 24, 2018
C10: Billing Determinants - Actuals October 1, 2016 to September 30, 2017
C15: Rate Group | E15: Monthly Service Charge | F15: Delivery First 1,000 m3 | G15: Delivery Over 1,000 m3 | H15: Delivery Next 24,000 m3 | I15: Delivery Over 25,000 m3 | J15: Delivery - Firm | K15: Demand - Firm | L15: Commodity | M15: Delivery - Int - Lower | N15: Delivery - Int - Upper
C16: RATE 1 - General Service Rate - Residential | E16: ='B1.2 Billing Determinants'!E16 -> 8148 | F16: ='B1.2 Billing Determinants'!F16 -> 13875993.48 | G16: ='B1.2 Billing Determinants'!G16 -> 823151.5187 | H16: ='B1.2 Billing Determinants'!H16 -> 0 | I16: ='B1.2 Billing Determinants'!I16 -> 0 | J16: ='B1.2 Billing Determinants'!J16 -> 0 | K16: ='B1.2 Billing Determinants'!K16 -> 0 | L16: ='B1.2 Billing Determinants'!L16 -> 14699145 | M16: ='B1.2 Billing Determinants'!M16 -> 0 | N16: ='B1.2 Billing Determinants'!N16 -> 0
C17: RATE 1 - General Service Rate - Commercial | E17: ='B1.2 Billing Determinants'!E17 -> 462 | F17: ='B1.2 Billing Determinants'!F17 -> 1843267.552 | G17: ='B1.2 Billing Determinants'!G17 -> 2483468.448 | H17: ='B1.2 Billing Determinants'!H17 -> 0 | I17: ='B1.2 Billing Determinants'!I17 -> 0 | J17: ='B1.2 Billing Determinants'!J17 -> 0 | K17: ='B1.2 Billing Determinants'!K17 -> 0 | L17: ='B1.2 Billing Determinants'!L17 -> 4326736 | M17: ='B1.2 Billing Determinants'!M17 -> 0 | N17: ='B1.2 Billing Determinants'!N17 -> 0
C18: RATE 1 - General Service Rate - Industrial | E18: ='B1.2 Billing Determinants'!E18 -> 66 | F18: ='B1.2 Billing Determinants'!F18 -> 338676.8268 | G18: ='B1.2 Billing Determinants'!G18 -> 1206237.173 | H18: ='B1.2 Billing Determinants'!H18 -> 0 | I18: ='B1.2 Billing Determinants'!I18 -> 0 | J18: ='B1.2 Billing Determinants'!J18 -> 0 | K18: ='B1.2 Billing Determinants'!K18 -> 0 | L18: ='B1.2 Billing Determinants'!L18 -> 1544914 | M18: ='B1.2 Billing Determinants'!M18 -> 0 | N18: ='B1.2 Billing Determinants'!N18 -> 0
C19: RATE 2 - Seasonal Service - Apr to Oct | E19: ='B1.2 Billing Determinants'!E19 -> 53 | F19: ='B1.2 Billing Determinants'!F19 -> 383293.9313 | G19: ='B1.2 Billing Determinants'!G19 -> 0 | H19: ='B1.2 Billing Determinants'!H19 -> 1020704.069 | I19: ='B1.2 Billing Determinants'!I19 -> 0 | J19: ='B1.2 Billing Determinants'!J19 -> 0 | K19: ='B1.2 Billing Determinants'!K19 -> 0 | L19: ='B1.2 Billing Determinants'!L19 -> 1403998 | M19: ='B1.2 Billing Determinants'!M19 -> 0 | N19: ='B1.2 Billing Determinants'!N19 -> 0
C20: RATE 2 - Seasonal Service - Nov to Mar | E20: ='B1.2 Billing Determinants'!E20 -> 53 | F20: ='B1.2 Billing Determinants'!F20 -> 5767.236393 | G20: ='B1.2 Billing Determinants'!G20 -> 0 | H20: ='B1.2 Billing Determinants'!H20 -> 44381.76361 | I20: ='B1.2 Billing Determinants'!I20 -> 0 | J20: ='B1.2 Billing Determinants'!J20 -> 0 | K20: ='B1.2 Billing Determinants'!K20 -> 0 | L20: ='B1.2 Billing Determinants'!L20 -> 50149 | M20: ='B1.2 Billing Determinants'!M20 -> 0 | N20: ='B1.2 Billing Determinants'!N20 -> 0
C21: RATE 3 - Special Large Volume Contract Rate | E21: ='B1.2 Billing Determinants'!E21 -> 5 | F21: ='B1.2 Billing Determinants'!F21 -> 0 | G21: ='B1.2 Billing Determinants'!G21 -> 0 | H21: ='B1.2 Billing Determinants'!H21 -> 0 | I21: ='B1.2 Billing Determinants'!I21 -> 0 | J21: ='B1.2 Billing Determinants'!J21 -> 1485572 | K21: ='B1.2 Billing Determinants'!K21 -> 224723 | L21: ='B1.2 Billing Determinants'!L21 -> 1485572 | M21: ='B1.2 Billing Determinants'!M21 -> 0 | N21: ='B1.2 Billing Determinants'!N21 -> 0
C22: RATE 4 - General Service Peaking - Apr to Dec | E22: ='B1.2 Billing Determinants'!E22 -> 36 | F22: ='B1.2 Billing Determinants'!F22 -> 231194.9451 | G22: ='B1.2 Billing Determinants'!G22 -> 237094.0549 | H22: ='B1.2 Billing Determinants'!H22 -> 0 | I22: ='B1.2 Billing Determinants'!I22 -> 0 | J22: ='B1.2 Billing Determinants'!J22 -> 0 | K22: ='B1.2 Billing Determinants'!K22 -> 0 | L22: ='B1.2 Billing Determinants'!L22 -> 468289 | M22: ='B1.2 Billing Determinants'!M22 -> 0 | N22: ='B1.2 Billing Determinants'!N22 -> 0
C23: RATE 4 - General Service Peaking - Jan to Mar | E23: ='B1.2 Billing Determinants'!E23 -> 36 | F23: ='B1.2 Billing Determinants'!F23 -> 112019.6249 | G23: ='B1.2 Billing Determinants'!G23 -> 332622.3751 | H23: ='B1.2 Billing Determinants'!H23 -> 0 | I23: ='B1.2 Billing Determinants'!I23 -> 0 | J23: ='B1.2 Billing Determinants'!J23 -> 0 | K23: ='B1.2 Billing Determinants'!K23 -> 0 | L23: ='B1.2 Billing Determinants'!L23 -> 444642 | M23: ='B1.2 Billing Determinants'!M23 -> 0 | N23: ='B1.2 Billing Determinants'!N23 -> 0
C24: RATE 5 - Interruptible Peaking Contract Rate | E24: ='B1.2 Billing Determinants'!E24 -> 4 | F24: ='B1.2 Billing Determinants'!F24 -> 0 | G24: ='B1.2 Billing Determinants'!G24 -> 0 | H24: ='B1.2 Billing Determinants'!H24 -> 0 | I24: ='B1.2 Billing Determinants'!I24 -> 0 | J24: ='B1.2 Billing Determinants'!J24 -> 553894 | K24: ='B1.2 Billing Determinants'!K24 -> 0 | L24: ='B1.2 Billing Determinants'!L24 -> 553894 | M24: ='B1.2 Billing Determinants'!M24 -> 0 | N24: ='B1.2 Billing Determinants'!N24 -> 0
C25: RATE 6 - Integrated Grain Processors Co-Operative Aylmer Ethanol Production Facility | E25: ='B1.2 Billing Determinants'!E25 -> 1 | F25: ='B1.2 Billing Determinants'!F25 -> 0 | G25: ='B1.2 Billing Determinants'!G25 -> 0 | H25: ='B1.2 Billing Determinants'!H25 -> 0 | I25: ='B1.2 Billing Determinants'!I25 -> 0 | J25: ='B1.2 Billing Determinants'!J25 -> 38423518 | K25: ='B1.2 Billing Determinants'!K25 -> 1606140 | L25: ='B1.2 Billing Determinants'!L25 -> 0 | M25: ='B1.2 Billing Determinants'!M25 -> 0 | N25: ='B1.2 Billing Determinants'!N25 -> 0
E26: =SUM(E16:E19,E21:E22,E24:E25) -> 8775 | F26: =SUM(F16:F25) -> 16790213.6 | G26: 5082573.57 | H26: 1065085.832 | I26: 0 | J26: 40462984 | K26: 1830863 | L26: 24977339 | M26: 0 | N26: 0
C30: =MID(CELL("filename",A1),FIND("]",CELL("filename",A1))+1,255) -> E1.2 Billing Determinants

Sheet E1.3 Proposed Rev From Rate
C2: ='A1.1 Distributor Information'!C3 -> Name of LDC: EPCOR Natural Gas Limited Partnership
C3: ='A1.1 Distributor Information'!C4 -> OEB Application Number: EB-2018-0235 Exhibit C - 2018 IRM Application Amended October 24, 2018
C10: Proposed Revenue from Rates
C15: Rate Group | E15: Monthly Service Charge | F15: Delivery First 1,000 m3 | G15: Delivery Over 1,000 m3 | H15: Delivery Next 24,000 m3 | I15: Delivery Over 25,000 m3 | J15: Demand - Firm | K15: Delivery - Firm | L15: Commodity | M15: Delivery - Int - Lower | N15: Delivery - Int - Upper | O15: Total
C16: RATE 1 - General Service Rate - Residential | E16: ='E1.1 Proposed Dist Rates '!E16*'E1.2 Billing Determinants'!E16*12 -> 1319976 | F16: ='E1.1 Proposed Dist Rates '!F16*'E1.2 Billing Determinants'!F16/100 -> 2392951.14 | G16: ='E1.1 Proposed Dist Rates '!G16*'E1.2 Billing Determinants'!G16/100 -> 93443.28141 | H16: ='E1.1 Proposed Dist Rates '!H16*'E1.2 Billing Determinants'!H16/100 -> 0 | I16: ='E1.1 Proposed Dist Rates '!I16*'E1.2 Billing Determinants'!I16/100 -> 0 | J16: ='E1.1 Proposed Dist Rates '!J16*'E1.2 Billing Determinants'!J16/100 -> 0 | K16: ='E1.1 Proposed Dist Rates '!K16*'E1.2 Billing Determinants'!K16/100 -> 0 | L16: ='E1.1 Proposed Dist Rates '!L16*'E1.2 Billing Determinants'!L16/100 -> 5335.789635 | M16: ='E1.1 Proposed Dist Rates '!M16*'E1.2 Billing Determinants'!M16/100 -> 0 | N16: ='E1.1 Proposed Dist Rates '!N16*'E1.2 Billing Determinants'!N16/100 -> 0 | O16: =SUM(E16:N16) -> 3811706.211
C17: RATE 1 - General Service Rate - Commercial | E17: ='E1.1 Proposed Dist Rates '!E17*'E1.2 Billing Determinants'!E17*12 -> 74844 | F17: ='E1.1 Proposed Dist Rates '!F17*'E1.2 Billing Determinants'!F17/100 -> 317876.28 | G17: ='E1.1 Proposed Dist Rates '!G17*'E1.2 Billing Determinants'!G17/100 -> 281920.6863 | H17: ='E1.1 Proposed Dist Rates '!H17*'E1.2 Billing Determinants'!H17/100 -> 0 | I17: ='E1.1 Proposed Dist Rates '!I17*'E1.2 Billing Determinants'!I17/100 -> 0 | J17: ='E1.1 Proposed Dist Rates '!J17*'E1.2 Billing Determinants'!J17/100 -> 0 | K17: ='E1.1 Proposed Dist Rates '!K17*'E1.2 Billing Determinants'!K17/100 -> 0 | L17: ='E1.1 Proposed Dist Rates '!L17*'E1.2 Billing Determinants'!L17/100 -> 1570.605168 | M17: ='E1.1 Proposed Dist Rates '!M17*'E1.2 Billing Determinants'!M17/100 -> 0 | N17: ='E1.1 Proposed Dist Rates '!N17*'E1.2 Billing Determinants'!N17/100 -> 0 | O17: =SUM(E17:N17) -> 676211.5714
C18: RATE 1 - General Service Rate - Industrial | E18: ='E1.1 Proposed Dist Rates '!E18*'E1.2 Billing Determinants'!E18*12 -> 10692 | F18: ='E1.1 Proposed Dist Rates '!F18*'E1.2 Billing Determinants'!F18/100 -> 58405.69901 | G18: ='E1.1 Proposed Dist Rates '!G18*'E1.2 Billing Determinants'!G18/100 -> 136930.7558 | H18: ='E1.1 Proposed Dist Rates '!H18*'E1.2 Billing Determinants'!H18/100 -> 0 | I18: ='E1.1 Proposed Dist Rates '!I18*'E1.2 Billing Determinants'!I18/100 -> 0 | J18: ='E1.1 Proposed Dist Rates '!J18*'E1.2 Billing Determinants'!J18/100 -> 0 | K18: ='E1.1 Proposed Dist Rates '!K18*'E1.2 Billing Determinants'!K18/100 -> 0 | L18: ='E1.1 Proposed Dist Rates '!L18*'E1.2 Billing Determinants'!L18/100 -> 560.803782 | M18: ='E1.1 Proposed Dist Rates '!M18*'E1.2 Billing Determinants'!M18/100 -> 0 | N18: ='E1.1 Proposed Dist Rates '!N18*'E1.2 Billing Determinants'!N18/100 -> 0 | O18: 206589.2586
C19: RATE 2 - Seasonal Service - Apr to Oct | E19: ='E1.1 Proposed Dist Rates '!E19*'E1.2 Billing Determinants'!E19*7 -> 5565 | F19: ='E1.1 Proposed Dist Rates '!F19*'E1.2 Billing Determinants'!F19/100 -> 67623.97679 | G19: ='E1.1 Proposed Dist Rates '!G19*'E1.2 Billing Determinants'!G19/100 -> 0 | H19: ='E1.1 Proposed Dist Rates '!H19*'E1.2 Billing Determinants'!H19/100 -> 96789.28402 | I19: ='E1.1 Proposed Dist Rates '!I19*'E1.2 Billing Determinants'!I19/100 -> 0 | J19: ='E1.1 Proposed Dist Rates '!J19*'E1.2 Billing Determinants'!J19/100 -> 0 | K19: ='E1.1 Proposed Dist Rates '!K19*'E1.2 Billing Determinants'!K19/100 -> 0 | L19: ='E1.1 Proposed Dist Rates '!L19*'E1.2 Billing Determinants'!L19/100 -> 509.651274 | M19: ='E1.1 Proposed Dist Rates '!M19*'E1.2 Billing Determinants'!M19/100 -> 0 | N19: ='E1.1 Proposed Dist Rates '!N19*'E1.2 Billing Determinants'!N19/100 -> 0 | O19: 170487.9121
C20: RATE 2 - Seasonal Service - Nov to Mar | E20: ='E1.1 Proposed Dist Rates '!E20*'E1.2 Billing Determinants'!E20*5 -> 3975 | F20: ='E1.1 Proposed Dist Rates '!F20*'E1.2 Billing Determinants'!F20/100 -> 1282.550633 | G20: ='E1.1 Proposed Dist Rates '!G20*'E1.2 Billing Determinants'!G20/100 -> 0 | H20: ='E1.1 Proposed Dist Rates '!H20*'E1.2 Billing Determinants'!H20/100 -> 6966.161616 | I20: ='E1.1 Proposed Dist Rates '!I20*'E1.2 Billing Determinants'!I20/100 -> 0 | J20: ='E1.1 Proposed Dist Rates '!J20*'E1.2 Billing Determinants'!J20/100 -> 0 | K20: ='E1.1 Proposed Dist Rates '!K20*'E1.2 Billing Determinants'!K20/100 -> 0 | L20: ='E1.1 Proposed Dist Rates '!L20*'E1.2 Billing Determinants'!L20/100 -> 18.204087 | M20: ='E1.1 Proposed Dist Rates '!M20*'E1.2 Billing Determinants'!M20/100 -> 0 | N20: ='E1.1 Proposed Dist Rates '!N20*'E1.2 Billing Determinants'!N20/100 -> 0 | O20: 12241.91634
C21: RATE 3 - Special Large Volume Contract Rate | E21: ='E1.1 Proposed Dist Rates '!E21*'E1.2 Billing Determinants'!E21*12 -> 9000 | F21: ='E1.1 Proposed Dist Rates '!F21*'E1.2 Billing Determinants'!F21/100 -> 0 | G21: ='E1.1 Proposed Dist Rates '!G21*'E1.2 Billing Determinants'!G21/100 -> 0 | H21: ='E1.1 Proposed Dist Rates '!H21*'E1.2 Billing Determinants'!H21/100 -> 0 | I21: ='E1.1 Proposed Dist Rates '!I21*'E1.2 Billing Determinants'!I21/100 -> 0 | J21: ='E1.1 Proposed Dist Rates '!J21*'E1.2 Billing Determinants'!J21/100 -> 65417.67026 | K21: ='E1.1 Proposed Dist Rates '!K21*'E1.2 Billing Determinants'!K21/100 -> 65388.5502 | L21: ='E1.1 Proposed Dist Rates '!L21*'E1.2 Billing Determinants'!L21/100 -> 539.262636 | M21: ='E1.1 Proposed Dist Rates '!M21*'E1.2 Billing Determinants'!M21/100 -> 0 | N21: ='E1.1 Proposed Dist Rates '!N21*'E1.2 Billing Determinants'!N21/100 -> 0 | O21: 140345.4831
C22: RATE 4 - General Service Peaking - Apr to Dec | E22: ='E1.1 Proposed Dist Rates '!E22*'E1.2 Billing Determinants'!E22*9 -> 4860 | F22: ='E1.1 Proposed Dist Rates '!F22*'E1.2 Billing Determinants'!F22/100 -> 40247.51177 | G22: ='E1.1 Proposed Dist Rates '!G22*'E1.2 Billing Determinants'!G22/100 -> 24946.56227 | H22: ='E1.1 Proposed Dist Rates '!H22*'E1.2 Billing Determinants'!H22/100 -> 0 | I22: ='E1.1 Proposed Dist Rates '!I22*'E1.2 Billing Determinants'!I22/100 -> 0 | J22: ='E1.1 Proposed Dist Rates '!J22*'E1.2 Billing Determinants'!J22/100 -> 0 | K22: ='E1.1 Proposed Dist Rates '!K22*'E1.2 Billing Determinants'!K22/100 -> 0 | L22: ='E1.1 Proposed Dist Rates '!L22*'E1.2 Billing Determinants'!L22/100 -> 169.988907 | M22: ='E1.1 Proposed Dist Rates '!M22*'E1.2 Billing Determinants'!M22/100 -> 0 | N22: ='E1.1 Proposed Dist Rates '!N22*'E1.2 Billing Determinants'!N22/100 -> 0 | O22: 70224.06295
C23: RATE 4 - General Service Peaking - Jan to Mar | E23: ='E1.1 Proposed Dist Rates '!E23*'E1.2 Billing Determinants'!E23*3 -> 1620 | F23: ='E1.1 Proposed Dist Rates '!F23*'E1.2 Billing Determinants'!F23/100 -> 24877.84009 | G23: ='E1.1 Proposed Dist Rates '!G23*'E1.2 Billing Determinants'!G23/100 -> 56230.47776 | H23: ='E1.1 Proposed Dist Rates '!H23*'E1.2 Billing Determinants'!H23/100 -> 0 | I23: ='E1.1 Proposed Dist Rates '!I23*'E1.2 Billing Determinants'!I23/100 -> 0 | J23: ='E1.1 Proposed Dist Rates '!J23*'E1.2 Billing Determinants'!J23/100 -> 0 | K23: ='E1.1 Proposed Dist Rates '!K23*'E1.2 Billing Determinants'!K23/100 -> 0 | L23: ='E1.1 Proposed Dist Rates '!L23*'E1.2 Billing Determinants'!L23/100 -> 161.405046 | M23: ='E1.1 Proposed Dist Rates '!M23*'E1.2 Billing Determinants'!M23/100 -> 0 | N23: ='E1.1 Proposed Dist Rates '!N23*'E1.2 Billing Determinants'!N23/100 -> 0 | O23: 82889.7229
C24: RATE 5 - Interruptible Peaking Contract Rate | E24: ='E1.1 Proposed Dist Rates '!E24*'E1.2 Billing Determinants'!E24*12 -> 7200 | F24: ='E1.1 Proposed Dist Rates '!F24*'E1.2 Billing Determinants'!F24/100 -> 0 | G24: ='E1.1 Proposed Dist Rates '!G24*'E1.2 Billing Determinants'!G24/100 -> 0 | H24: ='E1.1 Proposed Dist Rates '!H24*'E1.2 Billing Determinants'!H24/100 -> 0 | I24: ='E1.1 Proposed Dist Rates '!I24*'E1.2 Billing Determinants'!I24/100 -> 0 | J24: ='E1.1 Proposed Dist Rates '!J24*'E1.2 Billing Determinants'!J24/100 -> 41793.00086 | K24: ='E1.1 Proposed Dist Rates '!K24*'E1.2 Billing Determinants'!K24/100 -> 0 | L24: ='E1.1 Proposed Dist Rates '!L24*'E1.2 Billing Determinants'!L24/100 -> 201.063522 | M24: ='E1.1 Proposed Dist Rates '!M24*'E1.2 Billing Determinants'!M24/100 -> 0 | N24: ='E1.1 Proposed Dist Rates '!N24*'E1.2 Billing Determinants'!N24/100 -> 0 | O24: 49194.06438
C25: RATE 6 - Integrated Grain Processors Co-Operative Aylmer Ethanol Production Facility | E25: ='E1.1 Proposed Dist Rates '!E25*'E1.2 Billing Determinants'!E25*12 -> 1800 | F25: ='E1.1 Proposed Dist Rates '!F25*'E1.2 Billing Determinants'!F25/100 -> 0 | G25: ='E1.1 Proposed Dist Rates '!G25*'E1.2 Billing Determinants'!G25/100 -> 0 | H25: ='E1.1 Proposed Dist Rates '!H25*'E1.2 Billing Determinants'!H25/100 -> 0 | I25: ='E1.1 Proposed Dist Rates '!I25*'E1.2 Billing Determinants'!I25/100 -> 0 | J25: ='E1.1 Proposed Dist Rates '!J25*'E1.2 Billing Determinants'!J25/100 -> 1555061.715 | K25: ='E1.1 Proposed Dist Rates '!K25*'E1.2 Billing Determinants'!K25/100 -> 314842.5216 | L25: ='E1.1 Proposed Dist Rates '!L25*'E1.2 Billing Determinants'!L25/100 -> 0 | M25: ='E1.1 Proposed Dist Rates '!M25*'E1.2 Billing Determinants'!M25/100 -> 0 | N25: ='E1.1 Proposed Dist Rates '!N25*'E1.2 Billing Determinants'!N25/100 -> 0 | O25: 1871704.236
E26: =SUM(E16:E25) -> 1439532 | F26: =SUM(F16:F25) -> 2903264.998 | G26: 593471.7635 | H26: 103755.4456 | I26: 0 | J26: 1662272.386 | K26: 380231.0718 | L26: 9066.774057 | M26: 0 | N26: 0 | O26: 7091594.439
N28: Proposed Revenue | O28: =O26 -> 7091594.439
N29: Current Revenue | O29: ='B1.3 Current Rev From Rates'!O26 -> 7035311.943
N30: Change | O30: =O28-O29 -> 56282.49554
O31: =O30/O29 -> 0.008
C33: =MID(CELL("filename",A1),FIND("]",CELL("filename",A1))+1,255) -> E1.3 Proposed Rev From Rate

Sheet F1.1 Calc Shared Tax Changes
C2: ='A1.1 Distributor Information'!C3 -> Name of LDC: EPCOR Natural Gas Limited Partnership
C3: ='A1.1 Distributor Information'!C4 -> OEB Application Number: EB-2018-0235 Exhibit C - 2018 IRM Application Amended October 24, 2018
C10: Tax Change Rate Rider
E14: 2010 | G14: 2011 | I14: 2012 | K14: 2013 | M14: 2014 | O14: 2015 | Q14: 2016 | S14: 2017 | U14: 2018 | W14: 2019
C15: Regulatory Taxable Income | E15: 793363 | G15: =E15 -> 793363 | I15: =E15 -> 793363 | K15: =E15 -> 793363 | M15: =E15 -> 793363 | O15: =G15 -> 793363 | Q15: =E15 -> 793363 | S15: =G15 -> 793363 | U15: =I15 -> 793363 | W15: =K15 -> 793363
C17: Federal Income Tax Rate | E17: =(0.18/12*3)+(0.165/12*9) -> 0.16875 | G17: =(0.165/12*3)+(0.15/12*9) -> 0.15375 | I17: =0.15 -> 0.15 | K17: =0.15 -> 0.15 | M17: =0.15 -> 0.15 | O17: =0.15 -> 0.15 | Q17: =0.15 -> 0.15 | S17: =0.15 -> 0.15 | U17: =0.15 -> 0.15 | W17: =0.15 -> 0.15
C18: Federal Income Tax | E18: =E15*E17 -> 133880.0063 | G18: =G15*G17 -> 121979.5612 | I18: =I15*I17 -> 119004.45 | K18: =K15*K17 -> 119004.45 | M18: =M15*M17 -> 119004.45 | O18: =O15*O17 -> 119004.45 | Q18: =Q15*Q17 -> 119004.45 | S18: =S15*S17 -> 119004.45 | U18: =U15*U17 -> 119004.45 | W18: =W15*W17 -> 119004.45
C20: Provincial Income Tax
C21: Provincial Income Tax Rate - First $500,000 | E21: 0.045 | G21: =E21 -> 0.045 | I21: =G21 -> 0.045 | K21: =I21 -> 0.045 | M21: =I21 -> 0.045 | O21: =K21 -> 0.045
C22: Provincial Income Tax - First $500,000 | E22: =IF(E15>500000,500000*E21,E15*E21) -> 22500 | G22: =IF(G15>500000,500000*G21,G15*G21) -> 22500 | I22: =IF(I15>500000,500000*I21,I15*I21) -> 22500 | K22: =IF(K15>500000,500000*K21,K15*K21) -> 22500 | M22: =IF(M15>500000,500000*M21,M15*M21) -> 22500 | O22: =IF(O15>500000,500000*O21,O15*O21) -> 22500 | Q22: =IF(Q15>500000,500000*Q21,Q15*Q21) -> 0 | S22: =IF(S15>500000,500000*S21,S15*S21) -> 0 | U22: =IF(U15>500000,500000*U21,U15*U21) -> 0 | W22: =IF(W15>500000,500000*W21,W15*W21) -> 0
C23: Provincial Income Tax Rate - Over $500,000 | E23: 0.11875 | G23: =0.1175/12*9+0.1125/12*3 -> 0.11625 | I23: 0.115 | K23: 0.115 | M23: 0.115 | O23: 0.115 | Q23: 0.115 | S23: 0.115 | U23: 0.115 | W23: 0.115
C24: Provincial Income Tax - Over $500,000 | E24: =IF(E15>500000,(E15-500000)*E23,0) -> 34836.85625 | G24: =IF(G15>500000,(G15-500000)*G23,0) -> 34103.44875 | I24: =IF(I15>500000,(I15-500000)*I23,0) -> 33736.745 | K24: =IF(K15>500000,(K15-500000)*K23,0) -> 33736.745 | M24: =IF(M15>500000,(M15-500000)*M23,0) -> 33736.745 | O24: =IF(O15>500000,(O15-500000)*O23,0) -> 33736.745 | Q24: =Q15*Q23 -> 91236.745 | S24: =S15*S23 -> 91236.745 | U24: =U15*U23 -> 91236.745 | W24: =W15*W23 -> 91236.745
C26: Total Income Taxes Payable | E26: =E18+E22+E24 -> 191216.8625 | G26: =G18+G22+G24 -> 178583.01 | I26: =I18+I22+I24 -> 175241.195 | K26: =K18+K22+K24 -> 175241.195 | M26: =M18+M22+M24 -> 175241.195 | O26: =O18+O22+O24 -> 175241.195 | Q26: =Q18+Q22+Q24 -> 210241.195 | S26: =S18+S22+S24 -> 210241.195 | U26: =U18+U22+U24 -> 210241.195 | W26: =W18+W22+W24 -> 210241.195
C27: Effective Tax Rate | E27: =E26/E15 -> 0.2410206457 | G27: =G26/G15 -> 0.225096217 | I27: =I26/I15 -> 0.2208840027 | K27: =K26/K15 -> 0.2208840027 | M27: =M26/M15 -> 0.2208840027 | O27: =O26/O15 -> 0.2208840027 | Q27: =Q26/Q15 -> 0.265 | S27: =S26/S15 -> 0.265 | U27: =U26/U15 -> 0.265 | W27: =W26/W15 -> 0.265
C29: Grossed up Income Tax | E29: =E26/(1-E27) -> 251939.4782 | G29: =G26/(1-G27) -> 230458.3019 | I29: =I26/(1-I27) -> 224923.1123 | K29: =K26/(1-K27) -> 224923.1123 | M29: =M26/(1-M27) -> 224923.1123 | O29: =O26/(1-O27) -> 224923.1123 | Q29: =Q26/(1-Q27) -> 286042.4422 | S29: =S26/(1-S27) -> 286042.4422 | U29: =U26/(1-U27) -> 286042.4422 | W29: =W26/(1-W27) -> 286042.4422
C31: Change in Income Taxes | G31: =$E$29-G29 -> 21481.17626 | I31: =$E$29-I29 -> 27016.36586 | K31: =$E$29-K29 -> 27016.36586 | M31: =$E$29-M29 -> 27016.36586 | O31: =$E$29-O29 -> 27016.36586 | Q31: =$E$29-Q29 -> -34102.96397 | S31: =$E$29-S29 -> -34102.96397 | U31: =$E$29-U29 -> -34102.96397 | W31: =$E$29-W29 -> -34102.96397
C33: 50 % Change in Taxes | G33: =G31/2 -> 10740.58813 | I33: =I31/2 -> 13508.18293 | K33: =K31/2 -> 13508.18293 | M33: =M31/2 -> 13508.18293 | O33: =O31/2 -> 13508.18293 | Q33: =Q31/2 -> -17051.48199 | S33: =S31/2 -> -17051.48199 | U33: =U31/2 -> -17051.48199 | W33: =W31/2 -> -17051.48199
C38: =MID(CELL("filename",A1),FIND("]",CELL("filename",A1))+1,255) -> F1.1 Calc Shared Tax Changes

Sheet F1.2 Alloc Shared Tax Changes
C2: ='A1.1 Distributor Information'!C3 -> Name of LDC: EPCOR Natural Gas Limited Partnership
C3: ='A1.1 Distributor Information'!C4 -> OEB Application Number: EB-2018-0235 Exhibit C - 2018 IRM Application Amended October 24, 2018
C10: Allocation of Shared Tax Changes
C15: Rate Group | E15: Revenue By Rate Class | G15: Proportionate Revenue | I15: Shared Tax Changes | K15: Number of Customers | M15: Number of Months | O15: Fixed Monthy Rate Rider
C16: RATE 1 - General Service Rate | E16: =SUM('B1.3 Current Rev From Rates'!O16:O18) -> 4657249.048 | G16: =E16/$E$22 -> 0.6619818831 | I16: =$I$22*G16 -> 11287.77216 | K16: =SUM('B1.2 Billing Determinants'!E16:E18) -> 8676 | M16: 12 | O16: =ROUND(I16/K16/M16,4) -> 0.1084
C17: RATE 2 - Seasonal Service | E17: =SUM('B1.3 Current Rev From Rates'!O19:O20) -> 181279.5917 | G17: 0.02576710076 | I17: 439.3672544 | K17: ='B1.2 Billing Determinants'!E19 -> 53 | M17: 12 | O17: 0.6908
C18: RATE 3 - Special Large Volume Contract Rate | E18: ='B1.3 Current Rev From Rates'!O21 -> 139231.6301 | G18: 0.01979039894 | I18: 337.4556311 | K18: ='B1.2 Billing Determinants'!E21 -> 5 | M18: 12 | O18: 5.6243
C19: RATE 4 - General Service Peaking | E19: =SUM('B1.3 Current Rev From Rates'!O22:O23) -> 151898.5971 | G19: 0.02159088301 | I19: 368.1565527 | K19: ='B1.2 Billing Determinants'!E22 -> 36 | M19: 12 | O19: 0.8522
C20: RATE 5 - Interruptible Peaking Contract Rate | E20: ='B1.3 Current Rev From Rates'!O24 -> 48803.6353 | G20: 0.006936953996 | I20: 118.2853461 | K20: ='B1.2 Billing Determinants'!E24 -> 4 | M20: 12 | O20: 2.4643
C21: RATE 6 - Integrated Grain Processors Co-Operative Aylmer Ethanol Production Facility | E21: ='B1.3 Current Rev From Rates'!O25 -> 1856849.441 | G21: 0.2639327802 | I21: 4500.445047 | K21: ='B1.2 Billing Determinants'!E25 -> 1 | M21: 12 | O21: 375.0371
E22: =SUM(E16:E21) -> 7035311.943 | G22: =SUM(G16:G21) -> 1 | I22: =-'F1.1 Calc Shared Tax Changes'!W33 -> 17051.48199 | K22: =SUM(K16:K21) -> 8775
C28: =MID(CELL("filename",A1),FIND("]",CELL("filename",A1))+1,255) -> F1.2 Alloc Shared Tax Changes

Sheet F2.1 Deferred Revenue Recovery (hidden)
C2: ='A1.1 Distributor Information'!C3 -> Name of LDC: EPCOR Natural Gas Limited Partnership
C3: ='A1.1 Distributor Information'!C4 -> OEB Application Number: EB-2018-0235 Exhibit C - 2018 IRM Application Amended October 24, 2018
C10: Deferred Revenue Recovery
C15: Rate Group | E15: Proposed Revenue Requirement | G15: Current Revenue Requirement | I15: Change In Revenue Requirement | K15: Deferred Revenue | M15: Number of Customers | O15: Total Annual Consumption | Q15: Proposed Deferred Revenue Recovery Rate Rider cents per m3
E16: A | G16: B | I16: C = A- B | K16: D = C / 12 * 12 | M16: E | O16: F | Q16: H = D /F
C17: ='F1.2 Alloc Shared Tax Changes'!C16 -> RATE 1 - General Service Rate | E17: =SUM('E1.3 Proposed Rev From Rate'!O16:O18) -> 4694507.041 | G17: =SUM('B1.3 Current Rev From Rates'!O16:O18) -> 4657249.048 | I17: =E17-G17 -> 37257.99239 | K17: =I17/12*12 -> 37257.99239 | M17: ='F1.2 Alloc Shared Tax Changes'!K16 -> 8676 | O17: ='E1.2 Billing Determinants'!L16+'E1.2 Billing Determinants'!L17+'E1.2 Billing Determinants'!L18 -> 20570795 | Q17: =ROUND(K17/O17*100,4) -> 0.1811
C18: ='F1.2 Alloc Shared Tax Changes'!C17 -> RATE 2 - Seasonal Service | E18: =SUM('E1.3 Proposed Rev From Rate'!O19:O20) -> 182729.8284 | G18: =SUM('B1.3 Current Rev From Rates'!O19:O20) -> 181279.5917 | I18: =E18-G18 -> 1450.236733 | K18: =I18/12*12 -> 1450.236733 | M18: ='F1.2 Alloc Shared Tax Changes'!K17 -> 53 | O18: ='E1.2 Billing Determinants'!L19+'E1.2 Billing Determinants'!L20 -> 1454147 | Q18: =ROUND(K18/O18*100,4) -> 0.0997
C19: ='F1.2 Alloc Shared Tax Changes'!C18 -> RATE 3 - Special Large Volume Contract Rate | E19: ='E1.3 Proposed Rev From Rate'!O21 -> 140345.4831 | G19: ='B1.3 Current Rev From Rates'!O21 -> 139231.6301 | I19: 1113.85304 | K19: 1113.85304 | M19: ='F1.2 Alloc Shared Tax Changes'!K18 -> 5 | O19: ='E1.2 Billing Determinants'!L21 -> 1485572 | Q19: 0.075
C20: ='F1.2 Alloc Shared Tax Changes'!C19 -> RATE 4 - General Service Peaking | E20: =SUM('E1.3 Proposed Rev From Rate'!O22:O23) -> 153113.7858 | G20: =SUM('B1.3 Current Rev From Rates'!O22:O23) -> 151898.5971 | I20: 1215.188777 | K20: 1215.188777 | M20: ='F1.2 Alloc Shared Tax Changes'!K19 -> 36 | O20: ='E1.2 Billing Determinants'!L22+'E1.2 Billing Determinants'!L23 -> 912931 | Q20: 0.1331
C21: ='F1.2 Alloc Shared Tax Changes'!C20 -> RATE 5 - Interruptible Peaking Contract Rate | E21: ='E1.3 Proposed Rev From Rate'!O24 -> 49194.06438 | G21: ='B1.3 Current Rev From Rates'!O24 -> 48803.6353 | I21: 390.4290824 | K21: 390.4290824 | M21: ='F1.2 Alloc Shared Tax Changes'!K20 -> 4 | O21: ='E1.2 Billing Determinants'!L24 -> 553894 | Q21: 0.0705
C22: ='F1.2 Alloc Shared Tax Changes'!C21 -> RATE 6 - Integrated Grain Processors Co-Operative Aylmer Ethanol Production Facility | E22: ='E1.3 Proposed Rev From Rate'!O25 -> 1871704.236 | G22: ='B1.3 Current Rev From Rates'!O25 -> 1856849.441 | I22: 14854.79553 | K22: 14854.79553 | M22: ='F1.2 Alloc Shared Tax Changes'!K21 -> 1 | O22: ='E1.2 Billing Determinants'!J25+'E1.2 Billing Determinants'!K25 -> 40029658 | Q22: 0.0371
E23: =SUM(E17:E22) -> 7091594.439 | G23: =SUM(G17:G22) -> 7035311.943 | I23: =SUM(I17:I22) -> 56282.49554 | K23: =SUM(K17:K22) -> 56282.49554 | M23: =SUM(M17:M22) -> 8775 | O23: =SUM(O17:O22) -> 65006997
I24: =I23/G23 -> 0.008
C28: =MID(CELL("filename",A1),FIND("]",CELL("filename",A1))+1,255) -> F2.1 Deferred Revenue Recovery

Sheet F1.3 Proposed Rate Riders
C2: ='A1.1 Distributor Information'!C3 -> Name of LDC: EPCOR Natural Gas Limited Partnership
C3: ='A1.1 Distributor Information'!C4 -> OEB Application Number: EB-2018-0235 Exhibit C - 2018 IRM Application Amended October 24, 2018
C7: Proposed Shared Tax Rate Rider
C9: Description | E9: Shared Tax Changes | G9: Deferred Revenue Recovery
C10: Effective for 12 months until September 30, 2019 | G10: September 30, 2014
E11: $ Per Customer Per Month | G11: Per Customer Per Month
C12: Rate Group
C13: RATE 1 - General Service Rate - Residential | E13: ='F1.2 Alloc Shared Tax Changes'!$O$16 -> 0.1084 | G13: ='F2.1 Deferred Revenue Recovery'!Q17 -> 0.1811
C14: RATE 1 - General Service Rate - Commercial | E14: ='F1.2 Alloc Shared Tax Changes'!$O$16 -> 0.1084 | G14: =G13 -> 0.1811
C15: RATE 1 - General Service Rate - Industrial | E15: ='F1.2 Alloc Shared Tax Changes'!$O$16 -> 0.1084 | G15: =G14 -> 0.1811
C16: RATE 2 - Seasonal Service - Apr to Oct | E16: ='F1.2 Alloc Shared Tax Changes'!$O$17 -> 0.6908 | G16: ='F2.1 Deferred Revenue Recovery'!Q18 -> 0.0997
C17: RATE 2 - Seasonal Service - Nov to Mar | E17: ='F1.2 Alloc Shared Tax Changes'!$O$17 -> 0.6908 | G17: =G16 -> 0.0997
C18: RATE 3 - Special Large Volume Contract Rate | E18: ='F1.2 Alloc Shared Tax Changes'!$O$18 -> 5.6243 | G18: ='F2.1 Deferred Revenue Recovery'!Q19 -> 0.075
C19: RATE 4 - General Service Peaking - Apr to Dec | E19: ='F1.2 Alloc Shared Tax Changes'!$O$19 -> 0.8522 | G19: ='F2.1 Deferred Revenue Recovery'!Q20 -> 0.1331
C20: RATE 4 - General Service Peaking - Jan to Mar | E20: ='F1.2 Alloc Shared Tax Changes'!$O$19 -> 0.8522 | G20: =G19 -> 0.1331
C21: RATE 5 - Interruptible Peaking Contract Rate | E21: ='F1.2 Alloc Shared Tax Changes'!$O$20 -> 2.4643 | G21: ='F2.1 Deferred Revenue Recovery'!Q21 -> 0.0705
C22: RATE 6 - Integrated Grain Processors Co-Operative Aylmer Ethanol Production Facility | E22: ='F1.2 Alloc Shared Tax Changes'!$O$21 -> 375.0371 | G22: ='F2.1 Deferred Revenue Recovery'!Q22 -> 0.0371
C28: =MID(CELL("filename",A15),FIND("]",CELL("filename",A15))+1,255) -> F1.3 Proposed Rate Riders

Sheet E1.4 Impact of Oct Volume chang
P3: ='A1.1 Distributor Information'!C3 -> Name of LDC: EPCOR Natural Gas Limited Partnership
P4: ='A1.1 Distributor Information'!C4 -> OEB Application Number: EB-2018-0235 Exhibit C - 2018 IRM Application Amended October 24, 2018
C10: Proposed Distribution Tariff Sheet Rates
O12: Impact of October 24 Volume Change
O13: Comparison of revenue applied for July 27 version
C14: Rate Group | E14: Monthly Service Charge | F14: Delivery First 1,000 m3 | G14: Delivery Over 1,000 m3 | H14: Delivery Next 24,000 m3 | I14: Delivery Over 25,000 m3 | J14: Delivery - Firm | K14: Demand - Firm | L14: Commodity | M14: Delivery - Int - Lower | N14: Delivery - Int - Upper | O14: Rate Group | P14: Change in Revenue filed for July 27 | Q14: Change in Revenue filed Oct 24 | R14: Difference in revenue increase filed for | S14: Revenue at proposed rates and volumes | AE14: Old Rates at new volumes | AF14: Difference in Revenue Recovered | AG14: Annual $ Difference Per Customer | AH14: % of Annual Average Annual Bill
C15: RATE 1 - General Service Rate - Residential | E15: ='D1.1 Rate 1 Adjustment'!K17 -> 13.5 | F15: ='D1.1 Rate 1 Adjustment'!K18 -> 17.2452599 | G15: ='D1.1 Rate 1 Adjustment'!K19 -> 11.35189322 | L15: ='D1.1 Rate 1 Adjustment'!K20 -> 0.0363 | O15: RATE 1 - General Service Rate | P15: 39917 | Q15: ='E1.3 Proposed Rev From Rate'!O16+'E1.3 Proposed Rev From Rate'!O17+'E1.3 Proposed Rev From Rate'!O18-'B1.3 Current Rev From Rates'!O16-'B1.3 Current Rev From Rates'!O17-'B1.3 Current Rev From Rates'!O18 -> 37257.99239 | R15: =Q15-P15 -> -2659.007614 | S15: =SUM(T15:AC15)+SUM(T16:AC16)+SUM(T17:AC17) -> 4694507.041 | T15: =(E15*'E1.2 Billing Determinants'!E16)*12 -> 1319976 | U15: =(F15*'E1.2 Billing Determinants'!F16)/100 -> 2392951.14 | V15: =(G15*'E1.2 Billing Determinants'!G16)/100 -> 93443.28141 | W15: =(H15*'E1.2 Billing Determinants'!H16)/100 -> 0 | X15: =(I15*'E1.2 Billing Determinants'!I16)/100 -> 0 | Y15: =(J15*'E1.2 Billing Determinants'!J16)/100 -> 0 | Z15: =(K15*'E1.2 Billing Determinants'!K16)/100 -> 0 | AA15: =(L15*'E1.2 Billing Determinants'!L16)/100 -> 5335.789635 | AB15: =(M15*'E1.2 Billing Determinants'!M16)/100 -> 0 | AC15: =(N15*'E1.2 Billing Determinants'!N16)/100 -> 0 | AE15: =SUM(T31:AF31)+SUM(T32:AF32)+SUM(T33:AF33) -> 4689471.594 | AF15: =S15-AE15 -> 5035.447055 | AG15: =R15/('E1.2 Billing Determinants'!E16+'E1.2 Billing Determinants'!E17+'E1.2 Billing Determinants'!E18) -> -0.3064785171 | AH15: =AG15/(AE15/'E1.2 Billing Determinants'!E16) -> -0.0005325092406
C16: RATE 1 - General Service Rate - Commercial | E16: ='D1.1 Rate 1 Adjustment'!K17 -> 13.5 | F16: ='D1.1 Rate 1 Adjustment'!K18 -> 17.2452599 | G16: ='D1.1 Rate 1 Adjustment'!K19 -> 11.35189322 | L16: ='D1.1 Rate 1 Adjustment'!K20 -> 0.0363 | O16: RATE 2 - Seasonal Service | P16: 1050 | Q16: ='E1.3 Proposed Rev From Rate'!O19+'E1.3 Proposed Rev From Rate'!O20-'B1.3 Current Rev From Rates'!O19-'B1.3 Current Rev From Rates'!O20 -> 1450.236733 | R16: =Q16-P16 -> 400.2367335 | S16: =SUM(T18:AC18)+SUM(T19:AC19) -> 182729.8284 | T16: =(E16*'E1.2 Billing Determinants'!E17)*12 -> 74844 | U16: =(F16*'E1.2 Billing Determinants'!F17)/100 -> 317876.28 | V16: =(G16*'E1.2 Billing Determinants'!G17)/100 -> 281920.6863 | W16: =(H16*'E1.2 Billing Determinants'!H17)/100 -> 0 | X16: =(I16*'E1.2 Billing Determinants'!I17)/100 -> 0 | Y16: =(J16*'E1.2 Billing Determinants'!J17)/100 -> 0 | Z16: =(K16*'E1.2 Billing Determinants'!K17)/100 -> 0 | AA16: =(L16*'E1.2 Billing Determinants'!L17)/100 -> 1570.605168 | AB16: =(M16*'E1.2 Billing Determinants'!M17)/100 -> 0 | AC16: =(N16*'E1.2 Billing Determinants'!N17)/100 -> 0 | AE16: =SUM(T34:AF34)+SUM(T35:AF35) -> 183657.9979 | AF16: =S16-AE16 -> -928.1694656 | AG16: =R16/'E1.2 Billing Determinants'!E19 -> 7.551636481 | AH16: =AG16/(AE16/'E1.2 Billing Determinants'!E17) -> 0.01899648311
C17: RATE 1 - General Service Rate - Industrial | E17: ='D1.1 Rate 1 Adjustment'!K17 -> 13.5 | F17: ='D1.1 Rate 1 Adjustment'!K18 -> 17.2452599 | G17: ='D1.1 Rate 1 Adjustment'!K19 -> 11.35189322 | L17: ='D1.1 Rate 1 Adjustment'!K20 -> 0.0363 | O17: RATE 3 - Special Large Volume Contract Rate | P17: 843 | Q17: ='E1.3 Proposed Rev From Rate'!O21-'B1.3 Current Rev From Rates'!O21 -> 1113.85304 | R17: 270.8530404 | S17: =SUM(T20:AC20) -> 140345.4831 | T17: =(E17*'E1.2 Billing Determinants'!E18)*12 -> 10692 | U17: =(F17*'E1.2 Billing Determinants'!F18)/100 -> 58405.69901 | V17: =(G17*'E1.2 Billing Determinants'!G18)/100 -> 136930.7558 | W17: =(H17*'E1.2 Billing Determinants'!H18)/100 -> 0 | X17: =(I17*'E1.2 Billing Determinants'!I18)/100 -> 0 | Y17: =(J17*'E1.2 Billing Determinants'!J18)/100 -> 0 | Z17: =(K17*'E1.2 Billing Determinants'!K18)/100 -> 0 | AA17: =(L17*'E1.2 Billing Determinants'!L18)/100 -> 560.803782 | AB17: =(M17*'E1.2 Billing Determinants'!M18)/100 -> 0 | AC17: =(N17*'E1.2 Billing Determinants'!N18)/100 -> 0 | AE17: =SUM(T36:AF36) -> 143947.488 | AF17: -3602.004865 | AG17: =R17/'E1.2 Billing Determinants'!E21 -> 54.17060808 | AH17: =AG17/(AE17/'E1.2 Billing Determinants'!E18) -> 0.0248372527
C18: RATE 2 - Seasonal Service - Apr to Oct | E18: ='D1.2 Rate 2 Adjustment'!K17 -> 15 | F18: ='D1.2 Rate 2 Adjustment'!K18 -> 17.6428509 | H18: ='D1.2 Rate 2 Adjustment'!K19 -> 9.4826 | I18: ='D1.2 Rate 2 Adjustment'!K20 -> 6.1698 | L18: ='D1.2 Rate 2 Adjustment'!K24 -> 0.0363 | O18: RATE 4 - General Service Peaking | P18: 1032 | Q18: ='E1.3 Proposed Rev From Rate'!O22+'E1.3 Proposed Rev From Rate'!O23-'B1.3 Current Rev From Rates'!O23-'B1.3 Current Rev From Rates'!O22 -> 1215.188777 | R18: 183.1887766 | S18: =SUM(T21:AC21)+SUM(T22:AC22) -> 153113.7858 | T18: =(E18*'E1.2 Billing Determinants'!E19)*12 -> 9540 | U18: =(F18*'E1.2 Billing Determinants'!F19)/100 -> 67623.97679 | V18: =(G18*'E1.2 Billing Determinants'!G19)/100 -> 0 | W18: =(H18*'E1.2 Billing Determinants'!H19)/100 -> 96789.28402 | X18: =(I18*'E1.2 Billing Determinants'!I19)/100 -> 0 | Y18: =(J18*'E1.2 Billing Determinants'!J19)/100 -> 0 | Z18: =(K18*'E1.2 Billing Determinants'!K19)/100 -> 0 | AA18: =(L18*'E1.2 Billing Determinants'!L19)/100 -> 509.651274 | AB18: =(M18*'E1.2 Billing Determinants'!M19)/100 -> 0 | AC18: =(N18*'E1.2 Billing Determinants'!N19)/100 -> 0 | AE18: =SUM(T37:AF37)+SUM(T38:AF38) -> 151464.0923 | AF18: 1649.693576 | AG18: =R18/'E1.2 Billing Determinants'!E22 -> 5.088577127 | AH18: =AG18/(AE18/'E1.2 Billing Determinants'!E19) -> 0.00178058432
C19: RATE 2 - Seasonal Service - Nov to Mar | E19: ='D1.2 Rate 2 Adjustment'!K17 -> 15 | F19: ='D1.2 Rate 2 Adjustment'!K21 -> 22.23856532 | H19: ='D1.2 Rate 2 Adjustment'!K22 -> 15.696 | I19: ='D1.2 Rate 2 Adjustment'!K23 -> 15.2899 | L19: ='D1.2 Rate 2 Adjustment'!K24 -> 0.0363 | O19: RATE 5 - Interruptible Peaking Contract Rate | P19: 410 | Q19: ='E1.3 Proposed Rev From Rate'!O24-'B1.3 Current Rev From Rates'!O24 -> 390.4290824 | R19: -19.57091763 | S19: =SUM(T23:AC23) -> 49194.06438 | U19: =(F19*'E1.2 Billing Determinants'!F20)/100 -> 1282.550633 | V19: =(G19*'E1.2 Billing Determinants'!G20)/100 -> 0 | W19: =(H19*'E1.2 Billing Determinants'!H20)/100 -> 6966.161616 | X19: =(I19*'E1.2 Billing Determinants'!I20)/100 -> 0 | Y19: =(J19*'E1.2 Billing Determinants'!J20)/100 -> 0 | Z19: =(K19*'E1.2 Billing Determinants'!K20)/100 -> 0 | AA19: =(L19*'E1.2 Billing Determinants'!L20)/100 -> 18.204087 | AB19: =(M19*'E1.2 Billing Determinants'!M20)/100 -> 0 | AC19: =(N19*'E1.2 Billing Determinants'!N20)/100 -> 0 | AE19: =SUM(T39:AF39) -> 49177.96458 | AF19: 16.09980086 | AG19: =R19/'E1.2 Billing Determinants'!E24 -> -4.892729407 | AH19: =AG19/(AE19/'E1.2 Billing Determinants'!E20) -> -0.005272984777
C20: RATE 3 - Special Large Volume Contract Rate | E20: ='D1.3 Rate 3 Adjustment'!K17 -> 150 | J20: ='D1.3 Rate 3 Adjustment'!K18 -> 4.403534144 | K20: ='D1.3 Rate 3 Adjustment'!K19 -> 29.0974 | L20: ='D1.3 Rate 3 Adjustment'!K20 -> 0.0363 | M20: ='B1.1 Current Distribution Rates'!M21 -> 7.9412 | N20: ='B1.1 Current Distribution Rates'!N21 -> 10.9612 | O20: RATE 6 - Integrated Grain Processors Co-Operative Aylmer Ethanol Production Facility | P20: 14855 | Q20: ='E1.3 Proposed Rev From Rate'!O25-'B1.3 Current Rev From Rates'!O25 -> 14854.79553 | R20: -0.2044742135 | S20: =SUM(T24:AC24) -> 1871704.236 | T20: =(E20*'E1.2 Billing Determinants'!E21)*12 -> 9000 | U20: =(F20*'E1.2 Billing Determinants'!F21)/100 -> 0 | V20: =(G20*'E1.2 Billing Determinants'!G21)/100 -> 0 | W20: =(H20*'E1.2 Billing Determinants'!H21)/100 -> 0 | X20: =(I20*'E1.2 Billing Determinants'!I21)/100 -> 0 | Y20: =(J20*'E1.2 Billing Determinants'!J21)/100 -> 65417.67026 | Z20: =(K20*'E1.2 Billing Determinants'!K21)/100 -> 65388.5502 | AA20: =(L20*'E1.2 Billing Determinants'!L21)/100 -> 539.262636 | AB20: =(M20*'E1.2 Billing Determinants'!M21)/100 -> 0 | AC20: =(N20*'E1.2 Billing Determinants'!N21)/100 -> 0 | AE20: =S20 -> 1871704.236 | AF20: 0 | AG20: =R20/'E1.2 Billing Determinants'!E25*0 -> 0 | AH20: =AG20/(AE20/'E1.2 Billing Determinants'!E21) -> 0
C21: RATE 4 - General Service Peaking - Apr to Dec | E21: ='D1.4 Rate 4 Adjustment'!K17 -> 15 | F21: ='D1.4 Rate 4 Adjustment'!K18 -> 17.40847394 | G21: ='D1.4 Rate 4 Adjustment'!K19 -> 10.5218 | L21: ='D1.4 Rate 4 Adjustment'!K22 -> 0.0363 | P21: =SUM(P15:P20) -> 58107 | Q21: =SUM(Q15:Q20) -> 56282.49554 | R21: -1824.504456 | S21: =SUM(S15:S20) -> 7091594.439 | T21: =(E21*'E1.2 Billing Determinants'!E22)*12 -> 6480 | U21: =(F21*'E1.2 Billing Determinants'!F22)/100 -> 40247.51177 | V21: =(G21*'E1.2 Billing Determinants'!G22)/100 -> 24946.56227 | W21: =(H21*'E1.2 Billing Determinants'!H22)/100 -> 0 | X21: =(I21*'E1.2 Billing Determinants'!I22)/100 -> 0 | Y21: =(J21*'E1.2 Billing Determinants'!J22)/100 -> 0 | Z21: =(K21*'E1.2 Billing Determinants'!K22)/100 -> 0 | AA21: =(L21*'E1.2 Billing Determinants'!L22)/100 -> 169.988907 | AB21: =(M21*'E1.2 Billing Determinants'!M22)/100 -> 0 | AC21: =(N21*'E1.2 Billing Determinants'!N22)/100 -> 0 | AE21: =SUM(AE15:AE20) -> 7089423.372 | AF21: 2171.066101
C22: RATE 4 - General Service Peaking - Jan to Mar | E22: ='D1.4 Rate 4 Adjustment'!K17 -> 15 | F22: ='D1.4 Rate 4 Adjustment'!K20 -> 22.20846581 | G22: ='D1.4 Rate 4 Adjustment'!K21 -> 16.9052 | L22: ='D1.4 Rate 4 Adjustment'!K22 -> 0.0363 | U22: =(F22*'E1.2 Billing Determinants'!F23)/100 -> 24877.84009 | V22: =(G22*'E1.2 Billing Determinants'!G23)/100 -> 56230.47776 | W22: =(H22*'E1.2 Billing Determinants'!H23)/100 -> 0 | X22: =(I22*'E1.2 Billing Determinants'!I23)/100 -> 0 | Y22: =(J22*'E1.2 Billing Determinants'!J23)/100 -> 0 | Z22: =(K22*'E1.2 Billing Determinants'!K23)/100 -> 0 | AA22: =(L22*'E1.2 Billing Determinants'!L23)/100 -> 161.405046 | AB22: =(M22*'E1.2 Billing Determinants'!M23)/100 -> 0 | AC22: =(N22*'E1.2 Billing Determinants'!N23)/100 -> 0
C23: RATE 5 - Interruptible Peaking Contract Rate | E23: ='D1.5 Rate 5 Adjustment'!K17 -> 150 | J23: ='D1.5 Rate 5 Adjustment'!K18 -> 7.545306657 | K23: 1 | L23: ='D1.5 Rate 5 Adjustment'!K19 -> 0.0363 | M23: ='B1.1 Current Distribution Rates'!M24 -> 5.4612 | N23: ='B1.1 Current Distribution Rates'!N24 -> 8.4612 | T23: =(E23*'E1.2 Billing Determinants'!E24)*12 -> 7200 | U23: =(F23*'E1.2 Billing Determinants'!F24)/100 -> 0 | V23: =(G23*'E1.2 Billing Determinants'!G24)/100 -> 0 | W23: =(H23*'E1.2 Billing Determinants'!H24)/100 -> 0 | X23: =(I23*'E1.2 Billing Determinants'!I24)/100 -> 0 | Y23: =(J23*'E1.2 Billing Determinants'!J24)/100 -> 41793.00086 | Z23: =(K23*'E1.2 Billing Determinants'!K24)/100 -> 0 | AA23: =(L23*'E1.2 Billing Determinants'!L24)/100 -> 201.063522 | AB23: =(M23*'E1.2 Billing Determinants'!M24)/100 -> 0 | AC23: =(N23*'E1.2 Billing Determinants'!N24)/100 -> 0
C24: RATE 6 - Integrated Grain Processors Co-Operative Aylmer Ethanol Production Facility | E24: ='D1.6 Rate 6 Adjustment'!K17 -> 150 | J24: ='D1.6 Rate 6 Adjustment'!K18 -> 4.047161206 | K24: ='D1.6 Rate 6 Adjustment'!K19 -> 19.60243326 | M24: ='B1.1 Current Distribution Rates'!M25 -> 7.9412 | N24: ='B1.1 Current Distribution Rates'!N25 -> 10.9612 | T24: =(E24*'E1.2 Billing Determinants'!E25)*12 -> 1800 | U24: =(F24*'E1.2 Billing Determinants'!F25)/100 -> 0 | V24: =(G24*'E1.2 Billing Determinants'!G25)/100 -> 0 | W24: =(H24*'E1.2 Billing Determinants'!H25)/100 -> 0 | X24: =(I24*'E1.2 Billing Determinants'!I25)/100 -> 0 | Y24: =(J24*'E1.2 Billing Determinants'!J25)/100 -> 1555061.715 | Z24: =(K24*'E1.2 Billing Determinants'!K25)/100 -> 314842.5216 | AA24: =(L24*'E1.2 Billing Determinants'!L25)/100 -> 0 | AB24: =(M24*'E1.2 Billing Determinants'!M25)/100 -> 0 | AC24: =(N24*'E1.2 Billing Determinants'!N25)/100 -> 0
T25: =SUM(T15:T24) -> 1439532 | U25: =SUM(U15:U24) -> 2903264.998 | V25: =SUM(V15:V24) -> 593471.7635 | W25: 103755.4456 | X25: 0 | Y25: 1662272.386 | Z25: 380231.0718 | AA25: 9066.774057 | AB25: 0 | AC25: 0
C26: 1 Placeholder rate for average application
C29: Old Proposed Distribution rates filed July 27 | O29: =MID(CELL("filename",M16),FIND("]",CELL("filename",M16))+1,255) -> E1.4 Impact of Oct Volume chang
C30: Rate Group | E30: Monthly Service Charge | F30: Delivery First 1,000 m3 | G30: Delivery Over 1,000 m3 | H30: Delivery Next 24,000 m3 | I30: Delivery Over 25,000 m3 | J30: Delivery - Firm | K30: Demand - Firm | L30: Commodity | M30: Delivery - Int - Lower | N30: Delivery - Int - Upper
C31: RATE 1 - General Service Rate - Residential | E31: 13.5 | F31: 17.2139 | G31: 11.3519 | L31: 0.0363 | T31: =E31*'E1.2 Billing Determinants'!E16*12 -> 1319976 | U31: =F31*'E1.2 Billing Determinants'!F16/100 -> 2388599.642 | V31: =G31*'E1.2 Billing Determinants'!G16/100 -> 93443.33726 | W31: =H31*'E1.2 Billing Determinants'!H16/100 -> 0 | X31: =I31*'E1.2 Billing Determinants'!I16/100 -> 0 | Y31: =J31*'E1.2 Billing Determinants'!J16/100 -> 0 | Z31: =K31*'E1.2 Billing Determinants'!K16/100 -> 0 | AA31: =L31*'E1.2 Billing Determinants'!L16/100 -> 5335.789635 | AB31: =M31*'E1.2 Billing Determinants'!M16/100 -> 0 | AC31: =N31*'E1.2 Billing Determinants'!N16/100 -> 0
C32: RATE 1 - General Service Rate - Commercial | E32: 13.5 | F32: 17.2139 | G32: 11.3519 | L32: 0.0363 | T32: =E32*'E1.2 Billing Determinants'!E17*12 -> 74844 | U32: =F32*'E1.2 Billing Determinants'!F17/100 -> 317298.2331 | V32: =G32*'E1.2 Billing Determinants'!G17/100 -> 281920.8548 | W32: =H32*'E1.2 Billing Determinants'!H17/100 -> 0 | X32: =I32*'E1.2 Billing Determinants'!I17/100 -> 0 | Y32: =J32*'E1.2 Billing Determinants'!J17/100 -> 0 | Z32: =K32*'E1.2 Billing Determinants'!K17/100 -> 0 | AA32: =L32*'E1.2 Billing Determinants'!L17/100 -> 1570.605168 | AB32: =M32*'E1.2 Billing Determinants'!M17/100 -> 0 | AC32: =N32*'E1.2 Billing Determinants'!N17/100 -> 0
C33: RATE 1 - General Service Rate - Industrial | E33: 13.5 | F33: 17.2139 | G33: 11.3519 | L33: 0.0363 | T33: =E33*'E1.2 Billing Determinants'!E18*12 -> 10692 | U33: =F33*'E1.2 Billing Determinants'!F18/100 -> 58299.49029 | V33: =G33*'E1.2 Billing Determinants'!G18/100 -> 136930.8377 | W33: =H33*'E1.2 Billing Determinants'!H18/100 -> 0 | X33: =I33*'E1.2 Billing Determinants'!I18/100 -> 0 | Y33: =J33*'E1.2 Billing Determinants'!J18/100 -> 0 | Z33: =K33*'E1.2 Billing Determinants'!K18/100 -> 0 | AA33: =L33*'E1.2 Billing Determinants'!L18/100 -> 560.803782 | AB33: =M33*'E1.2 Billing Determinants'!M18/100 -> 0 | AC33: =N33*'E1.2 Billing Determinants'!N18/100 -> 0
C34: RATE 2 - Seasonal Service - Apr to Oct | E34: 15 | F34: 17.8805 | H34: 9.4826 | I34: 6.1698 | L34: 0.0363 | T34: =E34*'E1.2 Billing Determinants'!E19*12 -> 9540 | U34: =F34*'E1.2 Billing Determinants'!F19/100 -> 68534.87138 | V34: =G34*'E1.2 Billing Determinants'!G19/100 -> 0 | W34: =H34*'E1.2 Billing Determinants'!H19/100 -> 96789.28402 | X34: =I34*'E1.2 Billing Determinants'!I19/100 -> 0 | Y34: =J34*'E1.2 Billing Determinants'!J19/100 -> 0 | Z34: =K34*'E1.2 Billing Determinants'!K19/100 -> 0 | AA34: =L34*'E1.2 Billing Determinants'!L19/100 -> 509.651274 | AB34: =M34*'E1.2 Billing Determinants'!M19/100 -> 0 | AC34: =N34*'E1.2 Billing Determinants'!N19/100 -> 0
C35: RATE 2 - Seasonal Service - Nov to Mar | E35: 15 | F35: 22.5381 | H35: 15.696 | I35: 15.2899 | L35: 0.0363 | U35: =F35*'E1.2 Billing Determinants'!F20/100 -> 1299.825506 | V35: =G35*'E1.2 Billing Determinants'!G20/100 -> 0 | W35: =H35*'E1.2 Billing Determinants'!H20/100 -> 6966.161616 | X35: =I35*'E1.2 Billing Determinants'!I20/100 -> 0 | Y35: =J35*'E1.2 Billing Determinants'!J20/100 -> 0 | Z35: =K35*'E1.2 Billing Determinants'!K20/100 -> 0 | AA35: =L35*'E1.2 Billing Determinants'!L20/100 -> 18.204087 | AB35: =M35*'E1.2 Billing Determinants'!M20/100 -> 0 | AC35: =N35*'E1.2 Billing Determinants'!N20/100 -> 0
C36: RATE 3 - Special Large Volume Contract Rate | E36: 150 | J36: 4.646 | K36: 29.0974 | L36: 0.0363 | M36: 7.9412 | N36: 10.9612 | T36: =E36*'E1.2 Billing Determinants'!E21*12 -> 9000 | U36: =F36*'E1.2 Billing Determinants'!F21/100 -> 0 | V36: =G36*'E1.2 Billing Determinants'!G21/100 -> 0 | W36: =H36*'E1.2 Billing Determinants'!H21/100 -> 0 | X36: =I36*'E1.2 Billing Determinants'!I21/100 -> 0 | Y36: =J36*'E1.2 Billing Determinants'!J21/100 -> 69019.67512 | Z36: =K36*'E1.2 Billing Determinants'!K21/100 -> 65388.5502 | AA36: =L36*'E1.2 Billing Determinants'!L21/100 -> 539.262636 | AB36: =M36*'E1.2 Billing Determinants'!M21/100 -> 0 | AC36: =N36*'E1.2 Billing Determinants'!N21/100 -> 0
C37: RATE 4 - General Service Peaking - Apr to Dec | E37: 15 | F37: 16.9675 | G37: 10.5218 | L37: 0.0363 | T37: =E37*'E1.2 Billing Determinants'!E22*12 -> 6480 | U37: =F37*'E1.2 Billing Determinants'!F22/100 -> 39228.00231 | V37: =G37*'E1.2 Billing Determinants'!G22/100 -> 24946.56227 | W37: =H37*'E1.2 Billing Determinants'!H22/100 -> 0 | X37: =I37*'E1.2 Billing Determinants'!I22/100 -> 0 | Y37: =J37*'E1.2 Billing Determinants'!J22/100 -> 0 | Z37: =K37*'E1.2 Billing Determinants'!K22/100 -> 0 | AA37: =L37*'E1.2 Billing Determinants'!L22/100 -> 169.988907 | AB37: =M37*'E1.2 Billing Determinants'!M22/100 -> 0 | AC37: =N37*'E1.2 Billing Determinants'!N22/100 -> 0
C38: RATE 4 - General Service Peaking - Jan to Mar | E38: 15 | F38: 21.6459 | G38: 16.9052 | L38: 0.0363 | U38: =F38*'E1.2 Billing Determinants'!F23/100 -> 24247.65598 | V38: =G38*'E1.2 Billing Determinants'!G23/100 -> 56230.47776 | W38: =H38*'E1.2 Billing Determinants'!H23/100 -> 0 | X38: =I38*'E1.2 Billing Determinants'!I23/100 -> 0 | Y38: =J38*'E1.2 Billing Determinants'!J23/100 -> 0 | Z38: =K38*'E1.2 Billing Determinants'!K23/100 -> 0 | AA38: =L38*'E1.2 Billing Determinants'!L23/100 -> 161.405046 | AB38: =M38*'E1.2 Billing Determinants'!M23/100 -> 0 | AC38: =N38*'E1.2 Billing Determinants'!N23/100 -> 0
C39: RATE 5 - Interruptible Peaking Contract Rate | E39: 150 | J39: 7.5424 | K39: 1 | L39: 0.0363 | M39: 5.4612 | N39: 8.4612 | T39: =E39*'E1.2 Billing Determinants'!E24*12 -> 7200 | U39: =F39*'E1.2 Billing Determinants'!F24/100 -> 0 | V39: =G39*'E1.2 Billing Determinants'!G24/100 -> 0 | W39: =H39*'E1.2 Billing Determinants'!H24/100 -> 0 | X39: =I39*'E1.2 Billing Determinants'!I24/100 -> 0 | Y39: =J39*'E1.2 Billing Determinants'!J24/100 -> 41776.90106 | Z39: =K39*'E1.2 Billing Determinants'!K24/100 -> 0 | AA39: =L39*'E1.2 Billing Determinants'!L24/100 -> 201.063522 | AB39: =M39*'E1.2 Billing Determinants'!M24/100 -> 0 | AC39: =N39*'E1.2 Billing Determinants'!N24/100 -> 0
C40: RATE 6 - Integrated Grain Processors Co-Operative Aylmer Ethanol Production Facility | E40: 150 | J40: 4.0472 | K40: 19.6024 | M40: 7.9412 | N40: 10.9612 | T40: =E40*'E1.2 Billing Determinants'!E25*12 -> 1800 | U40: =F40*'E1.2 Billing Determinants'!F25/100 -> 0 | V40: =G40*'E1.2 Billing Determinants'!G25/100 -> 0 | W40: =H40*'E1.2 Billing Determinants'!H25/100 -> 0 | X40: =I40*'E1.2 Billing Determinants'!I25/100 -> 0 | Y40: =J40*'E1.2 Billing Determinants'!J25/100 -> 1555076.62 | Z40: =K40*'E1.2 Billing Determinants'!K25/100 -> 314841.9874 | AA40: =L40*'E1.2 Billing Determinants'!L25/100 -> 0 | AB40: =M40*'E1.2 Billing Determinants'!M25/100 -> 0 | AC40: =N40*'E1.2 Billing Determinants'!N25/100 -> 0
T41: =SUM(T31:T40) -> 1439532 | U41: =SUM(U31:U40) -> 2897507.72 | V41: 593472.0697 | W41: 103755.4456 | X41: 0 | Y41: 1665873.197 | Z41: 380230.5376 | AA41: 9066.774057 | AB41: 0 | AC41: 0
C42: 1 Placeholder rate for average application
C47: =MID(CELL("filename",A1),FIND("]",CELL("filename",A1))+1,255) -> E1.4 Impact of Oct Volume chang

Sheet G1.1 Rate 1 Bill Impact
C2: ='A1.1 Distributor Information'!C3 -> Name of LDC: EPCOR Natural Gas Limited Partnership
C3: ='A1.1 Distributor Information'!C4 -> OEB Application Number: EB-2018-0235 Exhibit C - 2018 IRM Application Amended October 24, 2018
C7: Rate 1 Delivery Bill Impact
C10: Rate 1 - Residential | F10: Current Rate | H10: Proposed Rate
C12: Customer | F12: ='B1.1 Current Distribution Rates'!E16 -> 13.5 | H12: ='E1.1 Proposed Dist Rates '!E16 -> 13.5
C13: Block 1 (First 1,000 m3 per month) | F13: ='B1.1 Current Distribution Rates'!F16 -> 17.03855739 | H13: ='E1.1 Proposed Dist Rates '!F16 -> 17.2452599
C14: Block 2 (Over 1,000 m3 per month) | F14: ='B1.1 Current Distribution Rates'!G16 -> 11.26179882 | H14: ='E1.1 Proposed Dist Rates '!G16 -> 11.35189322
C15: System Gas Charge | F15: ='B1.1 Current Distribution Rates'!L16 -> 0.0363 | H15: ='E1.1 Proposed Dist Rates '!L16 -> 0.0363
C17: Rate Riders
C18: Shared Tax Changes 2017 | F18: ='C1.1 Current Rate Riders'!$E$16 -> 0.1084
C19: Shared Tax Changes 2018 | H19: =ROUND('F1.3 Proposed Rate Riders'!$E$13,4) -> 0.1084
C21: Average Annual Consumption
C22: Block 1 (First 1,000 m3 per month) | E22: =ROUND('B1.2 Billing Determinants'!F16/'B1.2 Billing Determinants'!E16,0) -> 1703
C23: Block 2 (Over 1,000 m3 per month) | E23: =ROUND('B1.2 Billing Determinants'!G16/'B1.2 Billing Determinants'!E16,0) -> 101
C25: Delivery | E25: Metric | F25: Current Rate | H25: Proposed Rate | J25: Change $ | L25: Change %
C26: Customer | E26: 12 | F26: =F12*E26 -> 162 | H26: =H12*E26 -> 162 | J26: =H26-F26 -> 0 | L26: =IF(ISERROR(J26/F26),0,J26/F26) -> 0
C27: Block 1 (First 1,000 m3 per month) | E27: =E22 -> 1703 | F27: =F13*E27/100 -> 290.1666323 | H27: =H13*E27/100 -> 293.6867761 | J27: =H27-F27 -> 3.520143813 | L27: =IF(ISERROR(J27/F27),0,J27/F27) -> 0.01213145628
C28: Block 2 (Over 1,000 m3 per month) | E28: =E23 -> 101 | F28: =F14*E28/100 -> 11.37441681 | H28: =H14*E28/100 -> 11.46541215 | J28: 0.0909953345 | L28: =IF(ISERROR(J28/F28),0,J28/F28) -> 0.008
C29: System Gas Charge | E29: =SUM(E27:E28) -> 1804 | F29: =ROUND(F15*E29/100,2) -> 0.65 | H29: =ROUND(H15*E29/100,2) -> 0.65 | J29: 0 | L29: =IF(ISERROR(J29/F29),0,J29/F29) -> 0
C30: Total Delivery | F30: =SUM(F26:F29) -> 464.1910491 | H30: =SUM(H26:H29) -> 467.8021882 | J30: 3.611139147 | L30: =IF(ISERROR(J30/F30),0,J30/F30) -> 0.007779424343
C32: Rate Riders
C34: Rate Riders | E34: Metric | F34: Current Rate | H34: Proposed Rate | J34: Change $ | L34: Change %
C35: =$C$18 -> Shared Tax Changes 2017 | E35: 12 | F35: =F18*E35 -> 1.3008 | H35: 0 | J35: =H35-F35 -> -1.3008 | L35: =IF(ISERROR(J35/F35),1,J35/F35) -> -1
C36: =$C$19 -> Shared Tax Changes 2018 | E36: 12 | F36: 0 | H36: =H19*E36 -> 1.3008 | J36: =H36-F36 -> 1.3008 | L36: =IF(ISERROR(J36/F36),1,J36/F36) -> 1
C37: Total Rate Riders | F37: =SUM(F35:F36) -> 1.3008 | H37: =SUM(H35:H36) -> 1.3008 | J37: =SUM(J35:J36) -> 0 | L37: =IF(ISERROR(J37/F37),0,J37/F37) -> 0
C39: Total Bill Impact | F39: =SUM(F30,F37) -> 465.4918491 | H39: =SUM(H30,H37) -> 469.1029882 | J39: =SUM(J30,J37) -> 3.611139147 | L39: =IF(ISERROR(J39/F39),0,J39/F39) -> 0.007757685026
C42: =MID(CELL("filename",A1),FIND("]",CELL("filename",A1))+1,255) -> G1.1 Rate 1 Bill Impact
C44: Rate 1 Delivery Bill Impact
C46: Rate 1 - Commercial | F46: Current Rate | H46: Proposed Rate
C48: Customer | F48: ='B1.1 Current Distribution Rates'!E17 -> 13.5 | H48: ='E1.1 Proposed Dist Rates '!E17 -> 13.5
C49: Block 1 (First 1,000 m3 per month) | F49: ='B1.1 Current Distribution Rates'!F17 -> 17.03855739 | H49: ='E1.1 Proposed Dist Rates '!F17 -> 17.2452599
C50: Block 2 (Over 1,000 m3 per month) | F50: ='B1.1 Current Distribution Rates'!G17 -> 11.26179882 | H50: ='E1.1 Proposed Dist Rates '!G17 -> 11.35189322
C51: System Gas Charge | F51: ='B1.1 Current Distribution Rates'!L16 -> 0.0363 | H51: ='E1.1 Proposed Dist Rates '!L17 -> 0.0363
C53: Rate Riders
C54: =$C$18 -> Shared Tax Changes 2017 | F54: ='C1.1 Current Rate Riders'!$E$17 -> 0.1084
C55: =$C$19 -> Shared Tax Changes 2018 | H55: =ROUND('F1.3 Proposed Rate Riders'!E14,4) -> 0.1084
C57: Average Annual Consumption
C58: Block 1 (First 1,000 m3 per month) | E58: =ROUND('B1.2 Billing Determinants'!F17/'B1.2 Billing Determinants'!E17,0) -> 3990
C59: Block 2 (Over 1,000 m3 per month) | E59: =ROUND('B1.2 Billing Determinants'!G17/'B1.2 Billing Determinants'!E17,0) -> 5375
E61: Metric | F61: Current Rate | H61: Proposed Rate | J61: Change $ | L61: Change %
C62: Customer | E62: 12 | F62: =F48*E62 -> 162 | H62: =H48*E62 -> 162 | J62: =H62-F62 -> 0 | L62: =IF(ISERROR(J62/F62),0,J62/F62) -> 0
C63: Block 1 (First 1,000 m3 per month) | E63: =E58 -> 3990 | F63: =F49*E63/100 -> 679.8384397 | H63: =H49*E63/100 -> 688.08587 | J63: =H63-F63 -> 8.247430307 | L63: =IF(ISERROR(J63/F63),0,J63/F63) -> 0.01213145628
C64: Block 2 (Over 1,000 m3 per month) | E64: =E59 -> 5375 | F64: =F50*E64/100 -> 605.3216868 | H64: =H50*E64/100 -> 610.1642603 | J64: 4.842573495 | L64: =IF(ISERROR(J64/F64),0,J64/F64) -> 0.008
C65: System Gas Charge | E65: =SUM(E63:E64) -> 9365 | F65: =F51*E65/100 -> 3.399495 | H65: =H51*E65/100 -> 3.399495 | J65: 0 | L65: =IF(ISERROR(J65/F65),0,J65/F65) -> 0
C66: Total Delivery | F66: =SUM(F62:F65) -> 1450.559622 | H66: =SUM(H62:H65) -> 1463.649625 | J66: 13.0900038 | L66: =IF(ISERROR(J66/F66),0,J66/F66) -> 0.009024106012
C68: Rate Riders
C70: Rate Riders | E70: Metric | F70: Current Rate | H70: Proposed Rate | J70: Change $ | L70: Change %
C71: =$C$18 -> Shared Tax Changes 2017 | E71: 12 | F71: =F54*E71 -> 1.3008 | H71: 0 | J71: =H71-F71 -> -1.3008 | L71: =IF(ISERROR(J71/F71),1,J71/F71) -> -1
C72: =$C$19 -> Shared Tax Changes 2018 | E72: 12 | F72: 0 | H72: =H55*E72 -> 1.3008 | J72: =H72-F72 -> 1.3008 | L72: =IF(ISERROR(J72/F72),1,J72/F72) -> 1
C73: Total Rate Riders | F73: =SUM(F71:F72) -> 1.3008 | H73: =SUM(H71:H72) -> 1.3008 | J73: =SUM(J71:J72) -> 0 | L73: =IF(ISERROR(J73/F73),0,J73/F73) -> 0
C75: Total Bill Impact | F75: =SUM(F66,F73) -> 1451.860422 | H75: =SUM(H66,H73) -> 1464.950425 | J75: =SUM(J66,J73) -> 13.0900038 | L75: =IF(ISERROR(J75/F75),0,J75/F75) -> 0.009016020829
C78: =MID(CELL("filename",A34),FIND("]",CELL("filename",A34))+1,255) -> G1.1 Rate 1 Bill Impact
C83: Rate 1 Delivery Bill Impact
C85: Rate 1 - Industrial | F85: Current Rate | H85: Proposed Rate
C87: Customer | F87: ='B1.1 Current Distribution Rates'!E18 -> 13.5 | H87: ='E1.1 Proposed Dist Rates '!E18 -> 13.5
C88: Block 1 (First 1,000 m3 per month) | F88: ='B1.1 Current Distribution Rates'!F18 -> 17.03855739 | H88: ='E1.1 Proposed Dist Rates '!F18 -> 17.2452599
C89: Block 2 (Over 1,000 m3 per month) | F89: ='B1.1 Current Distribution Rates'!G18 -> 11.26179882 | H89: ='E1.1 Proposed Dist Rates '!G18 -> 11.35189322
C90: System Gas Charge | F90: ='B1.1 Current Distribution Rates'!L18 -> 0.0363 | H90: ='E1.1 Proposed Dist Rates '!L18 -> 0.0363
C92: Rate Riders
C93: =$C$18 -> Shared Tax Changes 2017 | F93: ='C1.1 Current Rate Riders'!E18 -> 0.1084
C94: =$C$19 -> Shared Tax Changes 2018 | H94: =ROUND('F1.3 Proposed Rate Riders'!E15,4) -> 0.1084
C96: Average Annual Consumption
C97: Block 1 (First 1,000 m3 per month) | E97: =ROUND('B1.2 Billing Determinants'!F18/'B1.2 Billing Determinants'!E18,0) -> 5131
C98: Block 2 (Over 1,000 m3 per month) | E98: =ROUND('B1.2 Billing Determinants'!G18/'B1.2 Billing Determinants'!E18,0) -> 18276
E100: Metric | F100: Current Rate | H100: Proposed Rate | J100: Change $ | L100: Change %
C101: Customer | E101: 12 | F101: =F87*E101 -> 162 | H101: =H87*E101 -> 162 | J101: =H101-F101 -> 0 | L101: =IF(ISERROR(J101/F101),0,J101/F101) -> 0
C102: Block 1 (First 1,000 m3 per month) | E102: =E97 -> 5131 | F102: =F88*E102/100 -> 874.2483795 | H102: =H88*E102/100 -> 884.8542855 | J102: =H102-F102 -> 10.60590599 | L102: =IF(ISERROR(J102/F102),0,J102/F102) -> 0.01213145628
C103: Block 2 (Over 1,000 m3 per month) | E103: =E98 -> 18276 | F103: =F89*E103/100 -> 2058.206353 | H103: =H89*E103/100 -> 2074.672004 | J103: 16.46565083 | L103: =IF(ISERROR(J103/F103),0,J103/F103) -> 0.008
C104: System Gas Charge | E104: =SUM(E102:E103) -> 23407 | F104: =F90*E104/100 -> 8.496741 | H104: =H90*E104/100 -> 8.496741 | J104: 0 | L104: =IF(ISERROR(J104/F104),0,J104/F104) -> 0
C105: Total Delivery | F105: =SUM(F101:F104) -> 3102.951474 | H105: =SUM(H101:H104) -> 3130.02303 | J105: 27.07155682 | L105: =IF(ISERROR(J105/F105),0,J105/F105) -> 0.008724453813
C107: Rate Riders
C109: Rate Riders | E109: Metric | F109: Current Rate | H109: Proposed Rate | J109: Change $ | L109: Change %
C110: =$C$18 -> Shared Tax Changes 2017 | E110: 12 | F110: =F93*E110 -> 1.3008 | H110: 0 | J110: =H110-F110 -> -1.3008 | L110: =IF(ISERROR(J110/F110),1,J110/F110) -> -1
C111: =$C$19 -> Shared Tax Changes 2018 | E111: 12 | F111: 0 | H111: =H94*E111 -> 1.3008 | J111: =H111-F111 -> 1.3008 | L111: =IF(ISERROR(J111/F111),1,J111/F111) -> 1
C112: Total Rate Riders | F112: =SUM(F110:F111) -> 1.3008 | H112: =SUM(H110:H111) -> 1.3008 | J112: =SUM(J110:J111) -> 0 | L112: =IF(ISERROR(J112/F112),0,J112/F112) -> 0
C114: Total Bill Impact | F114: =SUM(F105,F112) -> 3104.252274 | H114: =SUM(H105,H112) -> 3131.32383 | J114: =SUM(J105,J112) -> 27.07155682 | L114: =IF(ISERROR(J114/F114),0,J114/F114) -> 0.008720797935
C116: =MID(CELL("filename",A68),FIND("]",CELL("filename",A68))+1,255) -> G1.1 Rate 1 Bill Impact

Sheet G1.2 Rate 2 Bill Impact
C2: ='A1.1 Distributor Information'!C3 -> Name of LDC: EPCOR Natural Gas Limited Partnership
C3: ='A1.1 Distributor Information'!C4 -> OEB Application Number: EB-2018-0235 Exhibit C - 2018 IRM Application Amended October 24, 2018
C7: Rate 2 Delivery Bill Impact
C9: Rate 2 - April to October | F9: Current Rate | H9: Proposed Rate
C11: Customer | F11: ='B1.1 Current Distribution Rates'!E19 -> 15 | H11: ='E1.1 Proposed Dist Rates '!E19 -> 15
C12: Block 1 (First 1,000 m3 per month) | F12: ='B1.1 Current Distribution Rates'!F19 -> 17.27153179 | H12: ='E1.1 Proposed Dist Rates '!F19 -> 17.6428509
C13: Block 2 (Next 24,000 m3 per month) | F13: ='B1.1 Current Distribution Rates'!H19 -> 9.4826 | H13: ='E1.1 Proposed Dist Rates '!H19 -> 9.4826
C14: Block 3 (Over 25,000 m3 per month) | F14: ='B1.1 Current Distribution Rates'!I19 -> 6.1698 | H14: ='E1.1 Proposed Dist Rates '!I19 -> 6.1698
C15: System Gas Charge | F15: ='B1.1 Current Distribution Rates'!L19 -> 0.0363 | H15: ='E1.1 Proposed Dist Rates '!L20 -> 0.0363
C17: Rate Riders
C18: ='G1.1 Rate 1 Bill Impact'!$C$18 -> Shared Tax Changes 2017 | F18: ='C1.1 Current Rate Riders'!$E$19 -> 0.6908
C19: ='G1.1 Rate 1 Bill Impact'!$C$19 -> Shared Tax Changes 2018 | H19: =ROUND('F1.3 Proposed Rate Riders'!$E$16,4) -> 0.6908
C21: Average Seasonal Consumption
C22: Block 1 (First 1,000 m3 per month) | E22: =ROUND('B1.2 Billing Determinants'!F19/'B1.2 Billing Determinants'!E19,0) -> 7232
C23: Block 2 (Next 24,000 m3 per month) | E23: =ROUND('B1.2 Billing Determinants'!H19/'B1.2 Billing Determinants'!E19,0) -> 19259
C24: Block 3 (Over 25,000 m3 per month) | E24: =ROUND('B1.2 Billing Determinants'!I19/'B1.2 Billing Determinants'!E19,0) -> 0
E26: Metric | F26: Current Rate | H26: Proposed Rate | J26: Change $ | L26: Change %
C27: Customer | E27: 7 | F27: =F11*E27 -> 105 | H27: =H11*E27 -> 105 | J27: =H27-F27 -> 0 | L27: =IF(ISERROR(J27/F27),0,J27/F27) -> 0
C28: Block 1 (First 1,000 m3 per month) | E28: =E22 -> 7232 | F28: =F12*E28/100 -> 1249.077179 | H28: =H12*E28/100 -> 1275.930977 | J28: =H28-F28 -> 26.85379805 | L28: =IF(ISERROR(J28/F28),0,J28/F28) -> 0.02149891016
C29: Block 2 (Next 24,000 m3 per month) | E29: =E23 -> 19259 | F29: =F13*E29/100 -> 1826.253934 | H29: =H13*E29/100 -> 1826.253934 | J29: 0 | L29: =IF(ISERROR(J29/F29),0,J29/F29) -> 0
C30: Block 3 (Over 25,000 m3 per month) | E30: =E24 -> 0 | F30: =F14*E30/100 -> 0 | H30: =H14*E30/100 -> 0 | J30: 0 | L30: 0
C31: System Gas Charge | E31: =SUM(E28:E29) -> 26491 | F31: =F15*E31/100 -> 9.616233 | H31: =H15*E31/100 -> 9.616233 | J31: 0 | L31: =IF(ISERROR(J31/F31),0,J31/F31) -> 0
C32: Total Delivery | F32: =SUM(F27:F31) -> 3189.947346 | H32: =SUM(H27:H31) -> 3216.801144 | J32: 26.85379805 | L32: =IF(ISERROR(J32/F32),0,J32/F32) -> 0.008418257464
C34: Rate Riders
C36: Rate Riders | E36: Metric | F36: Current Rate | H36: Proposed Rate | J36: Change $ | L36: Change %
C37: ='G1.1 Rate 1 Bill Impact'!$C$18 -> Shared Tax Changes 2017 | E37: 7 | F37: =F18*E37 -> 4.8356 | H37: 0 | J37: =H37-F37 -> -4.8356 | L37: =IF(ISERROR(J37/F37),0,J37/F37) -> -1
C38: ='G1.1 Rate 1 Bill Impact'!$C$19 -> Shared Tax Changes 2018 | E38: 7 | F38: 0 | H38: =H19*E38 -> 4.8356 | J38: =H38-F38 -> 4.8356 | L38: =IF(ISERROR(J38/F38),0,J38/F38) -> 0
C39: Total Rate Riders | F39: =SUM(F37:F38) -> 4.8356 | H39: =SUM(H37:H38) -> 4.8356 | J39: =SUM(J37:J38) -> 0 | L39: 0
C41: Total Bill Impact | F41: =SUM(F32,F39) -> 3194.782946 | H41: =SUM(H32,H39) -> 3221.636744 | J41: =SUM(J32,J39) -> 26.85379805 | L41: =IF(ISERROR(J41/F41),0,J41/F41) -> 0.008405515651
C43: =MID(CELL("filename",A1),FIND("]",CELL("filename",A1))+1,255) -> G1.2 Rate 2 Bill Impact
C47: Rate 2 Delivery Bill Impact
C49: Rate 2 - November to March | F49: Current Rate | H49: Proposed Rate
C51: Customer | F51: ='B1.1 Current Distribution Rates'!E20 -> 15 | H51: ='E1.1 Proposed Dist Rates '!E20 -> 15
C52: Block 1 (First 1,000 m3 per month) | F52: ='B1.1 Current Distribution Rates'!F20 -> 21.77052281 | H52: ='E1.1 Proposed Dist Rates '!F20 -> 22.23856532
C53: Block 2 (Next 24,000 m3 per month) | F53: ='B1.1 Current Distribution Rates'!H20 -> 15.696 | H53: ='E1.1 Proposed Dist Rates '!H20 -> 15.696
C54: Block 3 (Over 25,000 m3 per month) | F54: ='B1.1 Current Distribution Rates'!I20 -> 15.2899 | H54: ='E1.1 Proposed Dist Rates '!I20 -> 15.2899
C55: System Gas Charge | F55: ='B1.1 Current Distribution Rates'!L20 -> 0.0363 | H55: ='E1.1 Proposed Dist Rates '!L20 -> 0.0363
C57: Rate Riders
C58: ='G1.1 Rate 1 Bill Impact'!$C$18 -> Shared Tax Changes 2017 | F58: ='C1.1 Current Rate Riders'!$E$20 -> 0.6908
C59: ='G1.1 Rate 1 Bill Impact'!$C$19 -> Shared Tax Changes 2018 | H59: =ROUND('F1.3 Proposed Rate Riders'!$E$17,4) -> 0.6908
C61: Average Seasonal Consumption
C62: Block 1 (First 1,000 m3 per month) | E62: =ROUND('B1.2 Billing Determinants'!F20/'B1.2 Billing Determinants'!E20,0) -> 109
C63: Block 2 (Next 24,000 m3 per month) | E63: =ROUND('B1.2 Billing Determinants'!H20/'B1.2 Billing Determinants'!E20,0) -> 837
C64: Block 3 (Over 25,000 m3 per month) | E64: =ROUND('B1.2 Billing Determinants'!I20/'B1.2 Billing Determinants'!E20,0) -> 0
E66: Metric | F66: Current Rate | H66: Proposed Rate | J66: Change $ | L66: Change %
C67: Customer | E67: 5 | F67: =F51*E67 -> 75 | H67: =H51*E67 -> 75 | J67: =H67-F67 -> 0 | L67: =IF(ISERROR(J67/F67),0,J67/F67) -> 0
C68: Block 1 (First 1,000 m3 per month) | E68: =E62 -> 109 | F68: =F52*E68/100 -> 23.72986986 | H68: =H52*E68/100 -> 24.2400362 | J68: =H68-F68 -> 0.5101663404 | L68: 0.02149891016
C69: Block 2 (Next 24,000 m3 per month) | E69: =E63 -> 837 | F69: =F53*E69/100 -> 131.37552 | H69: =H53*E69/100 -> 131.37552 | J69: 0 | L69: 0
C70: Block 3 (Over 25,000 m3 per month) | E70: =E64 -> 0 | F70: =F54*E70/100 -> 0 | H70: =H54*E70/100 -> 0 | J70: =H70-F70 -> 0 | L70: 0
C71: System Gas Charge | E71: =SUM(E68:E69) -> 946 | F71: =F55*E71/100 -> 0.343398 | H71: =H55*E71/100 -> 0.343398 | J71: 0 | L71: 0
C72: Total Delivery | F72: =SUM(F67:F71) -> 230.4487879 | H72: =SUM(H67:H71) -> 230.9589542 | J72: 0.5101663404 | L72: 0.002213794853
C74: Rate Riders
C76: Rate Riders | E76: Metric | F76: Current Rate | H76: Proposed Rate | J76: Change $ | L76: Change %
C77: ='G1.1 Rate 1 Bill Impact'!$C$18 -> Shared Tax Changes 2017 | E77: 5 | F77: =F58*E77 -> 3.454 | H77: 0 | J77: =H77-F77 -> -3.454 | L77: =IF(ISERROR(J77/F77),0,J77/F77) -> -1
C78: ='G1.1 Rate 1 Bill Impact'!$C$19 -> Shared Tax Changes 2018 | E78: 5 | F78: 0 | H78: =H59*E78 -> 3.454 | J78: =H78-F78 -> 3.454 | L78: =IF(ISERROR(J78/F78),0,J78/F78) -> 0
C79: Total Rate Riders | F79: =SUM(F77:F78) -> 3.454 | H79: =SUM(H77:H78) -> 3.454 | J79: =SUM(J77:J78) -> 0 | L79: 0
C81: Total Bill Impact | F81: =SUM(F72,F79) -> 233.9027879 | H81: =SUM(H72,H79) -> 234.4129542 | J81: =SUM(J72,J79) -> 0.5101663404 | L81: =IF(ISERROR(J81/F81),0,J81/F81) -> 0.002181104146
C83: =MID(CELL("filename",A41),FIND("]",CELL("filename",A41))+1,255) -> G1.2 Rate 2 Bill Impact
C85: Rate 2 Delivery Bill Impact
C87: Rate 2 - Annual
C89: Average Annual Consumption
C90: Block 1 (First 1,000 m3 per month) | E90: =E22+E62 -> 7341
C91: Block 2 (Next 24,000 m3 per month) | E91: =E23+E63 -> 20096
C92: Block 3 (Over 25,000 m3 per month) | E92: =E24+E64 -> 0
E94: Metric | F94: Current Rate | H94: Proposed Rate | J94: Change $ | L94: Change %
C95: Customer | E95: =E27+E67 -> 12 | F95: =F27+F67 -> 180 | H95: =H27+H67 -> 180 | J95: =H95-F95 -> 0 | L95: =IF(ISERROR(J95/F95),0,J95/F95) -> 0
C96: Block 1 (First 1,000 m3 per month) | E96: =E90 -> 7341 | F96: =F28+F68 -> 1272.807049 | H96: =H28+H68 -> 1300.171013 | J96: =H96-F96 -> 27.36396439 | L96: 0.02149891016
C97: Block 2 (Next 24,000 m3 per month) | E97: =E91 -> 20096 | F97: =F29+F69 -> 1957.629454 | H97: =H29+H69 -> 1957.629454 | J97: 0 | L97: 0
C98: Block 3 (Over 25,000 m3 per month) | E98: =E92 -> 0 | F98: =F30+F70 -> 0 | H98: =H30+H70 -> 0 | J98: =H98-F98 -> 0 | L98: 0
C99: System Gas Charge | E99: =SUM(E96:E97) -> 27437 | F99: =F31+F71 -> 9.959631 | H99: =H31+H71 -> 9.959631 | J99: 0 | L99: 0
C100: Total Delivery | F100: =SUM(F95:F99) -> 3420.396134 | H100: =SUM(H95:H99) -> 3447.760098 | J100: 27.36396439 | L100: 0.008000232524
C102: Rate Riders
C104: Rate Riders | E104: Metric | F104: Current Rate | H104: Proposed Rate | J104: Change $ | L104: Change %
C105: ='G1.1 Rate 1 Bill Impact'!$C$18 -> Shared Tax Changes 2017 | E105: =E37+E77 -> 12 | F105: =F37+F77 -> 8.2896 | H105: =H37+H77 -> 0 | J105: =H105-F105 -> -8.2896 | L105: =IF(ISERROR(J105/F105),1,J105/F105) -> -1
C106: ='G1.1 Rate 1 Bill Impact'!$C$19 -> Shared Tax Changes 2018 | E106: =E38+E78 -> 12 | F106: =F38+F78 -> 0 | H106: =H38+H78 -> 8.2896 | J106: =H106-F106 -> 8.2896 | L106: =IF(ISERROR(J106/F106),1,J106/F106) -> 1
C107: Total Rate Riders | F107: =SUM(F105:F106) -> 8.2896 | H107: =SUM(H105:H106) -> 8.2896 | J107: =SUM(J105:J106) -> 0 | L107: =IF(ISERROR(J107/F107),0,J107/F107) -> 0
C109: Total Bill Impact | F109: =SUM(F100,F107) -> 3428.685734 | H109: =SUM(H100,H107) -> 3456.049698 | J109: =SUM(J100,J107) -> 27.36396439 | L109: =IF(ISERROR(J109/F109),0,J109/F109) -> 0.007980890207
C111: =MID(CELL("filename",A1),FIND("]",CELL("filename",A1))+1,255) -> G1.2 Rate 2 Bill Impact

Sheet G1.3 Rate 3 Bill Impact
C2: ='A1.1 Distributor Information'!C3 -> Name of LDC: EPCOR Natural Gas Limited Partnership
C3: ='A1.1 Distributor Information'!C4 -> OEB Application Number: EB-2018-0235 Exhibit C - 2018 IRM Application Amended October 24, 2018
C10: Rate 3 Delivery Bill Impact
C15: Special Large Volume Contract Rate | F15: Current Rate | H15: Proposed Rate
C17: Customer | F17: ='B1.1 Current Distribution Rates'!E21 -> 150 | H17: ='E1.1 Proposed Dist Rates '!E21 -> 150
C18: Delivery - Firm | F18: ='B1.1 Current Distribution Rates'!J21 -> 4.328556086 | H18: ='E1.1 Proposed Dist Rates '!J21 -> 4.403534144
C19: Demand - Firm | F19: ='B1.1 Current Distribution Rates'!K21 -> 29.0974 | H19: ='E1.1 Proposed Dist Rates '!K21 -> 29.0974
C20: System Gas Charge | F20: ='B1.1 Current Distribution Rates'!L21 -> 0.0363 | H20: ='E1.1 Proposed Dist Rates '!L21 -> 0.0363
C22: Rate Riders
C23: ='G1.1 Rate 1 Bill Impact'!$C$18 -> Shared Tax Changes 2017 | F23: ='C1.1 Current Rate Riders'!$E$21 -> 5.6243
C24: ='G1.1 Rate 1 Bill Impact'!$C$19 -> Shared Tax Changes 2018 | H24: =ROUND('F1.3 Proposed Rate Riders'!$E$18,4) -> 5.6243
C26: Average Annual Consumption
C27: Delivery - Firm | E27: =ROUND('B1.2 Billing Determinants'!J21/'B1.2 Billing Determinants'!E21,0) -> 297114
C28: Demand - Firm | E28: =ROUND('B1.2 Billing Determinants'!K21/'B1.2 Billing Determinants'!E21,0) -> 44945
E30: Metric | F30: Current Rate | H30: Proposed Rate | J30: Change $ | L30: Change %
C31: Customer | E31: 12 | F31: =F17*E31 -> 1800 | H31: =H17*E31 -> 1800 | J31: =H31-F31 -> 0 | L31: =IF(ISERROR(J31/F31),0,J31/F31) -> 0
C32: Delivery - Firm | E32: =E27 -> 297114 | F32: =F18*E32/100 -> 12860.74613 | H32: =H18*E32/100 -> 13083.51644 | J32: =H32-F32 -> 222.7703082 | L32: =IF(ISERROR(J32/F32),0,J32/F32) -> 0.01732172503
C33: Demand - Firm | E33: =E28 -> 44945 | F33: =F19*E33/100 -> 13077.82643 | H33: =H19*E33/100 -> 13077.82643 | J33: 0 | L33: =IF(ISERROR(J33/F33),0,J33/F33) -> 0
C34: System Gas Charge | E34: =E27 -> 297114 | F34: =F20*E34/100 -> 107.852382 | H34: =H20*E34/100 -> 107.852382 | J34: 0 | L34: =IF(ISERROR(J34/F34),0,J34/F34) -> 0
C35: Total Delivery | F35: =SUM(F31:F34) -> 27846.42494 | H35: =SUM(H31:H34) -> 28069.19525 | J35: 222.7703082 | L35: =IF(ISERROR(J35/F35),0,J35/F35) -> 0.007999960808
C37: Rate Riders
C39: Rate Riders | E39: Metric | F39: Current Rate | H39: Proposed Rate | J39: Change $ | L39: Change %
C40: ='G1.1 Rate 1 Bill Impact'!$C$18 -> Shared Tax Changes 2017 | E40: 12 | F40: =F23*E40 -> 67.4916 | H40: 0 | J40: =H40-F40 -> -67.4916 | L40: =IF(ISERROR(J40/F40),1,J40/F40) -> -1
C41: ='G1.1 Rate 1 Bill Impact'!$C$19 -> Shared Tax Changes 2018 | E41: 12 | F41: 0 | H41: =H24*E41 -> 67.4916 | J41: =H41-F41 -> 67.4916 | L41: =IF(ISERROR(J41/F41),1,J41/F41) -> 1
C42: Total Rate Riders | F42: =SUM(F40:F41) -> 67.4916 | H42: =SUM(H40:H41) -> 67.4916 | J42: =SUM(J40:J41) -> 0 | L42: =IF(ISERROR(J42/F42),0,J42/F42) -> 0
C44: Total Bill Impact | F44: =SUM(F35,F42) -> 27913.91654 | H44: =SUM(H35,H42) -> 28136.68685 | J44: =SUM(J35,J42) -> 222.7703082 | L44: =IF(ISERROR(J44/F44),0,J44/F44) -> 0.007980618121
C47: =MID(CELL("filename",A1),FIND("]",CELL("filename",A1))+1,255) -> G1.3 Rate 3 Bill Impact

Sheet G1.4 Rate 4 Bill Impact
C2: ='A1.1 Distributor Information'!C3 -> Name of LDC: EPCOR Natural Gas Limited Partnership
C3: ='A1.1 Distributor Information'!C4 -> OEB Application Number: EB-2018-0235 Exhibit C - 2018 IRM Application Amended October 24, 2018
C7: Rate 4 Delivery Bill Impact
C11: Rate 4 - April to December | F11: Current Rate | H11: Proposed Rate
C13: Customer | F13: ='B1.1 Current Distribution Rates'!E22 -> 15 | H13: ='E1.1 Proposed Dist Rates '!E22 -> 15
C14: Block 1 (First 1,000 m3 per month) | F14: ='B1.1 Current Distribution Rates'!F22 -> 17.08364526 | H14: ='E1.1 Proposed Dist Rates '!F22 -> 17.40847394
C15: Block 2 (Over 1,000 m3 per month) | F15: ='B1.1 Current Distribution Rates'!G22 -> 10.5218 | H15: ='E1.1 Proposed Dist Rates '!G22 -> 10.5218
C16: System Gas Charge | F16: ='B1.1 Current Distribution Rates'!L19 -> 0.0363 | H16: ='E1.1 Proposed Dist Rates '!L22 -> 0.0363
C18: Rate Riders
C19: ='G1.1 Rate 1 Bill Impact'!$C$18 -> Shared Tax Changes 2017 | F19: ='C1.1 Current Rate Riders'!$E$22 -> 0.8522
C20: ='G1.1 Rate 1 Bill Impact'!$C$19 -> Shared Tax Changes 2018 | H20: =ROUND('F1.3 Proposed Rate Riders'!$E$19,4) -> 0.8522
C22: Average Seasonal Consumption
C23: Block 1 (First 1,000 m3 per month) | E23: =ROUND('B1.2 Billing Determinants'!F22/'B1.2 Billing Determinants'!E22,0) -> 6422
C24: Block 2 (Over 1,000 m3 per month) | E24: =ROUND('B1.2 Billing Determinants'!G22/'B1.2 Billing Determinants'!E22,0) -> 6586
E26: Metric | F26: Current Rate | H26: Proposed Rate | J26: Change $ | L26: Change %
C27: Customer | E27: 9 | F27: =F13*E27 -> 135 | H27: =H13*E27 -> 135 | J27: =H27-F27 -> 0 | L27: =IF(ISERROR(J27/F27),0,J27/F27) -> 0
C28: Block 1 (First 1,000 m3 per month) | E28: =E23 -> 6422 | F28: =F14*E28/100 -> 1097.111699 | H28: =H14*E28/100 -> 1117.972197 | J28: =H28-F28 -> 20.8604979 | L28: =IF(ISERROR(J28/F28),0,J28/F28) -> 0.01901401464
C29: Block 2 (Over 1,000 m3 per month) | E29: =E24 -> 6586 | F29: =F15*E29/100 -> 692.965748 | H29: =H15*E29/100 -> 692.965748 | J29: 0 | L29: =IF(ISERROR(J29/F29),0,J29/F29) -> 0
C30: System Gas Charge | E30: =SUM(E28:E29) -> 13008 | F30: =F16*E30/100 -> 4.721904 | H30: =H16*E30/100 -> 4.721904 | J30: 0 | L30: =IF(ISERROR(J30/F30),0,J30/F30) -> 0
C31: Total Delivery | F31: =SUM(F27:F30) -> 1929.799351 | H31: =SUM(H27:H30) -> 1950.659849 | J31: 20.8604979 | L31: =IF(ISERROR(J31/F31),0,J31/F31) -> 0.01080967194
C33: Rate Riders
C35: Rate Riders | E35: Metric | F35: Current Rate | H35: Proposed Rate | J35: Change $ | L35: Change %
C36: ='G1.1 Rate 1 Bill Impact'!$C$18 -> Shared Tax Changes 2017 | E36: 9 | F36: =F19*E36 -> 7.6698 | H36: 0 | J36: =H36-F36 -> -7.6698 | L36: =IF(ISERROR(J36/F36),1,J36/F36) -> -1
C37: ='G1.1 Rate 1 Bill Impact'!$C$19 -> Shared Tax Changes 2018 | E37: 9 | F37: 0 | H37: =H20*E37 -> 7.6698 | J37: =H37-F37 -> 7.6698 | L37: =IF(ISERROR(J37/F37),1,J37/F37) -> 1
C38: Total Rate Riders | F38: =SUM(F36:F37) -> 7.6698 | H38: =SUM(H36:H37) -> 7.6698 | J38: =SUM(J36:J37) -> 0 | L38: =IF(ISERROR(J38/F38),0,J38/F38) -> 0
C40: Total Bill Impact | F40: =SUM(F31,F38) -> 1937.469151 | H40: =SUM(H31,H38) -> 1958.329649 | J40: =SUM(J31,J38) -> 20.8604979 | L40: =IF(ISERROR(J40/F40),0,J40/F40) -> 0.01076688003
C43: =MID(CELL("filename",A1),FIND("]",CELL("filename",A1))+1,255) -> G1.4 Rate 4 Bill Impact
C45: Rate 4 Delivery Bill Impact
C47: Rate 4 - January to March | F47: Current Rate | H47: Proposed Rate
C49: Customer | F49: ='B1.1 Current Distribution Rates'!E23 -> 15 | H49: ='E1.1 Proposed Dist Rates '!E23 -> 15
C50: Block 1 (First 1,000 m3 per month) | F50: ='B1.1 Current Distribution Rates'!F23 -> 21.79407299 | H50: ='E1.1 Proposed Dist Rates '!F23 -> 22.20846581
C51: Block 2 (Over 1,000 m3 per month) | F51: ='B1.1 Current Distribution Rates'!G23 -> 16.9052 | H51: ='E1.1 Proposed Dist Rates '!G23 -> 16.9052
C52: System Gas Charge | F52: ='B1.1 Current Distribution Rates'!L23 -> 0.0363 | H52: ='E1.1 Proposed Dist Rates '!L23 -> 0.0363
C54: Rate Riders
C55: ='G1.1 Rate 1 Bill Impact'!$C$18 -> Shared Tax Changes 2017 | F55: ='C1.1 Current Rate Riders'!$E$23 -> 0.8522
C56: ='G1.1 Rate 1 Bill Impact'!$C$19 -> Shared Tax Changes 2018 | H56: =ROUND('F1.3 Proposed Rate Riders'!$E$20,4) -> 0.8522
C58: Average Seasonal Consumption
C59: Block 1 (First 1,000 m3 per month) | E59: =ROUND('B1.2 Billing Determinants'!F23/'B1.2 Billing Determinants'!E23,0) -> 3112
C60: Block 2 (Over 1,000 m3 per month) | E60: =ROUND('B1.2 Billing Determinants'!G23/'B1.2 Billing Determinants'!E23,0) -> 9240
E62: Metric | F62: Current Rate | H62: Proposed Rate | J62: Change $ | L62: Change %
C63: Customer | E63: 3 | F63: =F49*E63 -> 45 | H63: =H49*E63 -> 45 | J63: =H63-F63 -> 0 | L63: =IF(ISERROR(J63/F63),0,J63/F63) -> 0
C64: Block 1 (First 1,000 m3 per month) | E64: =E59 -> 3112 | F64: =F50*E64/100 -> 678.2315515 | H64: =H50*E64/100 -> 691.1274561 | J64: =H64-F64 -> 12.89590465 | L64: 0.01901401464
C65: Block 2 (Over 1,000 m3 per month) | E65: =E60 -> 9240 | F65: =F51*E65/100 -> 1562.04048 | H65: =H51*E65/100 -> 1562.04048 | J65: 0 | L65: 0
C66: System Gas Charge | E66: =SUM(E64:E65) -> 12352 | F66: =F52*E66/100 -> 4.483776 | H66: =H52*E66/100 -> 4.483776 | J66: 0 | L66: 0
C67: Total Delivery | F67: =SUM(F63:F66) -> 2289.755807 | H67: =SUM(H63:H66) -> 2302.651712 | J67: 12.89590465 | L67: 0.005631999974
C69: Rate Riders
C71: Rate Riders | E71: Metric | F71: Current Rate | H71: Proposed Rate | J71: Change $ | L71: Change %
C72: ='G1.1 Rate 1 Bill Impact'!$C$18 -> Shared Tax Changes 2017 | E72: 3 | F72: =F55*E72 -> 2.5566 | H72: 0 | J72: =H72-F72 -> -2.5566 | L72: =IF(ISERROR(J72/F72),1,J72/F72) -> -1
C73: ='G1.1 Rate 1 Bill Impact'!$C$19 -> Shared Tax Changes 2018 | E73: 3 | F73: 0 | H73: =H56*E73 -> 2.5566 | J73: =H73-F73 -> 2.5566 | L73: =IF(ISERROR(J73/F73),1,J73/F73) -> 1
C74: Total Rate Riders | F74: =SUM(F72:F73) -> 2.5566 | H74: =SUM(H72:H73) -> 2.5566 | J74: =SUM(J72:J73) -> 0 | L74: =IF(ISERROR(J74/F74),0,J74/F74) -> 0
C76: Total Bill Impact | F76: =SUM(F67,F74) -> 2292.312407 | H76: =SUM(H67,H74) -> 2305.208312 | J76: =SUM(J67,J74) -> 12.89590465 | L76: =IF(ISERROR(J76/F76),0,J76/F76) -> 0.005625718644
C79: =MID(CELL("filename",A33),FIND("]",CELL("filename",A33))+1,255) -> G1.4 Rate 4 Bill Impact
C81: Rate 4 Delivery Bill Impact
C83: Rate 4 - Annual
C85: Average Annual Consumption
C86: Block 1 (First 1,000 m3 per month) | E86: =E23+E59 -> 9534
C87: Block 2 (Over 1,000 m3 per month) | E87: =E24+E60 -> 15826
E89: Metric | F89: Current Rate | H89: Proposed Rate | J89: Change $ | L89: Change %
C90: Customer | E90: =E27+E63 -> 12 | F90: =F27+F63 -> 180 | H90: =H27+H63 -> 180 | J90: =H90-F90 -> 0 | L90: =IF(ISERROR(J90/F90),0,J90/F90) -> 0
C91: Block 1 (First 1,000 m3 per month) | E91: =E86 -> 9534 | F91: =F28+F64 -> 1775.34325 | H91: =H28+H64 -> 1809.099653 | J91: =H91-F91 -> 33.75640255 | L91: 0.01901401464
C92: Block 2 (Over 1,000 m3 per month) | E92: =E87 -> 15826 | F92: =F29+F65 -> 2255.006228 | H92: =H29+H65 -> 2255.006228 | J92: 0 | L92: 0
C93: System Gas Charge | E93: =SUM(E91:E92) -> 25360 | F93: =F30+F66 -> 9.20568 | H93: =H30+H66 -> 9.20568 | J93: 0 | L93: 0
C94: Total Delivery | F94: =SUM(F90:F93) -> 4219.555158 | H94: =SUM(H90:H93) -> 4253.311561 | J94: 33.75640255 | L94: 0.007999990824
C96: Rate Riders
C98: Rate Riders | E98: Metric | F98: Current Rate | H98: Proposed Rate | J98: Change $ | L98: Change %
C99: ='G1.1 Rate 1 Bill Impact'!$C$18 -> Shared Tax Changes 2017 | E99: =E72+E36 -> 12 | F99: =F72+F36 -> 10.2264 | H99: =H72+H36 -> 0 | J99: =H99-F99 -> -10.2264 | L99: =IF(ISERROR(J99/F99),1,J99/F99) -> -1
C100: ='G1.1 Rate 1 Bill Impact'!$C$19 -> Shared Tax Changes 2018 | E100: =E73+E37 -> 12 | F100: =F73+F37 -> 0 | H100: =H73+H37 -> 10.2264 | J100: =H100-F100 -> 10.2264 | L100: =IF(ISERROR(J100/F100),1,J100/F100) -> 1
C101: Total Rate Riders | F101: =SUM(F99:F100) -> 10.2264 | H101: =SUM(H99:H100) -> 10.2264 | J101: =SUM(J99:J100) -> 0 | L101: =IF(ISERROR(J101/F101),0,J101/F101) -> 0
C103: Total Bill Impact | F103: =SUM(F94,F101) -> 4229.781558 | H103: =SUM(H94,H101) -> 4263.537961 | J103: =SUM(J94,J101) -> 33.75640255 | L103: =IF(ISERROR(J103/F103),0,J103/F103) -> 0.007980649138
C106: =MID(CELL("filename",A61),FIND("]",CELL("filename",A61))+1,255) -> G1.4 Rate 4 Bill Impact

Sheet G1.5 Rate 5 Bill Impact
C2: ='A1.1 Distributor Information'!C3 -> Name of LDC: EPCOR Natural Gas Limited Partnership
C3: ='A1.1 Distributor Information'!C4 -> OEB Application Number: EB-2018-0235 Exhibit C - 2018 IRM Application Amended October 24, 2018
C10: Rate 5 Delivery Bill Impact
C15: Interruptible Peaking Contract Rate | F15: Current Rate | H15: Proposed Rate
C17: Customer | F17: ='B1.1 Current Distribution Rates'!E24 -> 150 | H17: ='E1.1 Proposed Dist Rates '!E24 -> 150
C18: Delivery - Firm | F18: ='B1.1 Current Distribution Rates'!J24 -> 7.474818607 | H18: ='E1.1 Proposed Dist Rates '!J24 -> 7.545306657
C19: System Gas Charge | F19: ='B1.1 Current Distribution Rates'!L24 -> 0.0363 | H19: ='E1.1 Proposed Dist Rates '!L24 -> 0.0363
C21: Rate Riders
C22: ='G1.1 Rate 1 Bill Impact'!$C$18 -> Shared Tax Changes 2017 | F22: ='C1.1 Current Rate Riders'!$E$24 -> 2.4643
C23: ='G1.1 Rate 1 Bill Impact'!$C$19 -> Shared Tax Changes 2018 | H23: =ROUND('F1.3 Proposed Rate Riders'!$E$21,4) -> 2.4643
C25: Average Annual Consumption
C26: Delivery - Firm | E26: =ROUND('B1.2 Billing Determinants'!J24/'B1.2 Billing Determinants'!E24,0) -> 138474
E28: Metric | F28: Current Rate | H28: Proposed Rate | J28: Change $ | L28: Change %
C29: Customer | E29: 12 | F29: =F17*E29 -> 1800 | H29: =H17*E29 -> 1800 | J29: =H29-F29 -> 0 | L29: =IF(ISERROR(J29/F29),0,J29/F29) -> 0
C30: Delivery - Firm | E30: =E26 -> 138474 | F30: =F18*E30/100 -> 10350.68032 | H30: =H18*E30/100 -> 10448.28794 | J30: =H30-F30 -> 97.60762303 | L30: =IF(ISERROR(J30/F30),0,J30/F30) -> 0.009430068366
C31: System Gas Charge | E31: =E26 -> 138474 | F31: =F19*E31/100 -> 50.266062 | H31: =H19*E31/100 -> 50.266062 | J31: 0 | L31: =IF(ISERROR(J31/F31),0,J31/F31) -> 0
C32: Total Delivery | F32: =SUM(F29:F31) -> 12200.94638 | H32: =SUM(H29:H31) -> 12298.554 | J32: 97.60762303 | L32: =IF(ISERROR(J32/F32),0,J32/F32) -> 0.008000004262
C34: Rate Riders
C36: Rate Riders | E36: Metric | F36: Current Rate | H36: Proposed Rate | J36: Change $ | L36: Change %
C37: ='G1.1 Rate 1 Bill Impact'!$C$18 -> Shared Tax Changes 2017 | E37: 12 | F37: =F22*E37 -> 29.5716 | H37: 0 | J37: =H37-F37 -> -29.5716 | L37: =IF(ISERROR(J37/F37),1,J37/F37) -> -1
C38: ='G1.1 Rate 1 Bill Impact'!$C$19 -> Shared Tax Changes 2018 | E38: 12 | F38: 0 | H38: =H23*E38 -> 29.5716 | J38: =H38-F38 -> 29.5716 | L38: =IF(ISERROR(J38/F38),1,J38/F38) -> 1
C39: Total Rate Riders | F39: =SUM(F37:F38) -> 29.5716 | H39: =SUM(H37:H38) -> 29.5716 | J39: =SUM(J37:J38) -> 0 | L39: =IF(ISERROR(J39/F39),0,J39/F39) -> 0
C41: Total Bill Impact | F41: =SUM(F32,F39) -> 12230.51798 | H41: =SUM(H32,H39) -> 12328.1256 | J41: =SUM(J32,J39) -> 97.60762303 | L41: =IF(ISERROR(J41/F41),0,J41/F41) -> 0.007980661424
C44: =MID(CELL("filename",A1),FIND("]",CELL("filename",A1))+1,255) -> G1.5 Rate 5 Bill Impact

Sheet G1.6 Rate 6 Bill Impact
C2: ='A1.1 Distributor Information'!C3 -> Name of LDC: EPCOR Natural Gas Limited Partnership
C3: ='A1.1 Distributor Information'!C4 -> OEB Application Number: EB-2018-0235 Exhibit C - 2018 IRM Application Amended October 24, 2018
C10: Rate 6 Delivery Bill Impact
C15: Special Large Volume Contract Rate | F15: Current Rate | H15: Proposed Rate
C17: Customer | F17: ='B1.1 Current Distribution Rates'!E25 -> 150 | H17: ='E1.1 Proposed Dist Rates '!E25 -> 150
C18: Delivery - Firm | F18: ='B1.1 Current Distribution Rates'!J25 -> 4.0150037 | H18: ='E1.1 Proposed Dist Rates '!J25 -> 4.047161206
C19: Demand - Firm | F19: ='B1.1 Current Distribution Rates'!K25 -> 19.4468584 | H19: ='E1.1 Proposed Dist Rates '!K25 -> 19.60243326
C21: Rate Riders
C22: ='G1.1 Rate 1 Bill Impact'!$C$18 -> Shared Tax Changes 2017 | F22: ='C1.1 Current Rate Riders'!$E$25 -> 375.0371
C23: ='G1.1 Rate 1 Bill Impact'!$C$19 -> Shared Tax Changes 2018 | H23: =ROUND('F1.3 Proposed Rate Riders'!$E$22,4) -> 375.0371
C25: Average Annual Consumption
C26: Delivery - Firm | E26: ='B1.2 Billing Determinants'!J25 -> 38423518
C27: Demand - Firm | E27: ='B1.2 Billing Determinants'!K25 -> 1606140
E29: Metric | F29: Current Rate | H29: Proposed Rate | J29: Change $ | L29: Change %
C30: Customer | E30: 12 | F30: =F17*E30 -> 1800 | H30: =H17*E30 -> 1800 | J30: =H30-F30 -> 0 | L30: =IF(ISERROR(J30/F30),0,J30/F30) -> 0
C31: Delivery - Firm | E31: =E26 -> 38423518 | F31: =F18*E31/100 -> 1542705.669 | H31: =H18*E31/100 -> 1555061.715 | J31: =H31-F31 -> 12356.04535 | L31: =IF(ISERROR(J31/F31),0,J31/F31) -> 0.00800933425
C32: Demand - Firm | E32: =E27 -> 1606140 | F32: =F19*E32/100 -> 312343.7714 | H32: =H19*E32/100 -> 314842.5216 | J32: 2498.750172 | L32: =IF(ISERROR(J32/F32),0,J32/F32) -> 0.008
C33: Total Delivery | F33: =SUM(F30:F32) -> 1856849.441 | H33: =SUM(H30:H32) -> 1871704.236 | J33: 14854.79553 | L33: =IF(ISERROR(J33/F33),0,J33/F33) -> 0.008
C35: Rate Riders
C37: Rate Riders | E37: Metric | F37: Current Rate | H37: Proposed Rate | J37: Change $ | L37: Change %
C38: ='G1.1 Rate 1 Bill Impact'!$C$18 -> Shared Tax Changes 2017 | E38: 12 | F38: =F22*E38 -> 4500.4452 | H38: 0 | J38: =H38-F38 -> -4500.4452 | L38: =IF(ISERROR(J38/F38),1,J38/F38) -> -1
C39: ='G1.1 Rate 1 Bill Impact'!$C$19 -> Shared Tax Changes 2018 | E39: 12 | F39: 0 | H39: =H23*E39 -> 4500.4452 | J39: =H39-F39 -> 4500.4452 | L39: =IF(ISERROR(J39/F39),1,J39/F39) -> 1
C40: Total Rate Riders | F40: =SUM(F38:F39) -> 4500.4452 | H40: =SUM(H38:H39) -> 4500.4452 | J40: =SUM(J38:J39) -> 0 | L40: =IF(ISERROR(J40/F40),0,J40/F40) -> 0
C42: Total Bill Impact | F42: =SUM(F33,F40) -> 1861349.886 | H42: =SUM(H33,H40) -> 1876204.681 | J42: =SUM(J33,J40) -> 14854.79553 | L42: =IF(ISERROR(J42/F42),0,J42/F42) -> 0.007980657284
C45: =MID(CELL("filename",A1),FIND("]",CELL("filename",A1))+1,255) -> G1.6 Rate 6 Bill Impact

Sheet G1.7 Summary of Bill Impacts
C2: ='A1.1 Distributor Information'!C3 -> Name of LDC: EPCOR Natural Gas Limited Partnership
C3: ='A1.1 Distributor Information'!C4 -> OEB Application Number: EB-2018-0235 Exhibit C - 2018 IRM Application Amended October 24, 2018
C5: Summary of Bill Impacts
C7: Rate Class | D7: Fixed Change | E7: Volumetric Change | F7: Shared Tax Rate Rider | G7: Total Change $ | H7: Total Change %
C9: Rate 1 - Residential | D9: ='G1.1 Rate 1 Bill Impact'!J26 -> 0 | E9: =SUM('G1.1 Rate 1 Bill Impact'!J27:J29) -> 3.611139147 | F9: =SUM('G1.1 Rate 1 Bill Impact'!J37) -> 0 | G9: ='G1.1 Rate 1 Bill Impact'!J39 -> 3.611139147 | H9: ='G1.1 Rate 1 Bill Impact'!L39 -> 0.007757685026
C10: Rate 1 - Commercial | D10: ='G1.1 Rate 1 Bill Impact'!J62 -> 0 | E10: =SUM('G1.1 Rate 1 Bill Impact'!J63:J65) -> 13.0900038 | F10: ='G1.1 Rate 1 Bill Impact'!J73 -> 0 | G10: ='G1.1 Rate 1 Bill Impact'!J75 -> 13.0900038 | H10: ='G1.1 Rate 1 Bill Impact'!L75 -> 0.009016020829
C11: Rate 1 - Industrial | D11: ='G1.1 Rate 1 Bill Impact'!J101 -> 0 | E11: =SUM('G1.1 Rate 1 Bill Impact'!J102:J104) -> 27.07155682 | F11: ='G1.1 Rate 1 Bill Impact'!J112 -> 0 | G11: ='G1.1 Rate 1 Bill Impact'!J114 -> 27.07155682 | H11: ='G1.1 Rate 1 Bill Impact'!L114 -> 0.008720797935
C13: ='G1.2 Rate 2 Bill Impact'!C9 -> Rate 2 - April to October | D13: ='G1.2 Rate 2 Bill Impact'!J27 -> 0 | E13: ='G1.2 Rate 2 Bill Impact'!J32-'G1.7 Summary of Bill Impacts'!D13 -> 26.85379805 | F13: ='G1.2 Rate 2 Bill Impact'!J39 -> 0 | G13: =SUM(D13:F13) -> 26.85379805 | H13: ='G1.2 Rate 2 Bill Impact'!L41 -> 0.008405515651
C14: ='G1.2 Rate 2 Bill Impact'!C49 -> Rate 2 - November to March | D14: ='G1.2 Rate 2 Bill Impact'!J67 -> 0 | E14: ='G1.2 Rate 2 Bill Impact'!J72-'G1.7 Summary of Bill Impacts'!D14 -> 0.5101663404 | F14: ='G1.2 Rate 2 Bill Impact'!J79 -> 0 | G14: =SUM(D14:F14) -> 0.5101663404 | H14: ='G1.2 Rate 2 Bill Impact'!L81 -> 0.002181104146
C15: ='G1.2 Rate 2 Bill Impact'!C87 -> Rate 2 - Annual | D15: ='G1.2 Rate 2 Bill Impact'!J95 -> 0 | E15: ='G1.2 Rate 2 Bill Impact'!J100-'G1.7 Summary of Bill Impacts'!D15 -> 27.36396439 | F15: ='G1.2 Rate 2 Bill Impact'!J107 -> 0 | G15: =SUM(D15:F15) -> 27.36396439 | H15: ='G1.2 Rate 2 Bill Impact'!L109 -> 0.007980890207
C17: ="Rate 3 - "& 'G1.3 Rate 3 Bill Impact'!C15 -> Rate 3 - Special Large Volume Contract Rate | D17: ='G1.3 Rate 3 Bill Impact'!J31 -> 0 | E17: ='G1.3 Rate 3 Bill Impact'!J35-'G1.7 Summary of Bill Impacts'!D17 -> 222.7703082 | F17: ='G1.3 Rate 3 Bill Impact'!J42 -> 0 | G17: =SUM(D17:F17) -> 222.7703082 | H17: ='G1.3 Rate 3 Bill Impact'!L44 -> 0.007980618121
C19: ='G1.4 Rate 4 Bill Impact'!C11 -> Rate 4 - April to December | D19: ='G1.4 Rate 4 Bill Impact'!J27 -> 0 | E19: ='G1.4 Rate 4 Bill Impact'!J31-'G1.7 Summary of Bill Impacts'!D19 -> 20.8604979 | F19: ='G1.4 Rate 4 Bill Impact'!J38 -> 0 | G19: =SUM(D19:F19) -> 20.8604979 | H19: ='G1.4 Rate 4 Bill Impact'!L40 -> 0.01076688003
C20: ='G1.4 Rate 4 Bill Impact'!C47 -> Rate 4 - January to March | D20: ='G1.4 Rate 4 Bill Impact'!J63 -> 0 | E20: ='G1.4 Rate 4 Bill Impact'!J67-'G1.7 Summary of Bill Impacts'!D20 -> 12.89590465 | F20: ='G1.4 Rate 4 Bill Impact'!J74 -> 0 | G20: =SUM(D20:F20) -> 12.89590465 | H20: ='G1.4 Rate 4 Bill Impact'!L76 -> 0.005625718644
C21: ='G1.4 Rate 4 Bill Impact'!C83 -> Rate 4 - Annual | D21: ='G1.4 Rate 4 Bill Impact'!J90 -> 0 | E21: ='G1.4 Rate 4 Bill Impact'!J94-'G1.7 Summary of Bill Impacts'!D21 -> 33.75640255 | F21: ='G1.4 Rate 4 Bill Impact'!J101 -> 0 | G21: =SUM(D21:F21) -> 33.75640255 | H21: ='G1.4 Rate 4 Bill Impact'!L103 -> 0.007980649138
C23: ="Rate 5 - " &'G1.5 Rate 5 Bill Impact'!C15 -> Rate 5 - Interruptible Peaking Contract Rate | D23: ='G1.5 Rate 5 Bill Impact'!J29 -> 0 | E23: ='G1.5 Rate 5 Bill Impact'!J32-'G1.7 Summary of Bill Impacts'!D23 -> 97.60762303 | F23: ='G1.5 Rate 5 Bill Impact'!J39 -> 0 | G23: =SUM(D23:F23) -> 97.60762303 | H23: ='G1.5 Rate 5 Bill Impact'!L41 -> 0.007980661424
C25: ="Rate 6 - " &'G1.6 Rate 6 Bill Impact'!C15 -> Rate 6 - Special Large Volume Contract Rate | D25: ='G1.6 Rate 6 Bill Impact'!J30 -> 0 | E25: ='G1.6 Rate 6 Bill Impact'!J33-'G1.7 Summary of Bill Impacts'!D25 -> 14854.79553 | F25: ='G1.6 Rate 6 Bill Impact'!J40 -> 0 | G25: =SUM(D25:F25) -> 14854.79553 | H25: ='G1.6 Rate 6 Bill Impact'!L42 -> 0.007980657284
C30: =MID(CELL("filename",A1),FIND("]",CELL("filename",A1))+1,255) -> G1.7 Summary of Bill Impacts

Sheet H1.1 Rate 1 Cumul Impact
C2: ='A1.1 Distributor Information'!C3 -> Name of LDC: EPCOR Natural Gas Limited Partnership
C3: ='A1.1 Distributor Information'!C4 -> OEB Application Number: EB-2018-0235 Exhibit C - 2018 IRM Application Amended October 24, 2018
C7: Rate 1 Delivery Bill Impact Cumulative Compared to 2015
C10: Rate 1 - Residential | F10: 2015 Rate | H10: Proposed Rate
C12: Customer | F12: 13.5 | H12: ='E1.1 Proposed Dist Rates '!E16 -> 13.5
C13: Block 1 (First 1,000 m3 per month) | F13: 16.2312 | H13: ='E1.1 Proposed Dist Rates '!F16 -> 17.2452599
C14: Block 2 (Over 1,000 m3 per month) | F14: 10.9099 | H14: ='E1.1 Proposed Dist Rates '!G16 -> 11.35189322
C15: System Gas Charge | F15: 0.0363 | H15: ='E1.1 Proposed Dist Rates '!L16 -> 0.0363
C17: Rate Riders
C18: Shared Tax Changes 2015 | F18: 0.13
C19: Shared Tax Changes 2018 | H19: =ROUND('F1.3 Proposed Rate Riders'!$E$13,4) -> 0.1084
C21: Average Annual Consumption
C22: Block 1 (First 1,000 m3 per month) | E22: =ROUND('B1.2 Billing Determinants'!F16/'B1.2 Billing Determinants'!E16,0) -> 1703
C23: Block 2 (Over 1,000 m3 per month) | E23: =ROUND('B1.2 Billing Determinants'!G16/'B1.2 Billing Determinants'!E16,0) -> 101
C25: Delivery | E25: Metric | F25: =$F$10 -> 2015 Rate | H25: Proposed Rate | J25: Change $ | L25: Change %
C26: Customer | E26: 12 | F26: =F12*E26 -> 162 | H26: =H12*E26 -> 162 | J26: =H26-F26 -> 0 | L26: =IF(ISERROR(J26/F26),0,J26/F26) -> 0
C27: Block 1 (First 1,000 m3 per month) | E27: =E22 -> 1703 | F27: =F13*E27/100 -> 276.417336 | H27: =H13*E27/100 -> 293.6867761 | J27: =H27-F27 -> 17.2694401 | L27: =IF(ISERROR(J27/F27),0,J27/F27) -> 0.06247596604
C28: Block 2 (Over 1,000 m3 per month) | E28: =E23 -> 101 | F28: =F14*E28/100 -> 11.018999 | H28: =H14*E28/100 -> 11.46541215 | J28: 0.4464131472 | L28: =IF(ISERROR(J28/F28),0,J28/F28) -> 0.04051304
C29: System Gas Charge | E29: =SUM(E27:E28) -> 1804 | F29: =ROUND(F15*E29/100,2) -> 0.65 | H29: =ROUND(H15*E29/100,2) -> 0.65 | J29: 0 | L29: =IF(ISERROR(J29/F29),0,J29/F29) -> 0
C30: Total Delivery | F30: =SUM(F26:F29) -> 450.086335 | H30: =SUM(H26:H29) -> 467.8021882 | J30: 17.71585324 | L30: =IF(ISERROR(J30/F30),0,J30/F30) -> 0.03936101113
C32: Rate Riders
C34: Rate Riders | E34: Metric | F34: =$F$10 -> 2015 Rate | H34: Proposed Rate | J34: Change $ | L34: Change %
C35: =$C$18 -> Shared Tax Changes 2015 | E35: 12 | F35: =F18*E35 -> 1.56 | H35: 0 | J35: =H35-F35 -> -1.56 | L35: =IF(ISERROR(J35/F35),1,J35/F35) -> -1
C36: =$C$19 -> Shared Tax Changes 2018 | E36: 12 | F36: 0 | H36: =H19*E36 -> 1.3008 | J36: =H36-F36 -> 1.3008 | L36: =IF(ISERROR(J36/F36),1,J36/F36) -> 1
C37: Total Rate Riders | F37: =SUM(F35:F36) -> 1.56 | H37: =SUM(H35:H36) -> 1.3008 | J37: =SUM(J35:J36) -> -0.2592 | L37: =IF(ISERROR(J37/F37),0,J37/F37) -> -0.1661538462
C39: Total Bill Impact | F39: =SUM(F30,F37) -> 451.646335 | H39: =SUM(H30,H37) -> 469.1029882 | J39: =SUM(J30,J37) -> 17.45665324 | L39: =IF(ISERROR(J39/F39),0,J39/F39) -> 0.03865115665
C42: =MID(CELL("filename",A1),FIND("]",CELL("filename",A1))+1,255) -> H1.1 Rate 1 Cumul Impact
C44: Rate 1 Delivery Bill Impact Cumulative Compared to 2015
C46: Rate 1 - Commercial | F46: =$F$10 -> 2015 Rate | H46: Proposed Rate
C48: Customer | F48: ='B1.1 Current Distribution Rates'!E17 -> 13.5 | H48: ='E1.1 Proposed Dist Rates '!E17 -> 13.5
C49: Block 1 (First 1,000 m3 per month) | F49: 16.2312 | H49: ='E1.1 Proposed Dist Rates '!F17 -> 17.2452599
C50: Block 2 (Over 1,000 m3 per month) | F50: 10.9099 | H50: ='E1.1 Proposed Dist Rates '!G17 -> 11.35189322
C51: System Gas Charge | F51: 0.0363 | H51: ='E1.1 Proposed Dist Rates '!L17 -> 0.0363
C53: Rate Riders
C54: =$C$18 -> Shared Tax Changes 2015 | F54: =$F$18 -> 0.13
C55: =$C$19 -> Shared Tax Changes 2018 | H55: =ROUND('F1.3 Proposed Rate Riders'!E14,4) -> 0.1084
C57: Average Annual Consumption
C58: Block 1 (First 1,000 m3 per month) | E58: =ROUND('B1.2 Billing Determinants'!F17/'B1.2 Billing Determinants'!E17,0) -> 3990
C59: Block 2 (Over 1,000 m3 per month) | E59: =ROUND('B1.2 Billing Determinants'!G17/'B1.2 Billing Determinants'!E17,0) -> 5375
E61: Metric | F61: =$F$10 -> 2015 Rate | H61: Proposed Rate | J61: Change $ | L61: Change %
C62: Customer | E62: 12 | F62: =F48*E62 -> 162 | H62: =H48*E62 -> 162 | J62: =H62-F62 -> 0 | L62: =IF(ISERROR(J62/F62),0,J62/F62) -> 0
C63: Block 1 (First 1,000 m3 per month) | E63: =E58 -> 3990 | F63: =F49*E63/100 -> 647.62488 | H63: =H49*E63/100 -> 688.08587 | J63: =H63-F63 -> 40.46099001 | L63: =IF(ISERROR(J63/F63),0,J63/F63) -> 0.06247596604
C64: Block 2 (Over 1,000 m3 per month) | E64: =E59 -> 5375 | F64: =F50*E64/100 -> 586.407125 | H64: =H50*E64/100 -> 610.1642603 | J64: 23.75713531 | L64: =IF(ISERROR(J64/F64),0,J64/F64) -> 0.04051304
C65: System Gas Charge | E65: =SUM(E63:E64) -> 9365 | F65: =F51*E65/100 -> 3.399495 | H65: =H51*E65/100 -> 3.399495 | J65: 0 | L65: =IF(ISERROR(J65/F65),0,J65/F65) -> 0
C66: Total Delivery | F66: =SUM(F62:F65) -> 1399.4315 | H66: =SUM(H62:H65) -> 1463.649625 | J66: 64.21812532 | L66: =IF(ISERROR(J66/F66),0,J66/F66) -> 0.04588872361
C68: Rate Riders
C70: Rate Riders | E70: Metric | F70: =$F$10 -> 2015 Rate | H70: Proposed Rate | J70: Change $ | L70: Change %
C71: =$C$18 -> Shared Tax Changes 2015 | E71: 12 | F71: =F54*E71 -> 1.56 | H71: 0 | J71: =H71-F71 -> -1.56 | L71: =IF(ISERROR(J71/F71),1,J71/F71) -> -1
C72: =$C$19 -> Shared Tax Changes 2018 | E72: 12 | F72: 0 | H72: =H55*E72 -> 1.3008 | J72: =H72-F72 -> 1.3008 | L72: =IF(ISERROR(J72/F72),1,J72/F72) -> 1
C73: Total Rate Riders | F73: =SUM(F71:F72) -> 1.56 | H73: =SUM(H71:H72) -> 1.3008 | J73: =SUM(J71:J72) -> -0.2592 | L73: =IF(ISERROR(J73/F73),0,J73/F73) -> -0.1661538462
C75: Total Bill Impact | F75: =SUM(F66,F73) -> 1400.9915 | H75: =SUM(H66,H73) -> 1464.950425 | J75: =SUM(J66,J73) -> 63.95892532 | L75: =IF(ISERROR(J75/F75),0,J75/F75) -> 0.04565261482
C78: =MID(CELL("filename",A34),FIND("]",CELL("filename",A34))+1,255) -> H1.1 Rate 1 Cumul Impact
C83: Rate 1 Delivery Bill Impact Cumulative Compared to 2015
C85: Rate 1 - Industrial | F85: =$F$10 -> 2015 Rate | H85: Proposed Rate
C87: Customer | F87: ='B1.1 Current Distribution Rates'!E18 -> 13.5 | H87: ='E1.1 Proposed Dist Rates '!E18 -> 13.5
C88: Block 1 (First 1,000 m3 per month) | F88: 16.2312 | H88: ='E1.1 Proposed Dist Rates '!F18 -> 17.2452599
C89: Block 2 (Over 1,000 m3 per month) | F89: 10.9099 | H89: ='E1.1 Proposed Dist Rates '!G18 -> 11.35189322
C90: System Gas Charge | F90: 0.0363 | H90: ='E1.1 Proposed Dist Rates '!L18 -> 0.0363
C92: Rate Riders
C93: =$C$18 -> Shared Tax Changes 2015 | F93: =$F$18 -> 0.13
C94: =$C$19 -> Shared Tax Changes 2018 | H94: =ROUND('F1.3 Proposed Rate Riders'!E15,4) -> 0.1084
C96: Average Annual Consumption
C97: Block 1 (First 1,000 m3 per month) | E97: =ROUND('B1.2 Billing Determinants'!F18/'B1.2 Billing Determinants'!E18,0) -> 5131
C98: Block 2 (Over 1,000 m3 per month) | E98: =ROUND('B1.2 Billing Determinants'!G18/'B1.2 Billing Determinants'!E18,0) -> 18276
E100: Metric | F100: =$F$10 -> 2015 Rate | H100: Proposed Rate | J100: Change $ | L100: Change %
C101: Customer | E101: 12 | F101: =F87*E101 -> 162 | H101: =H87*E101 -> 162 | J101: =H101-F101 -> 0 | L101: =IF(ISERROR(J101/F101),0,J101/F101) -> 0
C102: Block 1 (First 1,000 m3 per month) | E102: =E97 -> 5131 | F102: =F88*E102/100 -> 832.822872 | H102: =H88*E102/100 -> 884.8542855 | J102: =H102-F102 -> 52.03141347 | L102: =IF(ISERROR(J102/F102),0,J102/F102) -> 0.06247596604
C103: Block 2 (Over 1,000 m3 per month) | E103: =E98 -> 18276 | F103: =F89*E103/100 -> 1993.893324 | H103: =H89*E103/100 -> 2074.672004 | J103: 80.77867999 | L103: =IF(ISERROR(J103/F103),0,J103/F103) -> 0.04051304
C104: System Gas Charge | E104: =SUM(E102:E103) -> 23407 | F104: =F90*E104/100 -> 8.496741 | H104: =H90*E104/100 -> 8.496741 | J104: 0 | L104: =IF(ISERROR(J104/F104),0,J104/F104) -> 0
C105: Total Delivery | F105: =SUM(F101:F104) -> 2997.212937 | H105: =SUM(H101:H104) -> 3130.02303 | J105: 132.8100935 | L105: =IF(ISERROR(J105/F105),0,J105/F105) -> 0.04431119719
C107: Rate Riders
C109: Rate Riders | E109: Metric | F109: =$F$10 -> 2015 Rate | H109: Proposed Rate | J109: Change $ | L109: Change %
C110: =$C$18 -> Shared Tax Changes 2015 | E110: 12 | F110: =F93*E110 -> 1.56 | H110: 0 | J110: =H110-F110 -> -1.56 | L110: =IF(ISERROR(J110/F110),1,J110/F110) -> -1
C111: =$C$19 -> Shared Tax Changes 2018 | E111: 12 | F111: 0 | H111: =H94*E111 -> 1.3008 | J111: =H111-F111 -> 1.3008 | L111: =IF(ISERROR(J111/F111),1,J111/F111) -> 1
C112: Total Rate Riders | F112: =SUM(F110:F111) -> 1.56 | H112: =SUM(H110:H111) -> 1.3008 | J112: =SUM(J110:J111) -> -0.2592 | L112: =IF(ISERROR(J112/F112),0,J112/F112) -> -0.1661538462
C114: Total Bill Impact | F114: =SUM(F105,F112) -> 2998.772937 | H114: =SUM(H105,H112) -> 3131.32383 | J114: =SUM(J105,J112) -> 132.5508935 | L114: =IF(ISERROR(J114/F114),0,J114/F114) -> 0.04420171058
C116: =MID(CELL("filename",A68),FIND("]",CELL("filename",A68))+1,255) -> H1.1 Rate 1 Cumul Impact

Sheet H1.2 Rate 2 Cumul Impact
C2: ='A1.1 Distributor Information'!C3 -> Name of LDC: EPCOR Natural Gas Limited Partnership
C3: ='A1.1 Distributor Information'!C4 -> OEB Application Number: EB-2018-0235 Exhibit C - 2018 IRM Application Amended October 24, 2018
C7: Rate 2 Delivery Bill Impact Cumulative Compared to 2015
C9: Rate 2 - April to October | F9: 2015 Rate | H9: Proposed Rate
C11: Customer | F11: 15 | H11: ='E1.1 Proposed Dist Rates '!E19 -> 15
C12: Block 1 (First 1,000 m3 per month) | F12: 15.8212 | H12: ='E1.1 Proposed Dist Rates '!F19 -> 17.6428509
C13: Block 2 (Next 24,000 m3 per month) | F13: 9.4826 | H13: ='E1.1 Proposed Dist Rates '!H19 -> 9.4826
C14: Block 3 (Over 25,000 m3 per month) | F14: 6.1698 | H14: ='E1.1 Proposed Dist Rates '!I19 -> 6.1698
C15: System Gas Charge | F15: 0.0363 | H15: ='E1.1 Proposed Dist Rates '!L20 -> 0.0363
C17: Rate Riders
C18: Shared Tax Changes 2015 | F18: 0.24
C19: ='G1.1 Rate 1 Bill Impact'!$C$19 -> Shared Tax Changes 2018 | H19: =ROUND('F1.3 Proposed Rate Riders'!$E$16,4) -> 0.6908
C21: Average Seasonal Consumption
C22: Block 1 (First 1,000 m3 per month) | E22: =ROUND('B1.2 Billing Determinants'!F19/'B1.2 Billing Determinants'!E19,0) -> 7232
C23: Block 2 (Next 24,000 m3 per month) | E23: =ROUND('B1.2 Billing Determinants'!H19/'B1.2 Billing Determinants'!E19,0) -> 19259
C24: Block 3 (Over 25,000 m3 per month) | E24: =ROUND('B1.2 Billing Determinants'!I19/'B1.2 Billing Determinants'!E19,0) -> 0
E26: Metric | F26: 2015 Rate | H26: Proposed Rate | J26: Change $ | L26: Change %
C27: Customer | E27: 7 | F27: =F11*E27 -> 105 | H27: =H11*E27 -> 105 | J27: =H27-F27 -> 0 | L27: =IF(ISERROR(J27/F27),0,J27/F27) -> 0
C28: Block 1 (First 1,000 m3 per month) | E28: =E22 -> 7232 | F28: =F12*E28/100 -> 1144.189184 | H28: =H12*E28/100 -> 1275.930977 | J28: =H28-F28 -> 131.7417928 | L28: =IF(ISERROR(J28/F28),0,J28/F28) -> 0.115139869
C29: Block 2 (Next 24,000 m3 per month) | E29: =E23 -> 19259 | F29: =F13*E29/100 -> 1826.253934 | H29: =H13*E29/100 -> 1826.253934 | J29: 0 | L29: =IF(ISERROR(J29/F29),0,J29/F29) -> 0
C30: Block 3 (Over 25,000 m3 per month) | E30: =E24 -> 0 | F30: =F14*E30/100 -> 0 | H30: =H14*E30/100 -> 0 | J30: 0 | L30: 0
C31: System Gas Charge | E31: =SUM(E28:E29) -> 26491 | F31: =F15*E31/100 -> 9.616233 | H31: =H15*E31/100 -> 9.616233 | J31: 0 | L31: =IF(ISERROR(J31/F31),0,J31/F31) -> 0
C32: Total Delivery | F32: =SUM(F27:F31) -> 3085.059351 | H32: =SUM(H27:H31) -> 3216.801144 | J32: 131.7417928 | L32: =IF(ISERROR(J32/F32),0,J32/F32) -> 0.04270316316
C34: Rate Riders
C36: Rate Riders | E36: Metric | F36: 2015 Rate | H36: Proposed Rate | J36: Change $ | L36: Change %
C37: Shared Tax Changes 2015 | E37: 7 | F37: =F18*E37 -> 1.68 | H37: 0 | J37: =H37-F37 -> -1.68 | L37: =IF(ISERROR(J37/F37),0,J37/F37) -> -1
C38: ='G1.1 Rate 1 Bill Impact'!$C$19 -> Shared Tax Changes 2018 | E38: 7 | F38: 0 | H38: =H19*E38 -> 4.8356 | J38: =H38-F38 -> 4.8356 | L38: =IF(ISERROR(J38/F38),0,J38/F38) -> 0
C39: Total Rate Riders | F39: =SUM(F37:F38) -> 1.68 | H39: =SUM(H37:H38) -> 4.8356 | J39: =SUM(J37:J38) -> 3.1556 | L39: 1.878333333
C41: Total Bill Impact | F41: =SUM(F32,F39) -> 3086.739351 | H41: =SUM(H32,H39) -> 3221.636744 | J41: =SUM(J32,J39) -> 134.8973928 | L41: =IF(ISERROR(J41/F41),0,J41/F41) -> 0.04370222992
C43: =MID(CELL("filename",A1),FIND("]",CELL("filename",A1))+1,255) -> H1.2 Rate 2 Cumul Impact
C47: Rate 2 Delivery Bill Impact Cumulative Compared to 2015
C49: Rate 2 - November to March | F49: 2015 Rate | H49: Proposed Rate
C51: Customer | F51: 15 | H51: ='E1.1 Proposed Dist Rates '!E20 -> 15
C52: Block 1 (First 1,000 m3 per month) | F52: 19.9424 | H52: ='E1.1 Proposed Dist Rates '!F20 -> 22.23856532
C53: Block 2 (Next 24,000 m3 per month) | F53: 15.696 | H53: ='E1.1 Proposed Dist Rates '!H20 -> 15.696
C54: Block 3 (Over 25,000 m3 per month) | F54: 15.2899 | H54: ='E1.1 Proposed Dist Rates '!I20 -> 15.2899
C55: System Gas Charge | F55: 0.0363 | H55: ='E1.1 Proposed Dist Rates '!L20 -> 0.0363
C57: Rate Riders
C58: Shared Tax Changes 2015 | F58: 0.24
C59: ='G1.1 Rate 1 Bill Impact'!$C$19 -> Shared Tax Changes 2018 | H59: =ROUND('F1.3 Proposed Rate Riders'!$E$17,4) -> 0.6908
C61: Average Seasonal Consumption
C62: Block 1 (First 1,000 m3 per month) | E62: =ROUND('B1.2 Billing Determinants'!F20/'B1.2 Billing Determinants'!E20,0) -> 109
C63: Block 2 (Next 24,000 m3 per month) | E63: =ROUND('B1.2 Billing Determinants'!H20/'B1.2 Billing Determinants'!E20,0) -> 837
C64: Block 3 (Over 25,000 m3 per month) | E64: =ROUND('B1.2 Billing Determinants'!I20/'B1.2 Billing Determinants'!E20,0) -> 0
E66: Metric | F66: 2015 Rate | H66: Proposed Rate | J66: Change $ | L66: Change %
C67: Customer | E67: 5 | F67: =F51*E67 -> 75 | H67: =H51*E67 -> 75 | J67: =H67-F67 -> 0 | L67: =IF(ISERROR(J67/F67),0,J67/F67) -> 0
C68: Block 1 (First 1,000 m3 per month) | E68: =E62 -> 109 | F68: =F52*E68/100 -> 21.737216 | H68: =H52*E68/100 -> 24.2400362 | J68: =H68-F68 -> 2.502820204 | L68: 0.115139869
C69: Block 2 (Next 24,000 m3 per month) | E69: =E63 -> 837 | F69: =F53*E69/100 -> 131.37552 | H69: =H53*E69/100 -> 131.37552 | J69: 0 | L69: 0
C70: Block 3 (Over 25,000 m3 per month) | E70: =E64 -> 0 | F70: =F54*E70/100 -> 0 | H70: =H54*E70/100 -> 0 | J70: 0 | L70: 0
C71: System Gas Charge | E71: =SUM(E68:E69) -> 946 | F71: =F55*E71/100 -> 0.343398 | H71: =H55*E71/100 -> 0.343398 | J71: 0 | L71: 0
C72: Total Delivery | F72: =SUM(F67:F71) -> 228.456134 | H72: =SUM(H67:H71) -> 230.9589542 | J72: 2.502820204 | L72: 0.01095536443
C74: Rate Riders
C76: Rate Riders | E76: Metric | F76: 2015 Rate | H76: Proposed Rate | J76: Change $ | L76: Change %
C77: Shared Tax Changes 2015 | E77: 5 | F77: =F58*E77 -> 1.2 | H77: 0 | J77: =H77-F77 -> -1.2 | L77: =IF(ISERROR(J77/F77),0,J77/F77) -> -1
C78: ='G1.1 Rate 1 Bill Impact'!$C$19 -> Shared Tax Changes 2018 | E78: 5 | F78: 0 | H78: =H59*E78 -> 3.454 | J78: =H78-F78 -> 3.454 | L78: =IF(ISERROR(J78/F78),0,J78/F78) -> 0
C79: Total Rate Riders | F79: =SUM(F77:F78) -> 1.2 | H79: =SUM(H77:H78) -> 3.454 | J79: =SUM(J77:J78) -> 2.254 | L79: 1.878333333
C81: Total Bill Impact | F81: =SUM(F72,F79) -> 229.656134 | H81: =SUM(H72,H79) -> 234.4129542 | J81: =SUM(J72,J79) -> 4.756820204 | L81: =IF(ISERROR(J81/F81),0,J81/F81) -> 0.02071279404
C83: =MID(CELL("filename",A41),FIND("]",CELL("filename",A41))+1,255) -> H1.2 Rate 2 Cumul Impact
C85: Rate 2 Delivery Bill Impact Cumulative Compared to 2015
C87: Rate 2 - Annual
C89: Average Annual Consumption
C90: Block 1 (First 1,000 m3 per month) | E90: =E22+E62 -> 7341
C91: Block 2 (Next 24,000 m3 per month) | E91: =E23+E63 -> 20096
C92: Block 3 (Over 25,000 m3 per month) | E92: =E24+E64 -> 0
E94: Metric | F94: 2015 Rate | H94: Proposed Rate | J94: Change $ | L94: Change %
C95: Customer | E95: =E27+E67 -> 12 | F95: =F27+F67 -> 180 | H95: =H27+H67 -> 180 | J95: =H95-F95 -> 0 | L95: =IF(ISERROR(J95/F95),0,J95/F95) -> 0
C96: Block 1 (First 1,000 m3 per month) | E96: =E90 -> 7341 | F96: =F28+F68 -> 1165.9264 | H96: =H28+H68 -> 1300.171013 | J96: =H96-F96 -> 134.244613 | L96: 0.115139869
C97: Block 2 (Next 24,000 m3 per month) | E97: =E91 -> 20096 | F97: =F29+F69 -> 1957.629454 | H97: =H29+H69 -> 1957.629454 | J97: 0 | L97: 0
C98: Block 3 (Over 25,000 m3 per month) | E98: =E92 -> 0 | F98: =F30+F70 -> 0 | H98: =H30+H70 -> 0 | J98: 0 | L98: 0
C99: System Gas Charge | E99: =SUM(E96:E97) -> 27437 | F99: =F31+F71 -> 9.959631 | H99: =H31+H71 -> 9.959631 | J99: 0 | L99: 0
C100: Total Delivery | F100: =SUM(F95:F99) -> 3313.515485 | H100: =SUM(H95:H99) -> 3447.760098 | J100: 134.244613 | L100: 0.04051425552
C102: Rate Riders
C104: Rate Riders | E104: Metric | F104: 2015 Rate | H104: Proposed Rate | J104: Change $ | L104: Change %
C105: Shared Tax Changes 2015 | E105: =E37+E77 -> 12 | F105: =F37+F77 -> 2.88 | H105: =H37+H77 -> 0 | J105: =H105-F105 -> -2.88 | L105: =IF(ISERROR(J105/F105),1,J105/F105) -> -1
C106: ='G1.1 Rate 1 Bill Impact'!$C$19 -> Shared Tax Changes 2018 | E106: =E38+E78 -> 12 | F106: =F38+F78 -> 0 | H106: =H38+H78 -> 8.2896 | J106: =H106-F106 -> 8.2896 | L106: =IF(ISERROR(J106/F106),1,J106/F106) -> 1
C107: Total Rate Riders | F107: =SUM(F105:F106) -> 2.88 | H107: =SUM(H105:H106) -> 8.2896 | J107: =SUM(J105:J106) -> 5.4096 | L107: =IF(ISERROR(J107/F107),0,J107/F107) -> 1.878333333
C109: Total Bill Impact | F109: =SUM(F100,F107) -> 3316.395485 | H109: =SUM(H100,H107) -> 3456.049698 | J109: =SUM(J100,J107) -> 139.654213 | L109: =IF(ISERROR(J109/F109),0,J109/F109) -> 0.04211024097
C111: =MID(CELL("filename",A1),FIND("]",CELL("filename",A1))+1,255) -> H1.2 Rate 2 Cumul Impact

Sheet H1.3 Rate 3 Cumul Impact
C2: ='A1.1 Distributor Information'!C3 -> Name of LDC: EPCOR Natural Gas Limited Partnership
C3: ='A1.1 Distributor Information'!C4 -> OEB Application Number: EB-2018-0235 Exhibit C - 2018 IRM Application Amended October 24, 2018
C10: Rate 3 Delivery Bill Impact Cumulative Compared to 2015
C15: Special Large Volume Contract Rate | F15: 2015 Rate | H15: Proposed Rate
C17: Customer | F17: 150 | H17: ='E1.1 Proposed Dist Rates '!E21 -> 150
C18: Delivery - Firm | F18: 4.0357 | H18: ='E1.1 Proposed Dist Rates '!J21 -> 4.403534144
C19: Demand - Firm | F19: 29.0974 | H19: ='E1.1 Proposed Dist Rates '!K21 -> 29.0974
C20: System Gas Charge | F20: 0.0363 | H20: ='E1.1 Proposed Dist Rates '!L21 -> 0.0363
C22: Rate Riders
C23: Shared Tax Changes 2015 | F23: 10.53
C24: ='G1.1 Rate 1 Bill Impact'!$C$19 -> Shared Tax Changes 2018 | H24: =ROUND('F1.3 Proposed Rate Riders'!$E$18,4) -> 5.6243
C26: Average Annual Consumption
C27: Delivery - Firm | E27: =ROUND('B1.2 Billing Determinants'!J21/'B1.2 Billing Determinants'!E21,0) -> 297114
C28: Demand - Firm | E28: =ROUND('B1.2 Billing Determinants'!K21/'B1.2 Billing Determinants'!E21,0) -> 44945
E30: Metric | F30: 2015 Rate | H30: Proposed Rate | J30: Change $ | L30: Change %
C31: Customer | E31: 12 | F31: =F17*E31 -> 1800 | H31: =H17*E31 -> 1800 | J31: =H31-F31 -> 0 | L31: =IF(ISERROR(J31/F31),0,J31/F31) -> 0
C32: Delivery - Firm | E32: =E27 -> 297114 | F32: =F18*E32/100 -> 11990.6297 | H32: =H18*E32/100 -> 13083.51644 | J32: =H32-F32 -> 1092.886739 | L32: =IF(ISERROR(J32/F32),0,J32/F32) -> 0.09114506631
C33: Demand - Firm | E33: =E28 -> 44945 | F33: =F19*E33/100 -> 13077.82643 | H33: =H19*E33/100 -> 13077.82643 | J33: 0 | L33: =IF(ISERROR(J33/F33),0,J33/F33) -> 0
C34: System Gas Charge | E34: =E27 -> 297114 | F34: =F20*E34/100 -> 107.852382 | H34: =H20*E34/100 -> 107.852382 | J34: 0 | L34: =IF(ISERROR(J34/F34),0,J34/F34) -> 0
C35: Total Delivery | F35: =SUM(F31:F34) -> 26976.30851 | H35: =SUM(H31:H34) -> 28069.19525 | J35: 1092.886739 | L35: =IF(ISERROR(J35/F35),0,J35/F35) -> 0.04051283513
C37: Rate Riders
C39: Rate Riders | E39: Metric | F39: 2015 Rate | H39: Proposed Rate | J39: Change $ | L39: Change %
C40: Shared Tax Changes 2015 | E40: 12 | F40: =F23*E40 -> 126.36 | H40: 0 | J40: =H40-F40 -> -126.36 | L40: =IF(ISERROR(J40/F40),1,J40/F40) -> -1
C41: ='G1.1 Rate 1 Bill Impact'!$C$19 -> Shared Tax Changes 2018 | E41: 12 | F41: 0 | H41: =H24*E41 -> 67.4916 | J41: =H41-F41 -> 67.4916 | L41: =IF(ISERROR(J41/F41),1,J41/F41) -> 1
C42: Total Rate Riders | F42: =SUM(F40:F41) -> 126.36 | H42: =SUM(H40:H41) -> 67.4916 | J42: =SUM(J40:J41) -> -58.8684 | L42: =IF(ISERROR(J42/F42),0,J42/F42) -> -0.4658784425
C44: Total Bill Impact | F44: =SUM(F35,F42) -> 27102.66851 | H44: =SUM(H35,H42) -> 28136.68685 | J44: =SUM(J35,J42) -> 1034.018339 | L44: =IF(ISERROR(J44/F44),0,J44/F44) -> 0.03815190148
C47: =MID(CELL("filename",A1),FIND("]",CELL("filename",A1))+1,255) -> H1.3 Rate 3 Cumul Impact

Sheet H1.4 Rate 4 Cumul Impact
C2: ='A1.1 Distributor Information'!C3 -> Name of LDC: EPCOR Natural Gas Limited Partnership
C3: ='A1.1 Distributor Information'!C4 -> OEB Application Number: EB-2018-0235 Exhibit C - 2018 IRM Application Amended October 24, 2018
C7: Rate 4 Delivery Bill Impact Cumulative Compared to 2015
C11: Rate 4 - April to December | F11: 2015 Rate | H11: Proposed Rate
C13: Customer | F13: 15 | H13: ='E1.1 Proposed Dist Rates '!E22 -> 15
C14: Block 1 (First 1,000 m3 per month) | F14: 15.8149 | H14: ='E1.1 Proposed Dist Rates '!F22 -> 17.40847394
C15: Block 2 (Over 1,000 m3 per month) | F15: 10.5218 | H15: ='E1.1 Proposed Dist Rates '!G22 -> 10.5218
C16: System Gas Charge | F16: 0.0363 | H16: ='E1.1 Proposed Dist Rates '!L22 -> 0.0363
C18: Rate Riders
C19: Shared Tax Changes 2015 | F19: 0.69
C20: ='G1.1 Rate 1 Bill Impact'!$C$19 -> Shared Tax Changes 2018 | H20: =ROUND('F1.3 Proposed Rate Riders'!$E$19,4) -> 0.8522
C22: Average Seasonal Consumption
C23: Block 1 (First 1,000 m3 per month) | E23: =ROUND('B1.2 Billing Determinants'!F22/'B1.2 Billing Determinants'!E22,0) -> 6422
C24: Block 2 (Over 1,000 m3 per month) | E24: =ROUND('B1.2 Billing Determinants'!G22/'B1.2 Billing Determinants'!E22,0) -> 6586
E26: Metric | F26: 2015 Rate | H26: Proposed Rate | J26: Change $ | L26: Change %
C27: Customer | E27: 9 | F27: =F13*E27 -> 135 | H27: =H13*E27 -> 135 | J27: =H27-F27 -> 0 | L27: =IF(ISERROR(J27/F27),0,J27/F27) -> 0
C28: Block 1 (First 1,000 m3 per month) | E28: =E23 -> 6422 | F28: =F14*E28/100 -> 1015.632878 | H28: =H14*E28/100 -> 1117.972197 | J28: =H28-F28 -> 102.3393185 | L28: =IF(ISERROR(J28/F28),0,J28/F28) -> 0.1007640858
C29: Block 2 (Over 1,000 m3 per month) | E29: =E24 -> 6586 | F29: =F15*E29/100 -> 692.965748 | H29: =H15*E29/100 -> 692.965748 | J29: 0 | L29: =IF(ISERROR(J29/F29),0,J29/F29) -> 0
C30: System Gas Charge | E30: =SUM(E28:E29) -> 13008 | F30: =F16*E30/100 -> 4.721904 | H30: =H16*E30/100 -> 4.721904 | J30: 0 | L30: =IF(ISERROR(J30/F30),0,J30/F30) -> 0
C31: Total Delivery | F31: =SUM(F27:F30) -> 1848.32053 | H31: =SUM(H27:H30) -> 1950.659849 | J31: 102.3393185 | L31: =IF(ISERROR(J31/F31),0,J31/F31) -> 0.05536881555
C33: Rate Riders
C35: Rate Riders | E35: Metric | F35: 2015 Rate | H35: Proposed Rate | J35: Change $ | L35: Change %
C36: Shared Tax Changes 2015 | E36: 9 | F36: =F19*E36 -> 6.21 | H36: 0 | J36: =H36-F36 -> -6.21 | L36: =IF(ISERROR(J36/F36),1,J36/F36) -> -1
C37: ='G1.1 Rate 1 Bill Impact'!$C$19 -> Shared Tax Changes 2018 | E37: 9 | F37: 0 | H37: =H20*E37 -> 7.6698 | J37: =H37-F37 -> 7.6698 | L37: =IF(ISERROR(J37/F37),1,J37/F37) -> 1
C38: Total Rate Riders | F38: =SUM(F36:F37) -> 6.21 | H38: =SUM(H36:H37) -> 7.6698 | J38: =SUM(J36:J37) -> 1.4598 | L38: =IF(ISERROR(J38/F38),0,J38/F38) -> 0.2350724638
C40: Total Bill Impact | F40: =SUM(F31,F38) -> 1854.53053 | H40: =SUM(H31,H38) -> 1958.329649 | J40: =SUM(J31,J38) -> 103.7991185 | L40: =IF(ISERROR(J40/F40),0,J40/F40) -> 0.05597056334
C43: =MID(CELL("filename",A1),FIND("]",CELL("filename",A1))+1,255) -> H1.4 Rate 4 Cumul Impact
C45: Rate 4 Delivery Bill Impact Cumulative Compared to 2015
C47: Rate 4 - January to March | F47: 2015 Rate | H47: Proposed Rate
C49: Customer | F49: 15 | H49: ='E1.1 Proposed Dist Rates '!E23 -> 15
C50: Block 1 (First 1,000 m3 per month) | F50: 20.1755 | H50: ='E1.1 Proposed Dist Rates '!F23 -> 22.20846581
C51: Block 2 (Over 1,000 m3 per month) | F51: 16.9052 | H51: ='E1.1 Proposed Dist Rates '!G23 -> 16.9052
C52: System Gas Charge | F52: 0.0363 | H52: ='E1.1 Proposed Dist Rates '!L23 -> 0.0363
C54: Rate Riders
C55: Shared Tax Changes 2015 | F55: 0.69
C56: ='G1.1 Rate 1 Bill Impact'!$C$19 -> Shared Tax Changes 2018 | H56: =ROUND('F1.3 Proposed Rate Riders'!$E$20,4) -> 0.8522
C58: Average Seasonal Consumption
C59: Block 1 (First 1,000 m3 per month) | E59: =ROUND('B1.2 Billing Determinants'!F23/'B1.2 Billing Determinants'!E23,0) -> 3112
C60: Block 2 (Over 1,000 m3 per month) | E60: =ROUND('B1.2 Billing Determinants'!G23/'B1.2 Billing Determinants'!E23,0) -> 9240
E62: Metric | F62: 2015 Rate | H62: Proposed Rate | J62: Change $ | L62: Change %
C63: Customer | E63: 3 | F63: =F49*E63 -> 45 | H63: =H49*E63 -> 45 | J63: =H63-F63 -> 0 | L63: =IF(ISERROR(J63/F63),0,J63/F63) -> 0
C64: Block 1 (First 1,000 m3 per month) | E64: =E59 -> 3112 | F64: =F50*E64/100 -> 627.86156 | H64: =H50*E64/100 -> 691.1274561 | J64: =H64-F64 -> 63.26589613 | L64: 0.1007640858
C65: Block 2 (Over 1,000 m3 per month) | E65: =E60 -> 9240 | F65: =F51*E65/100 -> 1562.04048 | H65: =H51*E65/100 -> 1562.04048 | J65: 0 | L65: 0
C66: System Gas Charge | E66: =SUM(E64:E65) -> 12352 | F66: =F52*E66/100 -> 4.483776 | H66: =H52*E66/100 -> 4.483776 | J66: 0 | L66: 0
C67: Total Delivery | F67: =SUM(F63:F66) -> 2239.385816 | H67: =SUM(H63:H66) -> 2302.651712 | J67: 63.26589613 | L67: 0.02825144987
C69: Rate Riders
C71: Rate Riders | E71: Metric | F71: 2015 Rate | H71: Proposed Rate | J71: Change $ | L71: Change %
C72: Shared Tax Changes 2015 | E72: 3 | F72: =F55*E72 -> 2.07 | H72: 0 | J72: =H72-F72 -> -2.07 | L72: =IF(ISERROR(J72/F72),1,J72/F72) -> -1
C73: ='G1.1 Rate 1 Bill Impact'!$C$19 -> Shared Tax Changes 2018 | E73: 3 | F73: 0 | H73: =H56*E73 -> 2.5566 | J73: =H73-F73 -> 2.5566 | L73: =IF(ISERROR(J73/F73),1,J73/F73) -> 1
C74: Total Rate Riders | F74: =SUM(F72:F73) -> 2.07 | H74: =SUM(H72:H73) -> 2.5566 | J74: =SUM(J72:J73) -> 0.4866 | L74: =IF(ISERROR(J74/F74),0,J74/F74) -> 0.2350724638
C76: Total Bill Impact | F76: =SUM(F67,F74) -> 2241.455816 | H76: =SUM(H67,H74) -> 2305.208312 | J76: =SUM(J67,J74) -> 63.75249613 | L76: =IF(ISERROR(J76/F76),0,J76/F76) -> 0.02844245052
C79: =MID(CELL("filename",A33),FIND("]",CELL("filename",A33))+1,255) -> H1.4 Rate 4 Cumul Impact
C81: Rate 4 Delivery Bill Impact Cumulative Compared to 2015
C83: Rate 4 - Annual
C85: Average Annual Consumption
C86: Block 1 (First 1,000 m3 per month) | E86: =E23+E59 -> 9534
C87: Block 2 (Over 1,000 m3 per month) | E87: =E24+E60 -> 15826
E89: Metric | F89: 2015 Rate | H89: Proposed Rate | J89: Change $ | L89: Change %
C90: Customer | E90: =E27+E63 -> 12 | F90: =F27+F63 -> 180 | H90: =H27+H63 -> 180 | J90: =H90-F90 -> 0 | L90: =IF(ISERROR(J90/F90),0,J90/F90) -> 0
C91: Block 1 (First 1,000 m3 per month) | E91: =E86 -> 9534 | F91: =F28+F64 -> 1643.494438 | H91: =H28+H64 -> 1809.099653 | J91: =H91-F91 -> 165.6052146 | L91: 0.1007640858
C92: Block 2 (Over 1,000 m3 per month) | E92: =E87 -> 15826 | F92: =F29+F65 -> 2255.006228 | H92: =H29+H65 -> 2255.006228 | J92: 0 | L92: 0
C93: System Gas Charge | E93: =SUM(E91:E92) -> 25360 | F93: =F30+F66 -> 9.20568 | H93: =H30+H66 -> 9.20568 | J93: 0 | L93: 0
C94: Total Delivery | F94: =SUM(F90:F93) -> 4087.706346 | H94: =SUM(H90:H93) -> 4253.311561 | J94: 165.6052146 | L94: 0.04051299203
C96: Rate Riders
C98: Rate Riders | E98: Metric | F98: 2015 Rate | H98: Proposed Rate | J98: Change $ | L98: Change %
C99: Shared Tax Changes 2015 | E99: =E72+E36 -> 12 | F99: =F72+F36 -> 8.28 | H99: =H72+H36 -> 0 | J99: =H99-F99 -> -8.28 | L99: =IF(ISERROR(J99/F99),1,J99/F99) -> -1
C100: ='G1.1 Rate 1 Bill Impact'!$C$19 -> Shared Tax Changes 2018 | E100: =E73+E37 -> 12 | F100: =F73+F37 -> 0 | H100: =H73+H37 -> 10.2264 | J100: =H100-F100 -> 10.2264 | L100: =IF(ISERROR(J100/F100),1,J100/F100) -> 1
C101: Total Rate Riders | F101: =SUM(F99:F100) -> 8.28 | H101: =SUM(H99:H100) -> 10.2264 | J101: =SUM(J99:J100) -> 1.9464 | L101: =IF(ISERROR(J101/F101),0,J101/F101) -> 0.2350724638
C103: Total Bill Impact | F103: =SUM(F94,F101) -> 4095.986346 | H103: =SUM(H94,H101) -> 4263.537961 | J103: =SUM(J94,J101) -> 167.5516146 | L103: =IF(ISERROR(J103/F103),0,J103/F103) -> 0.04090629228
C106: =MID(CELL("filename",A61),FIND("]",CELL("filename",A61))+1,255) -> H1.4 Rate 4 Cumul Impact

Sheet H1.5 Rate 5 Cumul Impact
C2: ='A1.1 Distributor Information'!C3 -> Name of LDC: EPCOR Natural Gas Limited Partnership
C3: ='A1.1 Distributor Information'!C4 -> OEB Application Number: EB-2018-0235 Exhibit C - 2018 IRM Application Amended October 24, 2018
C10: Rate 5 Delivery Bill Impact Cumulative Compared to 2015
C15: Interruptible Peaking Contract Rate | F15: 2015 Rate | H15: Proposed Rate
C17: Customer | F17: 150 | H17: ='E1.1 Proposed Dist Rates '!E24 -> 150
C18: Delivery - Firm | F18: 7.1995 | H18: ='E1.1 Proposed Dist Rates '!J24 -> 7.545306657
C19: System Gas Charge | F19: 0.0363 | H19: ='E1.1 Proposed Dist Rates '!L24 -> 0.0363
C21: Rate Riders
C22: Shared Tax Changes 2015 | F22: 3.81
C23: ='G1.1 Rate 1 Bill Impact'!$C$19 -> Shared Tax Changes 2018 | H23: =ROUND('F1.3 Proposed Rate Riders'!$E$21,4) -> 2.4643
C25: Average Annual Consumption
C26: Delivery - Firm | E26: =ROUND('B1.2 Billing Determinants'!J24/'B1.2 Billing Determinants'!E24,0) -> 138474
E28: Metric | F28: Current Rate | H28: Proposed Rate | J28: Change $ | L28: Change %
C29: Customer | E29: 12 | F29: =F17*E29 -> 1800 | H29: =H17*E29 -> 1800 | J29: =H29-F29 -> 0 | L29: =IF(ISERROR(J29/F29),0,J29/F29) -> 0
C30: Delivery - Firm | E30: =E26 -> 138474 | F30: =F18*E30/100 -> 9969.43563 | H30: =H18*E30/100 -> 10448.28794 | J30: =H30-F30 -> 478.8523107 | L30: =IF(ISERROR(J30/F30),0,J30/F30) -> 0.04803203797
C31: System Gas Charge | E31: =E26 -> 138474 | F31: =F19*E31/100 -> 50.266062 | H31: =H19*E31/100 -> 50.266062 | J31: 0 | L31: =IF(ISERROR(J31/F31),0,J31/F31) -> 0
C32: Total Delivery | F32: =SUM(F29:F31) -> 11819.70169 | H32: =SUM(H29:H31) -> 12298.554 | J32: 478.8523107 | L32: =IF(ISERROR(J32/F32),0,J32/F32) -> 0.04051306228
C34: Rate Riders
C36: Rate Riders | E36: Metric | F36: Current Rate | H36: Proposed Rate | J36: Change $ | L36: Change %
C37: Shared Tax Changes 2015 | E37: 12 | F37: =F22*E37 -> 45.72 | H37: 0 | J37: =H37-F37 -> -45.72 | L37: =IF(ISERROR(J37/F37),1,J37/F37) -> -1
C38: ='G1.1 Rate 1 Bill Impact'!$C$19 -> Shared Tax Changes 2018 | E38: 12 | F38: 0 | H38: =H23*E38 -> 29.5716 | J38: =H38-F38 -> 29.5716 | L38: =IF(ISERROR(J38/F38),1,J38/F38) -> 1
C39: Total Rate Riders | F39: =SUM(F37:F38) -> 45.72 | H39: =SUM(H37:H38) -> 29.5716 | J39: =SUM(J37:J38) -> -16.1484 | L39: =IF(ISERROR(J39/F39),0,J39/F39) -> -0.3532020997
C41: Total Bill Impact | F41: =SUM(F32,F39) -> 11865.42169 | H41: =SUM(H32,H39) -> 12328.1256 | J41: =SUM(J32,J39) -> 462.7039107 | L41: =IF(ISERROR(J41/F41),0,J41/F41) -> 0.0389959938
C44: =MID(CELL("filename",A1),FIND("]",CELL("filename",A1))+1,255) -> H1.5 Rate 5 Cumul Impact

Sheet H1.6 Rate 6 Cumul Impact
C2: ='A1.1 Distributor Information'!C3 -> Name of LDC: EPCOR Natural Gas Limited Partnership
C3: ='A1.1 Distributor Information'!C4 -> OEB Application Number: EB-2018-0235 Exhibit C - 2018 IRM Application Amended October 24, 2018
C10: Rate 6 Delivery Bill Impact Cumulative Compared to 2015
C15: Special Large Volume Contract Rate | F15: 2015 Rate | H15: Proposed Rate
C17: Customer | F17: 150 | H17: ='E1.1 Proposed Dist Rates '!E25 -> 150
C18: Delivery - Firm | F18: 3.8894 | H18: ='E1.1 Proposed Dist Rates '!J25 -> 4.047161206
C19: Demand - Firm | F19: 18.8392 | H19: ='E1.1 Proposed Dist Rates '!K25 -> 19.60243326
C21: Rate Riders
C22: Shared Tax Changes 2015 | F22: 380.13
C23: ='G1.1 Rate 1 Bill Impact'!$C$19 -> Shared Tax Changes 2018 | H23: =ROUND('F1.3 Proposed Rate Riders'!$E$22,4) -> 375.0371
C25: Average Annual Consumption
C26: Delivery - Firm | E26: ='B1.2 Billing Determinants'!J25 -> 38423518
C27: Demand - Firm | E27: ='B1.2 Billing Determinants'!K25 -> 1606140
E29: Metric | F29: 2015 Rate | H29: Proposed Rate | J29: Change $ | L29: Change %
C30: Customer | E30: 12 | F30: =F17*E30 -> 1800 | H30: =H17*E30 -> 1800 | J30: =H30-F30 -> 0 | L30: =IF(ISERROR(J30/F30),0,J30/F30) -> 0
C31: Delivery - Firm | E31: =E26 -> 38423518 | F31: =F18*E31/100 -> 1494444.309 | H31: =H18*E31/100 -> 1555061.715 | J31: =H31-F31 -> 60617.40554 | L31: =IF(ISERROR(J31/F31),0,J31/F31) -> 0.04056183638
C32: Demand - Firm | E32: =E27 -> 1606140 | F32: =F19*E32/100 -> 302583.9269 | H32: =H19*E32/100 -> 314842.5216 | J32: 12258.59473 | L32: =IF(ISERROR(J32/F32),0,J32/F32) -> 0.04051304
C33: Total Delivery | F33: =SUM(F30:F32) -> 1798828.236 | H33: =SUM(H30:H32) -> 1871704.236 | J33: 72876.00028 | L33: =IF(ISERROR(J33/F33),0,J33/F33) -> 0.04051304
C35: Rate Riders
C37: Rate Riders | E37: Metric | F37: 2015 Rate | H37: Proposed Rate | J37: Change $ | L37: Change %
C38: ='G1.1 Rate 1 Bill Impact'!$C$18 -> Shared Tax Changes 2017 | E38: 12 | F38: =F22*E38 -> 4561.56 | H38: 0 | J38: =H38-F38 -> -4561.56 | L38: =IF(ISERROR(J38/F38),1,J38/F38) -> -1
C39: ='G1.1 Rate 1 Bill Impact'!$C$19 -> Shared Tax Changes 2018 | E39: 12 | F39: 0 | H39: =H23*E39 -> 4500.4452 | J39: =H39-F39 -> 4500.4452 | L39: =IF(ISERROR(J39/F39),1,J39/F39) -> 1
C40: Total Rate Riders | F40: =SUM(F38:F39) -> 4561.56 | H40: =SUM(H38:H39) -> 4500.4452 | J40: =SUM(J38:J39) -> -61.1148 | L40: =IF(ISERROR(J40/F40),0,J40/F40) -> -0.01339778497
C42: Total Bill Impact | F42: =SUM(F33,F40) -> 1803389.796 | H42: =SUM(H33,H40) -> 1876204.681 | J42: =SUM(J33,J40) -> 72814.88548 | L42: =IF(ISERROR(J42/F42),0,J42/F42) -> 0.04037667599
C45: =MID(CELL("filename",A1),FIND("]",CELL("filename",A1))+1,255) -> H1.6 Rate 6 Cumul Impact

Sheet H1.7 Cumulative Bill Impact
C2: ='A1.1 Distributor Information'!C3 -> Name of LDC: EPCOR Natural Gas Limited Partnership
C3: ='A1.1 Distributor Information'!C4 -> OEB Application Number: EB-2018-0235 Exhibit C - 2018 IRM Application Amended October 24, 2018
C5: Bill Impacts Summary - Breakdown of Cumulative Increases Compared to 2015 Rates
C7: Rate Class | D7: Fixed Change | E7: Volumetric Change In 2016 IRM | F7: Volumetric Change in 2017 IRM | G7: Volumetric Change in 2018 IRM | H7: Shared Tax Rate Rider | I7: Total Change $ | J7: Total Change %
C9: Rate 1 - Residential | D9: ='G1.1 Rate 1 Bill Impact'!J26 -> 0 | E9: ='H1.8 2016 IRM Bill Impact'!E9 -> 7.433890548 | F9: ='H1.9 2017 IRM Bill Impact'!E9 -> 6.670823548 | G9: =SUM('G1.1 Rate 1 Bill Impact'!J27:J29) -> 3.611139147 | H9: ='H1.8 2016 IRM Bill Impact'!F9 -> -0.2592 | I9: ='H1.1 Rate 1 Cumul Impact'!J39 -> 17.45665324 | J9: ='H1.1 Rate 1 Cumul Impact'!L39 -> 0.03865115665
C10: Rate 1 - Commercial | D10: ='G1.1 Rate 1 Bill Impact'!J62 -> 0 | E10: ='H1.8 2016 IRM Bill Impact'!E10 -> 26.94708001 | F10: ='H1.9 2017 IRM Bill Impact'!E10 -> 24.18104151 | G10: =SUM('G1.1 Rate 1 Bill Impact'!J63:J65) -> 13.0900038 | H10: ='H1.8 2016 IRM Bill Impact'!F10 -> -0.2592 | I10: ='H1.1 Rate 1 Cumul Impact'!J75 -> 63.95892532 | J10: ='H1.1 Rate 1 Cumul Impact'!L75 -> 0.04565261482
C11: Rate 1 - Industrial | D11: ='G1.1 Rate 1 Bill Impact'!J101 -> 0 | E11: ='H1.8 2016 IRM Bill Impact'!E11 -> 55.72950311 | F11: ='H1.9 2017 IRM Bill Impact'!E11 -> 50.00903353 | G11: =SUM('G1.1 Rate 1 Bill Impact'!J102:J104) -> 27.07155682 | H11: ='H1.8 2016 IRM Bill Impact'!F11 -> -0.2592 | I11: ='H1.1 Rate 1 Cumul Impact'!J114 -> 132.5508935 | J11: ='H1.1 Rate 1 Cumul Impact'!L114 -> 0.04420171058
C13: ='G1.2 Rate 2 Bill Impact'!C9 -> Rate 2 - April to October | D13: ='G1.2 Rate 2 Bill Impact'!J27 -> 0 | E13: ='H1.8 2016 IRM Bill Impact'!E13 -> 55.28122495 | F13: ='H1.9 2017 IRM Bill Impact'!E13 -> 49.6067698 | G13: ='G1.2 Rate 2 Bill Impact'!J32-'H1.7 Cumulative Bill Impact'!D13 -> 26.85379805 | H13: ='H1.8 2016 IRM Bill Impact'!F13 -> 3.1556 | I13: ='H1.2 Rate 2 Cumul Impact'!J41 -> 134.8973928 | J13: ='H1.2 Rate 2 Cumul Impact'!L41 -> 0.04370222992
C14: ='G1.2 Rate 2 Bill Impact'!C49 -> Rate 2 - November to March | D14: ='G1.2 Rate 2 Bill Impact'!J67 -> 0 | E14: ='H1.8 2016 IRM Bill Impact'!E14 -> 1.050228358 | F14: ='H1.9 2017 IRM Bill Impact'!E14 -> 0.9424255056 | G14: ='G1.2 Rate 2 Bill Impact'!J72-'H1.7 Cumulative Bill Impact'!D14 -> 0.5101663404 | H14: ='H1.8 2016 IRM Bill Impact'!F14 -> 2.254 | I14: ='H1.2 Rate 2 Cumul Impact'!J81 -> 4.756820204 | J14: ='H1.2 Rate 2 Cumul Impact'!L81 -> 0.02071279404
C15: ='G1.2 Rate 2 Bill Impact'!C87 -> Rate 2 - Annual | D15: ='G1.2 Rate 2 Bill Impact'!J95 -> 0 | E15: ='H1.8 2016 IRM Bill Impact'!E15 -> 56.33145331 | F15: ='H1.9 2017 IRM Bill Impact'!E15 -> 50.54919531 | G15: ='G1.2 Rate 2 Bill Impact'!J100-'H1.7 Cumulative Bill Impact'!D15 -> 27.36396439 | H15: ='H1.8 2016 IRM Bill Impact'!F15 -> 5.4096 | I15: ='H1.2 Rate 2 Cumul Impact'!J109 -> 139.654213 | J15: ='H1.2 Rate 2 Cumul Impact'!L109 -> 0.04211024097
C17: ="Rate 3 - "& 'G1.3 Rate 3 Bill Impact'!C15 -> Rate 3 - Special Large Volume Contract Rate | D17: ='G1.3 Rate 3 Bill Impact'!J31 -> 0 | E17: ='H1.8 2016 IRM Bill Impact'!E17 -> 458.5949255 | F17: ='H1.9 2017 IRM Bill Impact'!E17 -> 411.5215052 | G17: ='G1.3 Rate 3 Bill Impact'!J35-'H1.7 Cumulative Bill Impact'!D17 -> 222.7703082 | H17: ='H1.8 2016 IRM Bill Impact'!F17 -> -58.8684 | I17: ='H1.3 Rate 3 Cumul Impact'!J44 -> 1034.018339 | J17: ='H1.3 Rate 3 Cumul Impact'!L44 -> 0.03815190148
C19: ='G1.4 Rate 4 Bill Impact'!C11 -> Rate 4 - April to December | D19: ='G1.4 Rate 4 Bill Impact'!J27 -> 0 | E19: ='H1.8 2016 IRM Bill Impact'!E19 -> 42.94341808 | F19: ='H1.9 2017 IRM Bill Impact'!E19 -> 38.53540252 | G19: ='G1.4 Rate 4 Bill Impact'!J31-'H1.7 Cumulative Bill Impact'!D19 -> 20.8604979 | H19: ='H1.8 2016 IRM Bill Impact'!F19 -> 1.4598 | I19: ='H1.4 Rate 4 Cumul Impact'!J40 -> 103.7991185 | J19: ='H1.4 Rate 4 Cumul Impact'!L40 -> 0.05597056334
C20: ='G1.4 Rate 4 Bill Impact'!C47 -> Rate 4 - January to March | D20: ='G1.4 Rate 4 Bill Impact'!J63 -> 0 | E20: ='H1.8 2016 IRM Bill Impact'!E20 -> 26.54750752 | F20: ='H1.9 2017 IRM Bill Impact'!E20 -> 23.82248396 | G20: ='G1.4 Rate 4 Bill Impact'!J67-'H1.7 Cumulative Bill Impact'!D20 -> 12.89590465 | H20: ='H1.8 2016 IRM Bill Impact'!F20 -> 0.4866 | I20: ='H1.4 Rate 4 Cumul Impact'!J76 -> 63.75249613 | J20: ='H1.4 Rate 4 Cumul Impact'!L76 -> 0.02844245052
C21: ='G1.4 Rate 4 Bill Impact'!C83 -> Rate 4 - Annual | D21: ='G1.4 Rate 4 Bill Impact'!J90 -> 0 | E21: ='H1.8 2016 IRM Bill Impact'!E21 -> 69.49092561 | F21: ='H1.9 2017 IRM Bill Impact'!E21 -> 62.35788648 | G21: ='G1.4 Rate 4 Bill Impact'!J94-'H1.7 Cumulative Bill Impact'!D21 -> 33.75640255 | H21: ='H1.8 2016 IRM Bill Impact'!F21 -> 1.9464 | I21: ='H1.4 Rate 4 Cumul Impact'!J103 -> 167.5516146 | J21: ='H1.4 Rate 4 Cumul Impact'!L103 -> 0.04090629228
C23: ="Rate 5 - " &'G1.5 Rate 5 Bill Impact'!C15 -> Rate 5 - Interruptible Peaking Contract Rate | D23: ='G1.5 Rate 5 Bill Impact'!J29 -> 0 | E23: ='H1.8 2016 IRM Bill Impact'!E23 -> 200.9350393 | F23: ='H1.9 2017 IRM Bill Impact'!E23 -> 180.3096485 | G23: ='G1.5 Rate 5 Bill Impact'!J32-'H1.7 Cumulative Bill Impact'!D23 -> 97.60762303 | H23: ='H1.8 2016 IRM Bill Impact'!F23 -> -16.1484 | I23: ='H1.5 Rate 5 Cumul Impact'!J41 -> 462.7039107 | J23: ='H1.5 Rate 5 Cumul Impact'!L41 -> 0.0389959938
C25: ="Rate 6 - " &'G1.6 Rate 6 Bill Impact'!C15 -> Rate 6 - Special Large Volume Contract Rate | D25: ='G1.6 Rate 6 Bill Impact'!J30 -> 0 | E25: ='H1.8 2016 IRM Bill Impact'!E25 -> 30580.08001 | F25: ='H1.9 2017 IRM Bill Impact'!E25 -> 27441.12474 | G25: ='G1.6 Rate 6 Bill Impact'!J33-'H1.7 Cumulative Bill Impact'!D25 -> 14854.79553 | H25: ='H1.8 2016 IRM Bill Impact'!F25 -> -61.1148 | I25: ='H1.6 Rate 6 Cumul Impact'!J42 -> 72814.88548 | J25: ='H1.6 Rate 6 Cumul Impact'!L42 -> 0.04037667599
C30: =MID(CELL("filename",A1),FIND("]",CELL("filename",A1))+1,255) -> H1.7 Cumulative Bill Impact

Sheet H1.8 2016 IRM Bill Impact
C2: ='A1.1 Distributor Information'!C3 -> Name of LDC: EPCOR Natural Gas Limited Partnership
C3: ='A1.1 Distributor Information'!C4 -> OEB Application Number: EB-2018-0235 Exhibit C - 2018 IRM Application Amended October 24, 2018
C5: Summary of Bill Impacts - 2016 IRM Application
C7: Rate Class | D7: Fixed Change | E7: Volumetric Change | F7: Shared Tax Rate Rider | G7: Total Change $ | H7: Total Change %
C9: Rate 1 - Residential | D9: 0 | E9: 7.433890548 | F9: -0.2592 | G9: 7.174690548 | H9: 0.01588563881
C10: Rate 1 - Commercial | D10: 0 | E10: 26.94708001 | F10: -0.2592 | G10: 26.68788001 | H10: 0.01904928047
C11: Rate 1 - Industrial | D11: 0 | E11: 55.72950311 | F11: -0.2592 | G11: 55.47030311 | H11: 0.01849766697
C13: Rate 2 - April to October | D13: 0 | E13: 55.28122495 | F13: 3.1556 | G13: 58.43682495 | H13: 0.01893157093
C14: Rate 2 - November to March | D14: 0 | E14: 1.050228358 | F14: 2.254 | G14: 3.304228358 | H14: 0.01438772089
C15: Rate 2 - Annual | D15: 0 | E15: 56.33145331 | F15: 5.4096 | G15: 61.74105331 | H15: 0.01861691514
C17: Rate 3 - Special Large Volume Contract Rate | D17: 0 | E17: 458.5949255 | F17: -58.8684 | G17: 399.7265255 | H17: 0.01474860401
C19: Rate 4 - April to December | D19: 0 | E19: 42.94341808 | F19: 1.4598 | G19: 44.40321808 | H19: 0.0239431044
C20: Rate 4 - January to March | D20: 0 | E20: 26.54750752 | F20: 0.4866 | G20: 27.03410752 | H20: 0.01206095937
C21: Rate 4 - Annual | D21: 0 | E21: 69.49092561 | F21: 1.9464 | G21: 71.43732561 | H21: 0.01744081146
C23: Rate 5 - Interruptible Peaking Contract Rate | D23: 0 | E23: 200.9350393 | F23: -16.1484 | G23: 184.7866393 | H23: 0.01557354168
C25: Rate 6 - Special Large Volume Contract Rate | D25: 0 | E25: 30580.08001 | F25: -61.1148 | G25: 30518.96521 | H25: 0.01692311073
B29: =MID(CELL("filename",A1),FIND("]",CELL("filename",A1))+1,255) -> H1.8 2016 IRM Bill Impact
C30: =MID(CELL("filename",A1),FIND("]",CELL("filename",A1))+1,255) -> H1.8 2016 IRM Bill Impact

Sheet H1.9 2017 IRM Bill Impact
C2: ='A1.1 Distributor Information'!C3 -> Name of LDC: EPCOR Natural Gas Limited Partnership
C3: ='A1.1 Distributor Information'!C4 -> OEB Application Number: EB-2018-0235 Exhibit C - 2018 IRM Application Amended October 24, 2018
C5: Summary of Bill Impacts - 2017 IRM Application
C7: Rate Class | D7: Fixed Change | E7: Volumetric Change | F7: Shared Tax Rate Rider | G7: Total Change $ | H7: Total Change %
C9: Rate 1 - Residential | D9: 0 | E9: 6.670823548 | F9: 0 | G9: 6.670823548 | H9: 0.01453905374
C10: Rate 1 - Commercial | D10: 0 | E10: 24.18104151 | F10: 0 | G10: 24.18104151 | H10: 0.01693730528
C11: Rate 1 - Industrial | D11: 0 | E11: 50.00903353 | F11: 0 | G11: 50.00903353 | H11: 0.01637362502
C13: Rate 2 - April to October | D13: 0 | E13: 49.6067698 | F13: 0 | G13: 49.6067698 | H13: 0.01577233421
C14: Rate 2 - November to March | D14: 0 | E14: 0.9424255056 | F14: 0 | G14: 0.9424255056 | H14: 0.004045432863
C15: Rate 2 - Annual | D15: 0 | E15: 50.54919531 | F15: 0 | G15: 50.54919531 | H15: 0.01496363298
C17: Rate 3 - Special Large Volume Contract Rate | D17: 0 | E17: 411.5215052 | F17: 0 | G17: 411.5215052 | H17: 0.0149631152
C19: Rate 4 - April to December | D19: 0 | E19: 38.53540252 | F19: 0 | G19: 38.53540252 | H19: 0.02029317903
C20: Rate 4 - January to March | D20: 0 | E20: 23.82248396 | F20: 0 | G20: 23.82248396 | H20: 0.01050147224
C21: Rate 4 - Annual | D21: 0 | E21: 62.35788648 | F21: 0 | G21: 62.35788648 | H21: 0.01496317423
C23: Rate 5 - Interruptible Peaking Contract Rate | D23: 0 | E23: 180.3096485 | F23: 0 | G23: 180.3096485 | H23: 0.01496319761
C25: Rate 6 - Special Large Volume Contract Rate | D25: 0 | E25: 27441.12474 | F25: 0 | G25: 27441.12474 | H25: 0.01496318973
B29: =MID(CELL("filename",A1),FIND("]",CELL("filename",A1))+1,255) -> H1.9 2017 IRM Bill Impact
C30: =MID(CELL("filename",A1),FIND("]",CELL("filename",A1))+1,255) -> H1.9 2017 IRM Bill Impact

Sheet I1.1 Rate 1 Cumul and Def
C2: ='A1.1 Distributor Information'!C3 -> Name of LDC: EPCOR Natural Gas Limited Partnership
C3: ='A1.1 Distributor Information'!C4 -> OEB Application Number: EB-2018-0235 Exhibit C - 2018 IRM Application Amended October 24, 2018
C7: Rate 1 Delivery Bill Impact Cumulative Compared to 2015 Including Deferral Disposal
C10: Rate 1 - Residential | F10: 2015 Rate | H10: Proposed Rate
C12: Customer | F12: 13.5 | H12: ='E1.1 Proposed Dist Rates '!E16 -> 13.5
C13: Block 1 (First 1,000 m3 per month) | F13: 16.2312 | H13: ='E1.1 Proposed Dist Rates '!F16 -> 17.2452599
C14: Block 2 (Over 1,000 m3 per month) | F14: 10.9099 | H14: ='E1.1 Proposed Dist Rates '!G16 -> 11.35189322
C15: System Gas Charge | F15: 0.0363 | H15: ='E1.1 Proposed Dist Rates '!L16 -> 0.0363
C17: Rate Riders
C18: Shared Tax Changes 2015 | F18: 0.13
C19: Shared Tax Changes 2018 | H19: =ROUND('F1.3 Proposed Rate Riders'!$E$13,4) -> 0.1084
C20: Shared Tax Changes 2016 | H20: =H19 -> 0.1084
C21: 2016 IRM Adjustment cent per m3 | H21: 0.3729
C23: Average Annual Consumption
C24: Block 1 (First 1,000 m3 per month) | E24: =ROUND('B1.2 Billing Determinants'!F16/'B1.2 Billing Determinants'!E16,0) -> 1703
C25: Block 2 (Over 1,000 m3 per month) | E25: =ROUND('B1.2 Billing Determinants'!G16/'B1.2 Billing Determinants'!E16,0) -> 101
C27: Delivery | E27: Metric | F27: =$F$10 -> 2015 Rate | H27: Proposed Rate | J27: Change $ | L27: Change %
C28: Customer | E28: 12 | F28: =F12*E28 -> 162 | H28: =H12*E28 -> 162 | J28: =H28-F28 -> 0 | L28: =IF(ISERROR(J28/F28),0,J28/F28) -> 0
C29: Block 1 (First 1,000 m3 per month) | E29: =E24 -> 1703 | F29: =F13*E29/100 -> 276.417336 | H29: =H13*E29/100 -> 293.6867761 | J29: =H29-F29 -> 17.2694401 | L29: =IF(ISERROR(J29/F29),0,J29/F29) -> 0.06247596604
C30: Block 2 (Over 1,000 m3 per month) | E30: =E25 -> 101 | F30: =F14*E30/100 -> 11.018999 | H30: =H14*E30/100 -> 11.46541215 | J30: 0.4464131472 | L30: =IF(ISERROR(J30/F30),0,J30/F30) -> 0.04051304
C31: System Gas Charge | E31: =SUM(E29:E30) -> 1804 | F31: =ROUND(F15*E31/100,2) -> 0.65 | H31: =ROUND(H15*E31/100,2) -> 0.65 | J31: 0 | L31: =IF(ISERROR(J31/F31),0,J31/F31) -> 0
C32: Total Delivery | F32: =SUM(F28:F31) -> 450.086335 | H32: =SUM(H28:H31) -> 467.8021882 | J32: 17.71585324 | L32: =IF(ISERROR(J32/F32),0,J32/F32) -> 0.03936101113
C34: Rate Riders
C36: Rate Riders | E36: Metric | F36: =$F$10 -> 2015 Rate | H36: Proposed Rate | J36: Change $ | L36: Change %
C37: =$C$18 -> Shared Tax Changes 2015 | E37: 12 | F37: =F18*E37 -> 1.56 | H37: 0 | J37: =H37-F37 -> -1.56 | L37: =IF(ISERROR(J37/F37),1,J37/F37) -> -1
C38: =$C$19 -> Shared Tax Changes 2018 | E38: 12 | F38: 0 | H38: =H19*E38 -> 1.3008 | J38: =H38-F38 -> 1.3008 | L38: =IF(ISERROR(J38/F38),1,J38/F38) -> 1
C39: Shared Tax Changes 2016 | E39: 12 | F39: 0 | H39: =H20*E39 -> 1.3008 | J39: 1.3008 | L39: =IF(ISERROR(J39/F39),1,J39/F39) -> 1
C40: 2016 IRM Adjustment cent per m3 | E40: =E24+E25 -> 1804 | F40: 0 | H40: =E40*H21/100 -> 6.727116 | J40: 6.727116 | L40: 1
C41: Total Rate Riders | F41: =SUM(F37:F40) -> 1.56 | H41: =SUM(H37:H40) -> 9.328716 | J41: =SUM(J37:J40) -> 7.768716 | L41: =IF(ISERROR(J41/F41),0,J41/F41) -> 4.979946154
C43: Total Bill Impact | F43: =SUM(F32,F41) -> 451.646335 | H43: =SUM(H32,H41) -> 477.1309042 | J43: =SUM(J32,J41) -> 25.48456924 | L43: =IF(ISERROR(J43/F43),0,J43/F43) -> 0.05642594054
C46: =MID(CELL("filename",A1),FIND("]",CELL("filename",A1))+1,255) -> I1.1 Rate 1 Cumul and Def
C48: Rate 1 Delivery Bill Impact Cumulative Compared to 2015 Including Deferral Disposal
C50: Rate 1 - Commercial | F50: =$F$10 -> 2015 Rate | H50: Proposed Rate
C52: Customer | F52: ='B1.1 Current Distribution Rates'!E17 -> 13.5 | H52: ='E1.1 Proposed Dist Rates '!E17 -> 13.5
C53: Block 1 (First 1,000 m3 per month) | F53: 16.2312 | H53: ='E1.1 Proposed Dist Rates '!F17 -> 17.2452599
C54: Block 2 (Over 1,000 m3 per month) | F54: 10.9099 | H54: ='E1.1 Proposed Dist Rates '!G17 -> 11.35189322
C55: System Gas Charge | F55: 0.0363 | H55: ='E1.1 Proposed Dist Rates '!L17 -> 0.0363
C57: Rate Riders
C58: =$C$18 -> Shared Tax Changes 2015 | F58: =$F$18 -> 0.13
C59: =$C$19 -> Shared Tax Changes 2018 | H59: =ROUND('F1.3 Proposed Rate Riders'!E14,4) -> 0.1084
C60: Shared Tax Changes 2016 | H60: =H20 -> 0.1084
C61: 2016 IRM Adjustment cent per m3 | H61: =H21 -> 0.3729
C63: Average Annual Consumption
C64: Block 1 (First 1,000 m3 per month) | E64: =ROUND('B1.2 Billing Determinants'!F17/'B1.2 Billing Determinants'!E17,0) -> 3990
C65: Block 2 (Over 1,000 m3 per month) | E65: =ROUND('B1.2 Billing Determinants'!G17/'B1.2 Billing Determinants'!E17,0) -> 5375
E67: Metric | F67: =$F$10 -> 2015 Rate | H67: Proposed Rate | J67: Change $ | L67: Change %
C68: Customer | E68: 12 | F68: =F52*E68 -> 162 | H68: =H52*E68 -> 162 | J68: =H68-F68 -> 0 | L68: =IF(ISERROR(J68/F68),0,J68/F68) -> 0
C69: Block 1 (First 1,000 m3 per month) | E69: =E64 -> 3990 | F69: =F53*E69/100 -> 647.62488 | H69: =H53*E69/100 -> 688.08587 | J69: =H69-F69 -> 40.46099001 | L69: =IF(ISERROR(J69/F69),0,J69/F69) -> 0.06247596604
C70: Block 2 (Over 1,000 m3 per month) | E70: =E65 -> 5375 | F70: =F54*E70/100 -> 586.407125 | H70: =H54*E70/100 -> 610.1642603 | J70: 23.75713531 | L70: =IF(ISERROR(J70/F70),0,J70/F70) -> 0.04051304
C71: System Gas Charge | E71: =SUM(E69:E70) -> 9365 | F71: =F55*E71/100 -> 3.399495 | H71: =H55*E71/100 -> 3.399495 | J71: 0 | L71: =IF(ISERROR(J71/F71),0,J71/F71) -> 0
C72: Total Delivery | F72: =SUM(F68:F71) -> 1399.4315 | H72: =SUM(H68:H71) -> 1463.649625 | J72: 64.21812532 | L72: =IF(ISERROR(J72/F72),0,J72/F72) -> 0.04588872361
C74: Rate Riders
C76: Rate Riders | E76: Metric | F76: =$F$10 -> 2015 Rate | H76: Proposed Rate | J76: Change $ | L76: Change %
C77: =$C$18 -> Shared Tax Changes 2015 | E77: 12 | F77: =F58*E77 -> 1.56 | H77: 0 | J77: =H77-F77 -> -1.56 | L77: =IF(ISERROR(J77/F77),1,J77/F77) -> -1
C78: =$C$19 -> Shared Tax Changes 2018 | E78: 12 | F78: 0 | H78: =H59*E78 -> 1.3008 | J78: =H78-F78 -> 1.3008 | L78: =IF(ISERROR(J78/F78),1,J78/F78) -> 1
C79: Shared Tax Changes 2016 | E79: 12 | F79: 0 | H79: =H60*E79 -> 1.3008 | J79: =H79-F79 -> 1.3008 | L79: =IF(ISERROR(J79/F79),1,J79/F79) -> 1
C80: 2016 IRM Adjustment cent per m3 | E80: =E65+E64 -> 9365 | F80: 0 | H80: =E80*H61/100 -> 34.922085 | J80: 34.922085 | L80: 1
C81: Total Rate Riders | F81: =SUM(F77:F80) -> 1.56 | H81: =SUM(H77:H80) -> 37.523685 | J81: =SUM(J77:J80) -> 35.963685 | L81: =SUM(L77:L80) -> 2
C83: Total Bill Impact | F83: =SUM(F72,F81) -> 1400.9915 | H83: =SUM(H72,H81) -> 1501.17331 | J83: =SUM(J72,J81) -> 100.1818103 | L83: =IF(ISERROR(J83/F83),0,J83/F83) -> 0.0715077931
C86: =MID(CELL("filename",A36),FIND("]",CELL("filename",A36))+1,255) -> I1.1 Rate 1 Cumul and Def
C91: Rate 1 Delivery Bill Impact Cumulative Compared to 2015 Including Deferral Disposal
C93: Rate 1 - Industrial | F93: =$F$10 -> 2015 Rate | H93: Proposed Rate
C95: Customer | F95: ='B1.1 Current Distribution Rates'!E18 -> 13.5 | H95: ='E1.1 Proposed Dist Rates '!E18 -> 13.5
C96: Block 1 (First 1,000 m3 per month) | F96: 16.2312 | H96: ='E1.1 Proposed Dist Rates '!F18 -> 17.2452599
C97: Block 2 (Over 1,000 m3 per month) | F97: 10.9099 | H97: ='E1.1 Proposed Dist Rates '!G18 -> 11.35189322
C98: System Gas Charge | F98: 0.0363 | H98: ='E1.1 Proposed Dist Rates '!L18 -> 0.0363
C100: Rate Riders
C101: =$C$18 -> Shared Tax Changes 2015 | F101: =$F$18 -> 0.13
C102: =$C$19 -> Shared Tax Changes 2018 | H102: =ROUND('F1.3 Proposed Rate Riders'!E15,4) -> 0.1084
C103: Shared Tax Changes 2016 | H103: =H20 -> 0.1084
C104: 2016 IRM Adjustment cent per m3 | H104: =H21 -> 0.3729
C106: Average Annual Consumption
C107: Block 1 (First 1,000 m3 per month) | E107: =ROUND('B1.2 Billing Determinants'!F18/'B1.2 Billing Determinants'!E18,0) -> 5131
C108: Block 2 (Over 1,000 m3 per month) | E108: =ROUND('B1.2 Billing Determinants'!G18/'B1.2 Billing Determinants'!E18,0) -> 18276
E110: Metric | F110: =$F$10 -> 2015 Rate | H110: Proposed Rate | J110: Change $ | L110: Change %
C111: Customer | E111: 12 | F111: =F95*E111 -> 162 | H111: =H95*E111 -> 162 | J111: =H111-F111 -> 0 | L111: =IF(ISERROR(J111/F111),0,J111/F111) -> 0
C112: Block 1 (First 1,000 m3 per month) | E112: =E107 -> 5131 | F112: =F96*E112/100 -> 832.822872 | H112: =H96*E112/100 -> 884.8542855 | J112: =H112-F112 -> 52.03141347 | L112: =IF(ISERROR(J112/F112),0,J112/F112) -> 0.06247596604
C113: Block 2 (Over 1,000 m3 per month) | E113: =E108 -> 18276 | F113: =F97*E113/100 -> 1993.893324 | H113: =H97*E113/100 -> 2074.672004 | J113: 80.77867999 | L113: =IF(ISERROR(J113/F113),0,J113/F113) -> 0.04051304
C114: System Gas Charge | E114: =SUM(E112:E113) -> 23407 | F114: =F98*E114/100 -> 8.496741 | H114: =H98*E114/100 -> 8.496741 | J114: 0 | L114: =IF(ISERROR(J114/F114),0,J114/F114) -> 0
C115: Total Delivery | F115: =SUM(F111:F114) -> 2997.212937 | H115: =SUM(H111:H114) -> 3130.02303 | J115: 132.8100935 | L115: =IF(ISERROR(J115/F115),0,J115/F115) -> 0.04431119719
C117: Rate Riders
C119: Rate Riders | E119: Metric | F119: =$F$10 -> 2015 Rate | H119: Proposed Rate | J119: Change $ | L119: Change %
C120: =$C$18 -> Shared Tax Changes 2015 | E120: 12 | F120: =F101*E120 -> 1.56 | H120: 0 | J120: =H120-F120 -> -1.56 | L120: =IF(ISERROR(J120/F120),1,J120/F120) -> -1
C121: =$C$19 -> Shared Tax Changes 2018 | E121: 12 | F121: 0 | H121: =H102*E121 -> 1.3008 | J121: =H121-F121 -> 1.3008 | L121: =IF(ISERROR(J121/F121),1,J121/F121) -> 1
C122: Shared Tax Changes 2016 | E122: 12 | F122: 0 | H122: =H103*E122 -> 1.3008 | J122: 1.3008 | L122: =IF(ISERROR(J122/F122),1,J122/F122) -> 1
E123: =E107+E108 -> 23407 | F123: 0 | H123: =E123*H104/100 -> 87.284703 | J123: 87.284703 | L123: =IF(ISERROR(J123/F123),1,J123/F123) -> 1
C124: Total Rate Riders | F124: =SUM(F120:F123) -> 1.56 | H124: =SUM(H120:H123) -> 89.886303 | J124: =SUM(J120:J123) -> 88.326303 | L124: =IF(ISERROR(J124/F124),0,J124/F124) -> 56.619425
C126: Total Bill Impact | F126: =SUM(F115,F124) -> 2998.772937 | H126: =SUM(H115,H124) -> 3219.909333 | J126: =SUM(J115,J124) -> 221.1363965 | L126: =IF(ISERROR(J126/F126),0,J126/F126) -> 0.0737422943
C128: =MID(CELL("filename",A74),FIND("]",CELL("filename",A74))+1,255) -> I1.1 Rate 1 Cumul and Def

Sheet I1.2 Rate 2 Cumul and Def
C2: ='A1.1 Distributor Information'!C3 -> Name of LDC: EPCOR Natural Gas Limited Partnership
C3: ='A1.1 Distributor Information'!C4 -> OEB Application Number: EB-2018-0235 Exhibit C - 2018 IRM Application Amended October 24, 2018
C7: Rate 2 Delivery Bill Impact Cumulative Compared to 2015 Including Deferral Disposal
C9: Rate 2 - April to October | F9: 2015 Rate | H9: Proposed Rate
C11: Customer | F11: 15 | H11: ='E1.1 Proposed Dist Rates '!E19 -> 15
C12: Block 1 (First 1,000 m3 per month) | F12: 15.8212 | H12: ='E1.1 Proposed Dist Rates '!F19 -> 17.6428509
C13: Block 2 (Next 24,000 m3 per month) | F13: 9.4826 | H13: ='E1.1 Proposed Dist Rates '!H19 -> 9.4826
C14: Block 3 (Over 25,000 m3 per month) | F14: 6.1698 | H14: ='E1.1 Proposed Dist Rates '!I19 -> 6.1698
C15: System Gas Charge | F15: 0.0363 | H15: ='E1.1 Proposed Dist Rates '!L20 -> 0.0363
C17: Rate Riders
C18: Shared Tax Changes 2015 | F18: 0.24
C19: ='G1.1 Rate 1 Bill Impact'!$C$19 -> Shared Tax Changes 2018 | H19: =ROUND('F1.3 Proposed Rate Riders'!$E$16,4) -> 0.6908
C20: Shared Tax Changes 2016 | H20: =H19 -> 0.6908
C21: 2016 IRM Adjustment cent per m3 | H21: 0.2053
C23: Average Seasonal Consumption
C24: Block 1 (First 1,000 m3 per month) | E24: =ROUND('B1.2 Billing Determinants'!F19/'B1.2 Billing Determinants'!E19,0) -> 7232
C25: Block 2 (Next 24,000 m3 per month) | E25: =ROUND('B1.2 Billing Determinants'!H19/'B1.2 Billing Determinants'!E19,0) -> 19259
C26: Block 3 (Over 25,000 m3 per month) | E26: =ROUND('B1.2 Billing Determinants'!I19/'B1.2 Billing Determinants'!E19,0) -> 0
E28: Metric | F28: 2015 Rate | H28: Proposed Rate | J28: Change $ | L28: Change %
C29: Customer | E29: 7 | F29: =F11*E29 -> 105 | H29: =H11*E29 -> 105 | J29: =H29-F29 -> 0 | L29: =IF(ISERROR(J29/F29),0,J29/F29) -> 0
C30: Block 1 (First 1,000 m3 per month) | E30: =E24 -> 7232 | F30: =F12*E30/100 -> 1144.189184 | H30: =H12*E30/100 -> 1275.930977 | J30: =H30-F30 -> 131.7417928 | L30: =IF(ISERROR(J30/F30),0,J30/F30) -> 0.115139869
C31: Block 2 (Next 24,000 m3 per month) | E31: =E25 -> 19259 | F31: =F13*E31/100 -> 1826.253934 | H31: =H13*E31/100 -> 1826.253934 | J31: 0 | L31: =IF(ISERROR(J31/F31),0,J31/F31) -> 0
C32: Block 3 (Over 25,000 m3 per month) | E32: =E26 -> 0 | F32: =F14*E32/100 -> 0 | H32: =H14*E32/100 -> 0 | J32: 0 | L32: 0
C33: System Gas Charge | E33: =SUM(E30:E31) -> 26491 | F33: =F15*E33/100 -> 9.616233 | H33: =H15*E33/100 -> 9.616233 | J33: 0 | L33: =IF(ISERROR(J33/F33),0,J33/F33) -> 0
C34: Total Delivery | F34: =SUM(F29:F33) -> 3085.059351 | H34: =SUM(H29:H33) -> 3216.801144 | J34: 131.7417928 | L34: =IF(ISERROR(J34/F34),0,J34/F34) -> 0.04270316316
C36: Rate Riders
C38: Rate Riders | E38: Metric | F38: 2015 Rate | H38: Proposed Rate | J38: Change $ | L38: Change %
C39: Shared Tax Changes 2015 | E39: 7 | F39: =F18*E39 -> 1.68 | H39: 0 | J39: =H39-F39 -> -1.68 | L39: =IF(ISERROR(J39/F39),0,J39/F39) -> -1
C40: ='G1.1 Rate 1 Bill Impact'!$C$19 -> Shared Tax Changes 2018 | E40: 7 | F40: 0 | H40: =H19*E40 -> 4.8356 | J40: =H40-F40 -> 4.8356 | L40: =IF(ISERROR(J40/F40),0,J40/F40) -> 0
C41: Shared Tax Changes 2016 | E41: 7 | F41: 0 | H41: =H20*E41 -> 4.8356 | J41: =H41-F41 -> 4.8356 | L41: =IF(ISERROR(J41/F41),0,J41/F41) -> 0
C42: 2016 IRM Adjustment cent per m3 | E42: =E24+E26+E25 -> 26491 | F42: 0 | H42: =E42*H21/100 -> 54.386023 | J42: 54.386023 | L42: 0
C43: Total Rate Riders | F43: =SUM(F39:F42) -> 1.68 | H43: =SUM(H39:H42) -> 64.057223 | J43: =SUM(J39:J42) -> 62.377223 | L43: 37.1292994
C45: Total Bill Impact | F45: =SUM(F34,F43) -> 3086.739351 | H45: =SUM(H34,H43) -> 3280.858367 | J45: =SUM(J34,J43) -> 194.1190158 | L45: =IF(ISERROR(J45/F45),0,J45/F45) -> 0.06288804908
C47: =MID(CELL("filename",A1),FIND("]",CELL("filename",A1))+1,255) -> I1.2 Rate 2 Cumul and Def
C51: Rate 2 Delivery Bill Impact Cumulative Compared to 2015 Including Deferral Disposal
C53: Rate 2 - November to March | F53: 2015 Rate | H53: Proposed Rate
C55: Customer | F55: 15 | H55: ='E1.1 Proposed Dist Rates '!E20 -> 15
C56: Block 1 (First 1,000 m3 per month) | F56: 19.9424 | H56: ='E1.1 Proposed Dist Rates '!F20 -> 22.23856532
C57: Block 2 (Next 24,000 m3 per month) | F57: 15.696 | H57: ='E1.1 Proposed Dist Rates '!H20 -> 15.696
C58: Block 3 (Over 25,000 m3 per month) | F58: 15.2899 | H58: ='E1.1 Proposed Dist Rates '!I20 -> 15.2899
C59: System Gas Charge | F59: 0.0363 | H59: ='E1.1 Proposed Dist Rates '!L20 -> 0.0363
C61: Rate Riders
C62: Shared Tax Changes 2015 | F62: 0.24
C63: ='G1.1 Rate 1 Bill Impact'!$C$19 -> Shared Tax Changes 2018 | H63: =ROUND('F1.3 Proposed Rate Riders'!$E$17,4) -> 0.6908
C64: Shared Tax Changes 2016 | H64: =H20 -> 0.6908
C65: 2016 IRM Adjustment cent per m3 | H65: =H21 -> 0.2053
C67: Average Seasonal Consumption
C68: Block 1 (First 1,000 m3 per month) | E68: =ROUND('B1.2 Billing Determinants'!F20/'B1.2 Billing Determinants'!E20,0) -> 109
C69: Block 2 (Next 24,000 m3 per month) | E69: =ROUND('B1.2 Billing Determinants'!H20/'B1.2 Billing Determinants'!E20,0) -> 837
C70: Block 3 (Over 25,000 m3 per month) | E70: =ROUND('B1.2 Billing Determinants'!I20/'B1.2 Billing Determinants'!E20,0) -> 0
E72: Metric | F72: 2015 Rate | H72: Proposed Rate | J72: Change $ | L72: Change %
C73: Customer | E73: 5 | F73: =F55*E73 -> 75 | H73: =H55*E73 -> 75 | J73: =H73-F73 -> 0 | L73: =IF(ISERROR(J73/F73),0,J73/F73) -> 0
C74: Block 1 (First 1,000 m3 per month) | E74: =E68 -> 109 | F74: =F56*E74/100 -> 21.737216 | H74: =H56*E74/100 -> 24.2400362 | J74: =H74-F74 -> 2.502820204 | L74: 0.115139869
C75: Block 2 (Next 24,000 m3 per month) | E75: =E69 -> 837 | F75: =F57*E75/100 -> 131.37552 | H75: =H57*E75/100 -> 131.37552 | J75: 0 | L75: 0
C76: Block 3 (Over 25,000 m3 per month) | E76: =E70 -> 0 | F76: =F58*E76/100 -> 0 | H76: =H58*E76/100 -> 0 | J76: 0 | L76: 0
C77: System Gas Charge | E77: =SUM(E74:E75) -> 946 | F77: =F59*E77/100 -> 0.343398 | H77: =H59*E77/100 -> 0.343398 | J77: 0 | L77: 0
C78: Total Delivery | F78: =SUM(F73:F77) -> 228.456134 | H78: =SUM(H73:H77) -> 230.9589542 | J78: 2.502820204 | L78: 0.01095536443
C80: Rate Riders
C82: Rate Riders | E82: Metric | F82: 2015 Rate | H82: Proposed Rate | J82: Change $ | L82: Change %
C83: Shared Tax Changes 2015 | E83: 5 | F83: =F62*E83 -> 1.2 | H83: 0 | J83: =H83-F83 -> -1.2 | L83: =IF(ISERROR(J83/F83),0,J83/F83) -> -1
C84: ='G1.1 Rate 1 Bill Impact'!$C$19 -> Shared Tax Changes 2018 | E84: 5 | F84: 0 | H84: =H63*E84 -> 3.454 | J84: =H84-F84 -> 3.454 | L84: =IF(ISERROR(J84/F84),0,J84/F84) -> 0
C85: Shared Tax Changes 2016 | E85: 5 | F85: 0 | H85: =H64*E85 -> 3.454 | J85: =H85-F85 -> 3.454 | L85: =IF(ISERROR(J85/F85),0,J85/F85) -> 0
C86: 2016 IRM Adjustment cent per m3 | E86: =E69+E68 -> 946 | F86: 0 | H86: =E86*H65/100 -> 1.942138 | J86: 1.942138 | L86: 0
C87: Total Rate Riders | F87: =SUM(F83:F86) -> 1.2 | H87: =SUM(H83:H86) -> 8.850138 | J87: =SUM(J83:J86) -> 7.650138 | L87: 6.375115
C89: Total Bill Impact | F89: =SUM(F78,F87) -> 229.656134 | H89: =SUM(H78,H87) -> 239.8090922 | J89: =SUM(J78,J87) -> 10.1529582 | L89: =IF(ISERROR(J89/F89),0,J89/F89) -> 0.04420939266
C91: =MID(CELL("filename",A45),FIND("]",CELL("filename",A45))+1,255) -> I1.2 Rate 2 Cumul and Def
C93: Rate 2 Delivery Bill Impact Cumulative Compared to 2015 Including Deferral Disposal
C95: Rate 2 - Annual
C97: Average Annual Consumption
C98: Block 1 (First 1,000 m3 per month) | E98: =E24+E68 -> 7341
C99: Block 2 (Next 24,000 m3 per month) | E99: =E25+E69 -> 20096
C100: Block 3 (Over 25,000 m3 per month) | E100: =E26+E70 -> 0
E102: Metric | F102: 2015 Rate | H102: Proposed Rate | J102: Change $ | L102: Change %
C103: Customer | E103: =E29+E73 -> 12 | F103: =F29+F73 -> 180 | H103: =H29+H73 -> 180 | J103: =H103-F103 -> 0 | L103: =IF(ISERROR(J103/F103),0,J103/F103) -> 0
C104: Block 1 (First 1,000 m3 per month) | E104: =E98 -> 7341 | F104: =F30+F74 -> 1165.9264 | H104: =H30+H74 -> 1300.171013 | J104: =H104-F104 -> 134.244613 | L104: 0.115139869
C105: Block 2 (Next 24,000 m3 per month) | E105: =E99 -> 20096 | F105: =F31+F75 -> 1957.629454 | H105: =H31+H75 -> 1957.629454 | J105: 0 | L105: 0
C106: Block 3 (Over 25,000 m3 per month) | E106: =E100 -> 0 | F106: =F32+F76 -> 0 | H106: =H32+H76 -> 0 | J106: 0 | L106: 0
C107: System Gas Charge | E107: =SUM(E104:E105) -> 27437 | F107: =F33+F77 -> 9.959631 | H107: =H33+H77 -> 9.959631 | J107: 0 | L107: 0
C108: Total Delivery | F108: =SUM(F103:F107) -> 3313.515485 | H108: =SUM(H103:H107) -> 3447.760098 | J108: 134.244613 | L108: 0.04051425552
C110: Rate Riders
C112: Rate Riders | E112: Metric | F112: 2015 Rate | H112: Proposed Rate | J112: Change $ | L112: Change %
C113: Shared Tax Changes 2015 | E113: =E39+E83 -> 12 | F113: =F39+F83 -> 2.88 | H113: =H39+H83 -> 0 | J113: =H113-F113 -> -2.88 | L113: =IF(ISERROR(J113/F113),1,J113/F113) -> -1
C114: ='G1.1 Rate 1 Bill Impact'!$C$19 -> Shared Tax Changes 2018 | E114: =E40+E84 -> 12 | F114: =F40+F84 -> 0 | H114: =H40+H84 -> 8.2896 | J114: =H114-F114 -> 8.2896 | L114: =IF(ISERROR(J114/F114),1,J114/F114) -> 1
C115: Shared Tax Changes 2016 | E115: =E41+E85 -> 12 | F115: 0 | H115: =H41+H85 -> 8.2896 | J115: =H115-F115 -> 8.2896 | L115: =IF(ISERROR(J115/F115),1,J115/F115) -> 1
C116: 2016 IRM Adjustment cent per m3 | E116: 27437 | F116: 0 | H116: 56.328161 | J116: 56.328161 | L116: 1
C117: Total Rate Riders | F117: =SUM(F113:F116) -> 2.88 | H117: =SUM(H113:H116) -> 72.907361 | J117: =SUM(J113:J116) -> 70.027361 | L117: =IF(ISERROR(J117/F117),0,J117/F117) -> 24.3150559
C119: Total Bill Impact | F119: =SUM(F108,F117) -> 3316.395485 | H119: =SUM(H108,H117) -> 3520.667459 | J119: =SUM(J108,J117) -> 204.271974 | L119: =IF(ISERROR(J119/F119),0,J119/F119) -> 0.06159457608
C121: =MID(CELL("filename",A1),FIND("]",CELL("filename",A1))+1,255) -> I1.2 Rate 2 Cumul and Def

Sheet I1.3 Rate 3 Cumul and Def
C2: ='A1.1 Distributor Information'!C3 -> Name of LDC: EPCOR Natural Gas Limited Partnership
C3: ='A1.1 Distributor Information'!C4 -> OEB Application Number: EB-2018-0235 Exhibit C - 2018 IRM Application Amended October 24, 2018
C10: Rate 3 Delivery Bill Impact Cumulative Compared to 2015 Including Deferral Disposal
C15: Special Large Volume Contract Rate | F15: 2015 Rate | H15: Proposed Rate
C17: Customer | F17: 150 | H17: ='E1.1 Proposed Dist Rates '!E21 -> 150
C18: Delivery - Firm | F18: 4.0357 | H18: ='E1.1 Proposed Dist Rates '!J21 -> 4.403534144
C19: Demand - Firm | F19: 29.0974 | H19: ='E1.1 Proposed Dist Rates '!K21 -> 29.0974
C20: System Gas Charge | F20: 0.0363 | H20: ='E1.1 Proposed Dist Rates '!L21 -> 0.0363
C22: Rate Riders
C23: Shared Tax Changes 2015 | F23: 10.53
C24: ='G1.1 Rate 1 Bill Impact'!$C$19 -> Shared Tax Changes 2018 | H24: =ROUND('F1.3 Proposed Rate Riders'!$E$18,4) -> 5.6243
C25: Shared Tax Changes 2016 | H25: =H24 -> 5.6243
C26: 2016 IRM Adjustment cent per m3 | H26: 0.1543
C28: Average Annual Consumption
C29: Delivery - Firm | E29: =ROUND('B1.2 Billing Determinants'!J21/'B1.2 Billing Determinants'!E21,0) -> 297114
C30: Demand - Firm | E30: =ROUND('B1.2 Billing Determinants'!K21/'B1.2 Billing Determinants'!E21,0) -> 44945
E32: Metric | F32: 2015 Rate | H32: Proposed Rate | J32: Change $ | L32: Change %
C33: Customer | E33: 12 | F33: =F17*E33 -> 1800 | H33: =H17*E33 -> 1800 | J33: =H33-F33 -> 0 | L33: =IF(ISERROR(J33/F33),0,J33/F33) -> 0
C34: Delivery - Firm | E34: =E29 -> 297114 | F34: =F18*E34/100 -> 11990.6297 | H34: =H18*E34/100 -> 13083.51644 | J34: =H34-F34 -> 1092.886739 | L34: =IF(ISERROR(J34/F34),0,J34/F34) -> 0.09114506631
C35: Demand - Firm | E35: =E30 -> 44945 | F35: =F19*E35/100 -> 13077.82643 | H35: =H19*E35/100 -> 13077.82643 | J35: 0 | L35: =IF(ISERROR(J35/F35),0,J35/F35) -> 0
C36: System Gas Charge | E36: =E29 -> 297114 | F36: =F20*E36/100 -> 107.852382 | H36: =H20*E36/100 -> 107.852382 | J36: 0 | L36: =IF(ISERROR(J36/F36),0,J36/F36) -> 0
C37: Total Delivery | F37: =SUM(F33:F36) -> 26976.30851 | H37: =SUM(H33:H36) -> 28069.19525 | J37: 1092.886739 | L37: =IF(ISERROR(J37/F37),0,J37/F37) -> 0.04051283513
C39: Rate Riders
C41: Rate Riders | E41: Metric | F41: 2015 Rate | H41: Proposed Rate | J41: Change $ | L41: Change %
C42: Shared Tax Changes 2015 | E42: 12 | F42: =F23*E42 -> 126.36 | H42: 0 | J42: =H42-F42 -> -126.36 | L42: =IF(ISERROR(J42/F42),1,J42/F42) -> -1
C43: ='G1.1 Rate 1 Bill Impact'!$C$19 -> Shared Tax Changes 2018 | E43: 12 | F43: 0 | H43: =H24*E43 -> 67.4916 | J43: =H43-F43 -> 67.4916 | L43: =IF(ISERROR(J43/F43),1,J43/F43) -> 1
C44: Shared Tax Changes 2016 | E44: 12 | F44: 0 | H44: =H25*E44 -> 67.4916 | J44: =H44-F44 -> 67.4916 | L44: =IF(ISERROR(J44/F44),1,J44/F44) -> 1
C45: 2016 IRM Adjustment cent per m3 | E45: =E29+E30 -> 342059 | F45: 0 | H45: =E45*H26/100 -> 527.797037 | J45: 527.797037 | L45: 1
C46: Total Rate Riders | F46: =SUM(F42:F45) -> 126.36 | H46: =SUM(H42:H45) -> 662.780237 | J46: =SUM(J42:J45) -> 536.420237 | L46: =IF(ISERROR(J46/F46),0,J46/F46) -> 4.245174399
C48: Total Bill Impact | F48: =SUM(F37,F46) -> 27102.66851 | H48: =SUM(H37,H46) -> 28731.97549 | J48: =SUM(J37,J46) -> 1629.306976 | L48: =IF(ISERROR(J48/F48),0,J48/F48) -> 0.06011610906
C51: =MID(CELL("filename",A1),FIND("]",CELL("filename",A1))+1,255) -> I1.3 Rate 3 Cumul and Def

Sheet I1.4 Rate 4 Cumul and Def
C2: ='A1.1 Distributor Information'!C3 -> Name of LDC: EPCOR Natural Gas Limited Partnership
C3: ='A1.1 Distributor Information'!C4 -> OEB Application Number: EB-2018-0235 Exhibit C - 2018 IRM Application Amended October 24, 2018
C7: Rate 4 Delivery Bill Impact Cumulative Compared to 2015 Including Deferral Disposal
C11: Rate 4 - April to December | F11: 2015 Rate | H11: Proposed Rate
C13: Customer | F13: 15 | H13: ='E1.1 Proposed Dist Rates '!E22 -> 15
C14: Block 1 (First 1,000 m3 per month) | F14: 15.8149 | H14: ='E1.1 Proposed Dist Rates '!F22 -> 17.40847394
C15: Block 2 (Over 1,000 m3 per month) | F15: 10.5218 | H15: ='E1.1 Proposed Dist Rates '!G22 -> 10.5218
C16: System Gas Charge | F16: 0.0363 | H16: ='E1.1 Proposed Dist Rates '!L22 -> 0.0363
C18: Rate Riders
C19: Shared Tax Changes 2015 | F19: 0.69
C20: ='G1.1 Rate 1 Bill Impact'!$C$19 -> Shared Tax Changes 2018 | H20: =ROUND('F1.3 Proposed Rate Riders'!$E$19,4) -> 0.8522
C21: Shared Tax Changes 2016 | H21: =H20 -> 0.8522
C22: 2016 IRM Adjustment cent per m3 | H22: 0.274
C24: Average Seasonal Consumption
C25: Block 1 (First 1,000 m3 per month) | E25: =ROUND('B1.2 Billing Determinants'!F22/'B1.2 Billing Determinants'!E22,0) -> 6422
C26: Block 2 (Over 1,000 m3 per month) | E26: =ROUND('B1.2 Billing Determinants'!G22/'B1.2 Billing Determinants'!E22,0) -> 6586
E28: Metric | F28: 2015 Rate | H28: Proposed Rate | J28: Change $ | L28: Change %
C29: Customer | E29: 9 | F29: =F13*E29 -> 135 | H29: =H13*E29 -> 135 | J29: =H29-F29 -> 0 | L29: =IF(ISERROR(J29/F29),0,J29/F29) -> 0
C30: Block 1 (First 1,000 m3 per month) | E30: =E25 -> 6422 | F30: =F14*E30/100 -> 1015.632878 | H30: =H14*E30/100 -> 1117.972197 | J30: =H30-F30 -> 102.3393185 | L30: =IF(ISERROR(J30/F30),0,J30/F30) -> 0.1007640858
C31: Block 2 (Over 1,000 m3 per month) | E31: =E26 -> 6586 | F31: =F15*E31/100 -> 692.965748 | H31: =H15*E31/100 -> 692.965748 | J31: 0 | L31: =IF(ISERROR(J31/F31),0,J31/F31) -> 0
C32: System Gas Charge | E32: =SUM(E30:E31) -> 13008 | F32: =F16*E32/100 -> 4.721904 | H32: =H16*E32/100 -> 4.721904 | J32: 0 | L32: =IF(ISERROR(J32/F32),0,J32/F32) -> 0
C33: Total Delivery | F33: =SUM(F29:F32) -> 1848.32053 | H33: =SUM(H29:H32) -> 1950.659849 | J33: 102.3393185 | L33: =IF(ISERROR(J33/F33),0,J33/F33) -> 0.05536881555
C35: Rate Riders
C37: Rate Riders | E37: Metric | F37: 2015 Rate | H37: Proposed Rate | J37: Change $ | L37: Change %
C38: Shared Tax Changes 2015 | E38: 9 | F38: =F19*E38 -> 6.21 | H38: 0 | J38: =H38-F38 -> -6.21 | L38: =IF(ISERROR(J38/F38),1,J38/F38) -> -1
C39: ='G1.1 Rate 1 Bill Impact'!$C$19 -> Shared Tax Changes 2018 | E39: 9 | F39: 0 | H39: =H20*E39 -> 7.6698 | J39: =H39-F39 -> 7.6698 | L39: =IF(ISERROR(J39/F39),1,J39/F39) -> 1
C40: Shared Tax Changes 2016 | E40: 9 | F40: 0 | H40: =H21*E40 -> 7.6698 | J40: =H40-F40 -> 7.6698 | L40: =IF(ISERROR(J40/F40),1,J40/F40) -> 1
C41: 2016 IRM Adjustment cent per m3 | E41: =E25+E26 -> 13008 | F41: 0 | H41: =E41*H22/100 -> 35.64192 | J41: 35.64192 | L41: 1
C42: Total Rate Riders | F42: =SUM(F38:F41) -> 6.21 | H42: =SUM(H38:H41) -> 50.98152 | J42: =SUM(J38:J41) -> 44.77152 | L42: =IF(ISERROR(J42/F42),0,J42/F42) -> 7.209584541
C44: Total Bill Impact | F44: =SUM(F33,F42) -> 1854.53053 | H44: =SUM(H33,H42) -> 2001.641369 | J44: =SUM(J33,J42) -> 147.1108385 | L44: =IF(ISERROR(J44/F44),0,J44/F44) -> 0.07932511012
C47: =MID(CELL("filename",A1),FIND("]",CELL("filename",A1))+1,255) -> I1.4 Rate 4 Cumul and Def
C49: Rate 4 Delivery Bill Impact Cumulative Compared to 2015 Including Deferral Disposal
C51: Rate 4 - January to March | F51: 2015 Rate | H51: Proposed Rate
C53: Customer | F53: 15 | H53: ='E1.1 Proposed Dist Rates '!E23 -> 15
C54: Block 1 (First 1,000 m3 per month) | F54: 20.1755 | H54: ='E1.1 Proposed Dist Rates '!F23 -> 22.20846581
C55: Block 2 (Over 1,000 m3 per month) | F55: 16.9052 | H55: ='E1.1 Proposed Dist Rates '!G23 -> 16.9052
C56: System Gas Charge | F56: 0.0363 | H56: ='E1.1 Proposed Dist Rates '!L23 -> 0.0363
C58: Rate Riders
C59: Shared Tax Changes 2015 | F59: 0.69
C60: ='G1.1 Rate 1 Bill Impact'!$C$19 -> Shared Tax Changes 2018 | H60: =ROUND('F1.3 Proposed Rate Riders'!$E$20,4) -> 0.8522
C61: Shared Tax Changes 2016 | H61: =H21 -> 0.8522
C62: 2016 IRM Adjustment cent per m3 | H62: =H22 -> 0.274
C64: Average Seasonal Consumption
C65: Block 1 (First 1,000 m3 per month) | E65: =ROUND('B1.2 Billing Determinants'!F23/'B1.2 Billing Determinants'!E23,0) -> 3112
C66: Block 2 (Over 1,000 m3 per month) | E66: =ROUND('B1.2 Billing Determinants'!G23/'B1.2 Billing Determinants'!E23,0) -> 9240
E68: Metric | F68: 2015 Rate | H68: Proposed Rate | J68: Change $ | L68: Change %
C69: Customer | E69: 3 | F69: =F53*E69 -> 45 | H69: =H53*E69 -> 45 | J69: =H69-F69 -> 0 | L69: =IF(ISERROR(J69/F69),0,J69/F69) -> 0
C70: Block 1 (First 1,000 m3 per month) | E70: =E65 -> 3112 | F70: =F54*E70/100 -> 627.86156 | H70: =H54*E70/100 -> 691.1274561 | J70: =H70-F70 -> 63.26589613 | L70: 0.1007640858
C71: Block 2 (Over 1,000 m3 per month) | E71: =E66 -> 9240 | F71: =F55*E71/100 -> 1562.04048 | H71: =H55*E71/100 -> 1562.04048 | J71: 0 | L71: 0
C72: System Gas Charge | E72: =SUM(E70:E71) -> 12352 | F72: =F56*E72/100 -> 4.483776 | H72: =H56*E72/100 -> 4.483776 | J72: 0 | L72: 0
C73: Total Delivery | F73: =SUM(F69:F72) -> 2239.385816 | H73: =SUM(H69:H72) -> 2302.651712 | J73: 63.26589613 | L73: 0.02825144987
C75: Rate Riders
C77: Rate Riders | E77: Metric | F77: 2015 Rate | H77: Proposed Rate | J77: Change $ | L77: Change %
C78: Shared Tax Changes 2015 | E78: 3 | F78: =F59*E78 -> 2.07 | H78: 0 | J78: =H78-F78 -> -2.07 | L78: =IF(ISERROR(J78/F78),1,J78/F78) -> -1
C79: ='G1.1 Rate 1 Bill Impact'!$C$19 -> Shared Tax Changes 2018 | E79: 3 | F79: 0 | H79: =H60*E79 -> 2.5566 | J79: =H79-F79 -> 2.5566 | L79: =IF(ISERROR(J79/F79),1,J79/F79) -> 1
C80: Shared Tax Changes 2016 | E80: 3 | F80: 0 | H80: =H61*E80 -> 2.5566 | J80: =H80-F80 -> 2.5566 | L80: =IF(ISERROR(J80/F80),1,J80/F80) -> 1
C81: 2016 IRM Adjustment cent per m3 | E81: =E65+E66 -> 12352 | F81: 0 | H81: =E81*H62/100 -> 33.84448 | J81: 33.84448 | L81: 1
C82: Total Rate Riders | F82: =SUM(F78:F81) -> 2.07 | H82: =SUM(H78:H81) -> 38.95768 | J82: =SUM(J78:J81) -> 36.88768 | L82: =IF(ISERROR(J82/F82),0,J82/F82) -> 17.82013527
C84: Total Bill Impact | F84: =SUM(F73,F82) -> 2241.455816 | H84: =SUM(H73,H82) -> 2341.609392 | J84: =SUM(J73,J82) -> 100.1535761 | L84: =IF(ISERROR(J84/F84),0,J84/F84) -> 0.04468237804
C87: =MID(CELL("filename",A35),FIND("]",CELL("filename",A35))+1,255) -> I1.4 Rate 4 Cumul and Def
C89: Rate 4 Delivery Bill Impact Cumulative Compared to 2015 Including Deferral Disposal
C91: Rate 4 - Annual
C93: Average Annual Consumption
C94: Block 1 (First 1,000 m3 per month) | E94: =E25+E65 -> 9534
C95: Block 2 (Over 1,000 m3 per month) | E95: =E26+E66 -> 15826
E97: Metric | F97: 2015 Rate | H97: Proposed Rate | J97: Change $ | L97: Change %
C98: Customer | E98: =E29+E69 -> 12 | F98: =F29+F69 -> 180 | H98: =H29+H69 -> 180 | J98: =H98-F98 -> 0 | L98: =IF(ISERROR(J98/F98),0,J98/F98) -> 0
C99: Block 1 (First 1,000 m3 per month) | E99: =E94 -> 9534 | F99: =F30+F70 -> 1643.494438 | H99: =H30+H70 -> 1809.099653 | J99: =H99-F99 -> 165.6052146 | L99: 0.1007640858
C100: Block 2 (Over 1,000 m3 per month) | E100: =E95 -> 15826 | F100: =F31+F71 -> 2255.006228 | H100: =H31+H71 -> 2255.006228 | J100: 0 | L100: 0
C101: System Gas Charge | E101: =SUM(E99:E100) -> 25360 | F101: =F32+F72 -> 9.20568 | H101: =H32+H72 -> 9.20568 | J101: 0 | L101: 0
C102: Total Delivery | F102: =SUM(F98:F101) -> 4087.706346 | H102: =SUM(H98:H101) -> 4253.311561 | J102: 165.6052146 | L102: 0.04051299203
C104: Rate Riders
C106: Rate Riders | E106: Metric | F106: 2015 Rate | H106: Proposed Rate | J106: Change $ | L106: Change %
C107: Shared Tax Changes 2015 | E107: =E78+E38 -> 12 | F107: =F78+F38 -> 8.28 | H107: =H78+H38 -> 0 | J107: =H107-F107 -> -8.28 | L107: =IF(ISERROR(J107/F107),1,J107/F107) -> -1
C108: ='G1.1 Rate 1 Bill Impact'!$C$19 -> Shared Tax Changes 2018 | E108: =E79+E39 -> 12 | F108: =F79+F39 -> 0 | H108: =H79+H39 -> 10.2264 | J108: =H108-F108 -> 10.2264 | L108: =IF(ISERROR(J108/F108),1,J108/F108) -> 1
C109: Shared Tax Changes 2016 | E109: =E80+E40 -> 12 | F109: 0 | H109: =H80+H40 -> 10.2264 | J109: =H109-F109 -> 10.2264 | L109: =IF(ISERROR(J109/F109),1,J109/F109) -> 1
C110: 2016 IRM Adjustment cent per m3 | E110: =E94+E95 -> 25360 | F110: 0 | H110: 69.4864 | J110: 69.4864 | L110: 1
C111: Total Rate Riders | F111: =SUM(F107:F110) -> 8.28 | H111: =SUM(H107:H110) -> 89.9392 | J111: =SUM(J107:J110) -> 81.6592 | L111: =IF(ISERROR(J111/F111),0,J111/F111) -> 9.862222222
C113: Total Bill Impact | F113: =SUM(F102,F111) -> 4095.986346 | H113: =SUM(H102,H111) -> 4343.250761 | J113: =SUM(J102,J111) -> 247.2644146 | L113: =IF(ISERROR(J113/F113),0,J113/F113) -> 0.06036748996
C116: =MID(CELL("filename",A67),FIND("]",CELL("filename",A67))+1,255) -> I1.4 Rate 4 Cumul and Def

Sheet I1.5 Rate 5 Cumul and Def
C2: ='A1.1 Distributor Information'!C3 -> Name of LDC: EPCOR Natural Gas Limited Partnership
C3: ='A1.1 Distributor Information'!C4 -> OEB Application Number: EB-2018-0235 Exhibit C - 2018 IRM Application Amended October 24, 2018
C10: Rate 5 Delivery Bill Impact Cumulative Compared to 2015 Including Deferral Disposal
C15: Interruptible Peaking Contract Rate | F15: 2015 Rate | H15: Proposed Rate
C17: Customer | F17: 150 | H17: ='E1.1 Proposed Dist Rates '!E24 -> 150
C18: Delivery - Firm | F18: 7.1995 | H18: ='E1.1 Proposed Dist Rates '!J24 -> 7.545306657
C19: System Gas Charge | F19: 0.0363 | H19: ='E1.1 Proposed Dist Rates '!L24 -> 0.0363
C21: Rate Riders
C22: Shared Tax Changes 2015 | F22: 3.81
C23: ='G1.1 Rate 1 Bill Impact'!$C$19 -> Shared Tax Changes 2018 | H23: =ROUND('F1.3 Proposed Rate Riders'!$E$21,4) -> 2.4643
C24: Shared Tax Changes 2016 | H24: =H23 -> 2.4643
C25: 2016 IRM Adjustment cent per m3 | H25: 0.1451
C27: Average Annual Consumption
C28: Delivery - Firm | E28: =ROUND('B1.2 Billing Determinants'!J24/'B1.2 Billing Determinants'!E24,0) -> 138474
E30: Metric | F30: Current Rate | H30: Proposed Rate | J30: Change $ | L30: Change %
C31: Customer | E31: 12 | F31: =F17*E31 -> 1800 | H31: =H17*E31 -> 1800 | J31: =H31-F31 -> 0 | L31: =IF(ISERROR(J31/F31),0,J31/F31) -> 0
C32: Delivery - Firm | E32: =E28 -> 138474 | F32: =F18*E32/100 -> 9969.43563 | H32: =H18*E32/100 -> 10448.28794 | J32: =H32-F32 -> 478.8523107 | L32: =IF(ISERROR(J32/F32),0,J32/F32) -> 0.04803203797
C33: System Gas Charge | E33: =E28 -> 138474 | F33: =F19*E33/100 -> 50.266062 | H33: =H19*E33/100 -> 50.266062 | J33: 0 | L33: =IF(ISERROR(J33/F33),0,J33/F33) -> 0
C34: Total Delivery | F34: =SUM(F31:F33) -> 11819.70169 | H34: =SUM(H31:H33) -> 12298.554 | J34: 478.8523107 | L34: =IF(ISERROR(J34/F34),0,J34/F34) -> 0.04051306228
C36: Rate Riders
C38: Rate Riders | E38: Metric | F38: Current Rate | H38: Proposed Rate | J38: Change $ | L38: Change %
C39: Shared Tax Changes 2015 | E39: 12 | F39: =F22*E39 -> 45.72 | H39: 0 | J39: =H39-F39 -> -45.72 | L39: =IF(ISERROR(J39/F39),1,J39/F39) -> -1
C40: ='G1.1 Rate 1 Bill Impact'!$C$19 -> Shared Tax Changes 2018 | E40: 12 | F40: 0 | H40: =H23*E40 -> 29.5716 | J40: =H40-F40 -> 29.5716 | L40: =IF(ISERROR(J40/F40),1,J40/F40) -> 1
C41: Shared Tax Changes 2016 | E41: 12 | F41: 0 | H41: =H24*E41 -> 29.5716 | J41: =H41-F41 -> 29.5716 | L41: =IF(ISERROR(J41/F41),1,J41/F41) -> 1
C42: 2016 IRM Adjustment cent per m3 | E42: =E28 -> 138474 | F42: 0 | H42: =E42*H25/100 -> 200.925774 | J42: 200.925774 | L42: 1
C43: Total Rate Riders | F43: =SUM(F39:F42) -> 45.72 | H43: =SUM(H39:H42) -> 260.068974 | J43: =SUM(J39:J42) -> 214.348974 | L43: =IF(ISERROR(J43/F43),0,J43/F43) -> 4.688297769
C45: Total Bill Impact | F45: =SUM(F34,F43) -> 11865.42169 | H45: =SUM(H34,H43) -> 12558.62298 | J45: =SUM(J34,J43) -> 693.2012847 | L45: =IF(ISERROR(J45/F45),0,J45/F45) -> 0.05842196786
C48: =MID(CELL("filename",A1),FIND("]",CELL("filename",A1))+1,255) -> I1.5 Rate 5 Cumul and Def

Sheet I1.6 Rate 6 Cumul and Def
C2: ='A1.1 Distributor Information'!C3 -> Name of LDC: EPCOR Natural Gas Limited Partnership
C3: ='A1.1 Distributor Information'!C4 -> OEB Application Number: EB-2018-0235 Exhibit C - 2018 IRM Application Amended October 24, 2018
C10: Rate 6 Delivery Bill Impact Cumulative Compared to 2015 Including Deferral Disposal
C15: Special Large Volume Contract Rate | F15: 2015 Rate | H15: Proposed Rate
C17: Customer | F17: 150 | H17: ='E1.1 Proposed Dist Rates '!E25 -> 150
C18: Delivery - Firm | F18: 3.8894 | H18: ='E1.1 Proposed Dist Rates '!J25 -> 4.047161206
C19: Demand - Firm | F19: 18.8392 | H19: ='E1.1 Proposed Dist Rates '!K25 -> 19.60243326
C21: Rate Riders
C22: Shared Tax Changes 2015 | F22: 380.13
C23: ='G1.1 Rate 1 Bill Impact'!$C$19 -> Shared Tax Changes 2018 | H23: =ROUND('F1.3 Proposed Rate Riders'!$E$22,4) -> 375.0371
C24: Shared Tax Changes 2016 | H24: =H23 -> 375.0371
C25: 2016 IRM Adjustment cent per m3 | H25: 0.0796
C27: Average Annual Consumption
C28: Delivery - Firm | E28: ='B1.2 Billing Determinants'!J25 -> 38423518
C29: Demand - Firm | E29: ='B1.2 Billing Determinants'!K25 -> 1606140
E31: Metric | F31: 2015 Rate | H31: Proposed Rate | J31: Change $ | L31: Change %
C32: Customer | E32: 12 | F32: =F17*E32 -> 1800 | H32: =H17*E32 -> 1800 | J32: =H32-F32 -> 0 | L32: =IF(ISERROR(J32/F32),0,J32/F32) -> 0
C33: Delivery - Firm | E33: =E28 -> 38423518 | F33: =F18*E33/100 -> 1494444.309 | H33: =H18*E33/100 -> 1555061.715 | J33: =H33-F33 -> 60617.40554 | L33: =IF(ISERROR(J33/F33),0,J33/F33) -> 0.04056183638
C34: Demand - Firm | E34: =E29 -> 1606140 | F34: =F19*E34/100 -> 302583.9269 | H34: =H19*E34/100 -> 314842.5216 | J34: 12258.59473 | L34: =IF(ISERROR(J34/F34),0,J34/F34) -> 0.04051304
C35: Total Delivery | F35: =SUM(F32:F34) -> 1798828.236 | H35: =SUM(H32:H34) -> 1871704.236 | J35: 72876.00028 | L35: =IF(ISERROR(J35/F35),0,J35/F35) -> 0.04051304
C37: Rate Riders
C39: Rate Riders | E39: Metric | F39: 2015 Rate | H39: Proposed Rate | J39: Change $ | L39: Change %
C40: ='G1.1 Rate 1 Bill Impact'!$C$18 -> Shared Tax Changes 2017 | E40: 12 | F40: =F22*E40 -> 4561.56 | H40: 0 | J40: =H40-F40 -> -4561.56 | L40: =IF(ISERROR(J40/F40),1,J40/F40) -> -1
C41: ='G1.1 Rate 1 Bill Impact'!$C$19 -> Shared Tax Changes 2018 | E41: 12 | F41: 0 | H41: =H23*E41 -> 4500.4452 | J41: =H41-F41 -> 4500.4452 | L41: =IF(ISERROR(J41/F41),1,J41/F41) -> 1
C42: Shared Tax Changes 2016 | E42: 12 | F42: 0 | H42: =H24*E42 -> 4500.4452 | J42: =H42-F42 -> 4500.4452 | L42: =IF(ISERROR(J42/F42),1,J42/F42) -> 1
C43: 2016 IRM Adjustment cent per m3 | E43: =E28 -> 38423518 | F43: 0 | H43: =E43*H25/100 -> 30585.12033 | J43: 30585.12033 | L43: 1
C44: Total Rate Riders | F44: =SUM(F40:F43) -> 4561.56 | H44: =SUM(H40:H43) -> 39586.01073 | J44: =SUM(J40:J43) -> 35024.45073 | L44: =IF(ISERROR(J44/F44),0,J44/F44) -> 7.678173855
C46: Total Bill Impact | F46: =SUM(F35,F44) -> 1803389.796 | H46: =SUM(H35,H44) -> 1911290.247 | J46: =SUM(J35,J44) -> 107900.451 | L46: =IF(ISERROR(J46/F46),0,J46/F46) -> 0.05983201815
C49: =MID(CELL("filename",A1),FIND("]",CELL("filename",A1))+1,255) -> I1.6 Rate 6 Cumul and Def

Sheet I1.7 Cumul and Def Bill Impact
C2: ='A1.1 Distributor Information'!C3 -> Name of LDC: EPCOR Natural Gas Limited Partnership
C3: ='A1.1 Distributor Information'!C4 -> OEB Application Number: EB-2018-0235 Exhibit C - 2018 IRM Application Amended October 24, 2018
C5: Bill Impacts Summary - Breakdown of Cumulative Increases Including Deferral Accounts Compared to 2015 Rates
C7: Rate Class | D7: Fixed Change | E7: Volumetric Change In 2016 IRM | F7: Volumetric Change in 2017 IRM | G7: Volumetric Change in 2018 IRM | H7: 2018 Shared Tax Rate Rider | I7: 2016-2017 Shared Tax Deferral Disposal | J7: 2016-2017 IRM Adjustment Deferral Disposal | K7: Total Change $ | L7: Total Change %
M8: Check
C9: Rate 1 - Residential | D9: ='G1.1 Rate 1 Bill Impact'!J26 -> 0 | E9: ='H1.8 2016 IRM Bill Impact'!E9 -> 7.433890548 | F9: ='H1.9 2017 IRM Bill Impact'!E9 -> 6.670823548 | G9: =SUM('G1.1 Rate 1 Bill Impact'!J27:J29) -> 3.611139147 | H9: ='H1.8 2016 IRM Bill Impact'!F9 -> -0.2592 | I9: ='I1.1 Rate 1 Cumul and Def'!J39 -> 1.3008 | J9: ='I1.1 Rate 1 Cumul and Def'!J40 -> 6.727116 | K9: ='I1.1 Rate 1 Cumul and Def'!J43 -> 25.48456924 | L9: ='I1.1 Rate 1 Cumul and Def'!L43 -> 0.05642594054 | M9: =SUM(D9:J9)-K9 -> 0
C10: Rate 1 - Commercial | D10: ='G1.1 Rate 1 Bill Impact'!J62 -> 0 | E10: ='H1.8 2016 IRM Bill Impact'!E10 -> 26.94708001 | F10: ='H1.9 2017 IRM Bill Impact'!E10 -> 24.18104151 | G10: =SUM('G1.1 Rate 1 Bill Impact'!J63:J65) -> 13.0900038 | H10: ='H1.8 2016 IRM Bill Impact'!F10 -> -0.2592 | I10: ='I1.1 Rate 1 Cumul and Def'!J79 -> 1.3008 | J10: ='I1.1 Rate 1 Cumul and Def'!J80 -> 34.922085 | K10: ='I1.1 Rate 1 Cumul and Def'!J83 -> 100.1818103 | L10: ='I1.1 Rate 1 Cumul and Def'!L83 -> 0.0715077931 | M10: =SUM(D10:J10)-K10 -> -1.136868377e-13
C11: Rate 1 - Industrial | D11: ='G1.1 Rate 1 Bill Impact'!J101 -> 0 | E11: ='H1.8 2016 IRM Bill Impact'!E11 -> 55.72950311 | F11: ='H1.9 2017 IRM Bill Impact'!E11 -> 50.00903353 | G11: =SUM('G1.1 Rate 1 Bill Impact'!J102:J104) -> 27.07155682 | H11: ='H1.8 2016 IRM Bill Impact'!F11 -> -0.2592 | I11: ='I1.1 Rate 1 Cumul and Def'!J122 -> 1.3008 | J11: ='I1.1 Rate 1 Cumul and Def'!J123 -> 87.284703 | K11: ='I1.1 Rate 1 Cumul and Def'!J126 -> 221.1363965 | L11: ='I1.1 Rate 1 Cumul and Def'!L126 -> 0.0737422943 | M11: =SUM(D11:J11)-K11 -> 3.694822226e-13
C13: ='G1.2 Rate 2 Bill Impact'!C9 -> Rate 2 - April to October | D13: ='G1.2 Rate 2 Bill Impact'!J27 -> 0 | E13: ='H1.8 2016 IRM Bill Impact'!E13 -> 55.28122495 | F13: ='H1.9 2017 IRM Bill Impact'!E13 -> 49.6067698 | G13: ='G1.2 Rate 2 Bill Impact'!J32-'I1.7 Cumul and Def Bill Impact '!D13 -> 26.85379805 | H13: ='H1.8 2016 IRM Bill Impact'!F13 -> 3.1556 | I13: ='I1.2 Rate 2 Cumul and Def'!J41 -> 4.8356 | J13: ='I1.2 Rate 2 Cumul and Def'!J42 -> 54.386023 | K13: ='I1.2 Rate 2 Cumul and Def'!J45 -> 194.1190158 | L13: ='I1.2 Rate 2 Cumul and Def'!L45 -> 0.06288804908 | M13: =SUM(D13:J13)-K13 -> 0
C14: ='G1.2 Rate 2 Bill Impact'!C49 -> Rate 2 - November to March | D14: ='G1.2 Rate 2 Bill Impact'!J67 -> 0 | E14: ='H1.8 2016 IRM Bill Impact'!E14 -> 1.050228358 | F14: ='H1.9 2017 IRM Bill Impact'!E14 -> 0.9424255056 | G14: ='G1.2 Rate 2 Bill Impact'!J72-'I1.7 Cumul and Def Bill Impact '!D14 -> 0.5101663404 | H14: ='H1.8 2016 IRM Bill Impact'!F14 -> 2.254 | I14: ='I1.2 Rate 2 Cumul and Def'!J85 -> 3.454 | J14: ='I1.2 Rate 2 Cumul and Def'!J86 -> 1.942138 | K14: ='I1.2 Rate 2 Cumul and Def'!J89 -> 10.1529582 | L14: ='I1.2 Rate 2 Cumul and Def'!L89 -> 0.04420939266 | M14: =SUM(D14:J14)-K14 -> 0
C15: ='G1.2 Rate 2 Bill Impact'!C87 -> Rate 2 - Annual | D15: ='G1.2 Rate 2 Bill Impact'!J95 -> 0 | E15: ='H1.8 2016 IRM Bill Impact'!E15 -> 56.33145331 | F15: ='H1.9 2017 IRM Bill Impact'!E15 -> 50.54919531 | G15: ='G1.2 Rate 2 Bill Impact'!J100-'I1.7 Cumul and Def Bill Impact '!D15 -> 27.36396439 | H15: ='H1.8 2016 IRM Bill Impact'!F15 -> 5.4096 | I15: ='I1.2 Rate 2 Cumul and Def'!J115 -> 8.2896 | J15: ='I1.2 Rate 2 Cumul and Def'!J116 -> 56.328161 | K15: ='I1.2 Rate 2 Cumul and Def'!J119 -> 204.271974 | L15: ='I1.2 Rate 2 Cumul and Def'!L119 -> 0.06159457608 | M15: =SUM(D15:J15)-K15 -> 0
C17: ="Rate 3 - "& 'G1.3 Rate 3 Bill Impact'!C15 -> Rate 3 - Special Large Volume Contract Rate | D17: ='G1.3 Rate 3 Bill Impact'!J31 -> 0 | E17: ='H1.8 2016 IRM Bill Impact'!E17 -> 458.5949255 | F17: ='H1.9 2017 IRM Bill Impact'!E17 -> 411.5215052 | G17: ='G1.3 Rate 3 Bill Impact'!J35-'I1.7 Cumul and Def Bill Impact '!D17 -> 222.7703082 | H17: ='H1.8 2016 IRM Bill Impact'!F17 -> -58.8684 | I17: ='I1.3 Rate 3 Cumul and Def'!J44 -> 67.4916 | J17: ='I1.3 Rate 3 Cumul and Def'!J45 -> 527.797037 | K17: ='I1.3 Rate 3 Cumul and Def'!J48 -> 1629.306976 | L17: ='I1.3 Rate 3 Cumul and Def'!L48 -> 0.06011610906 | M17: =SUM(D17:J17)-K17 -> 0
C19: ='G1.4 Rate 4 Bill Impact'!C11 -> Rate 4 - April to December | D19: ='G1.4 Rate 4 Bill Impact'!J27 -> 0 | E19: ='H1.8 2016 IRM Bill Impact'!E19 -> 42.94341808 | F19: ='H1.9 2017 IRM Bill Impact'!E19 -> 38.53540252 | G19: ='G1.4 Rate 4 Bill Impact'!J31-'I1.7 Cumul and Def Bill Impact '!D19 -> 20.8604979 | H19: ='H1.8 2016 IRM Bill Impact'!F19 -> 1.4598 | I19: ='I1.4 Rate 4 Cumul and Def'!J40 -> 7.6698 | J19: ='I1.4 Rate 4 Cumul and Def'!J41 -> 35.64192 | K19: ='I1.4 Rate 4 Cumul and Def'!J44 -> 147.1108385 | L19: ='I1.4 Rate 4 Cumul and Def'!L44 -> 0.07932511012 | M19: =SUM(D19:J19)-K19 -> 0
C20: ='G1.4 Rate 4 Bill Impact'!C47 -> Rate 4 - January to March | D20: ='G1.4 Rate 4 Bill Impact'!J63 -> 0 | E20: ='H1.8 2016 IRM Bill Impact'!E20 -> 26.54750752 | F20: ='H1.9 2017 IRM Bill Impact'!E20 -> 23.82248396 | G20: ='G1.4 Rate 4 Bill Impact'!J67-'I1.7 Cumul and Def Bill Impact '!D20 -> 12.89590465 | H20: ='H1.8 2016 IRM Bill Impact'!F20 -> 0.4866 | I20: ='I1.4 Rate 4 Cumul and Def'!J80 -> 2.5566 | J20: ='I1.4 Rate 4 Cumul and Def'!J81 -> 33.84448 | K20: ='I1.4 Rate 4 Cumul and Def'!J84 -> 100.1535761 | L20: ='I1.4 Rate 4 Cumul and Def'!L84 -> 0.04468237804 | M20: =SUM(D20:J20)-K20 -> 0
C21: ='G1.4 Rate 4 Bill Impact'!C83 -> Rate 4 - Annual | D21: ='G1.4 Rate 4 Bill Impact'!J90 -> 0 | E21: ='H1.8 2016 IRM Bill Impact'!E21 -> 69.49092561 | F21: ='H1.9 2017 IRM Bill Impact'!E21 -> 62.35788648 | G21: ='G1.4 Rate 4 Bill Impact'!J94-'I1.7 Cumul and Def Bill Impact '!D21 -> 33.75640255 | H21: ='H1.8 2016 IRM Bill Impact'!F21 -> 1.9464 | I21: ='I1.4 Rate 4 Cumul and Def'!J109 -> 10.2264 | J21: ='I1.4 Rate 4 Cumul and Def'!J110 -> 69.4864 | K21: ='I1.4 Rate 4 Cumul and Def'!J113 -> 247.2644146 | L21: ='I1.4 Rate 4 Cumul and Def'!L113 -> 0.06036748996 | M21: =SUM(D21:J21)-K21 -> 0
C23: ="Rate 5 - " &'G1.5 Rate 5 Bill Impact'!C15 -> Rate 5 - Interruptible Peaking Contract Rate | D23: ='G1.5 Rate 5 Bill Impact'!J29 -> 0 | E23: ='H1.8 2016 IRM Bill Impact'!E23 -> 200.9350393 | F23: ='H1.9 2017 IRM Bill Impact'!E23 -> 180.3096485 | G23: ='G1.5 Rate 5 Bill Impact'!J32-'I1.7 Cumul and Def Bill Impact '!D23 -> 97.60762303 | H23: ='H1.8 2016 IRM Bill Impact'!F23 -> -16.1484 | I23: ='I1.5 Rate 5 Cumul and Def'!J41 -> 29.5716 | J23: ='I1.5 Rate 5 Cumul and Def'!J42 -> 200.925774 | K23: ='I1.5 Rate 5 Cumul and Def'!J45 -> 693.2012847 | L23: ='I1.5 Rate 5 Cumul and Def'!L45 -> 0.05842196786 | M23: =SUM(D23:J23)-K23 -> 0
C25: ="Rate 6 - " &'G1.6 Rate 6 Bill Impact'!C15 -> Rate 6 - Special Large Volume Contract Rate | D25: ='G1.6 Rate 6 Bill Impact'!J30 -> 0 | E25: ='H1.8 2016 IRM Bill Impact'!E25 -> 30580.08001 | F25: ='H1.9 2017 IRM Bill Impact'!E25 -> 27441.12474 | G25: ='G1.6 Rate 6 Bill Impact'!J33-'I1.7 Cumul and Def Bill Impact '!D25 -> 14854.79553 | H25: ='H1.8 2016 IRM Bill Impact'!F25 -> -61.1148 | I25: ='I1.6 Rate 6 Cumul and Def'!J42 -> 4500.4452 | J25: ='I1.6 Rate 6 Cumul and Def'!J43 -> 30585.12033 | K25: ='I1.6 Rate 6 Cumul and Def'!J46 -> 107900.451 | L25: ='I1.6 Rate 6 Cumul and Def'!L46 -> 0.05983201815 | M25: =SUM(D25:J25)-K25 -> 0
C30: =MID(CELL("filename",A1),FIND("]",CELL("filename",A1))+1,255) -> I1.7 Cumul and Def Bill Impact

Sheet J1.1 Proposed Rates Net of Ride (hidden)
C2: ='A1.1 Distributor Information'!C3 -> Name of LDC: EPCOR Natural Gas Limited Partnership
C3: ='A1.1 Distributor Information'!C4 -> OEB Application Number: EB-2018-0235 Exhibit C - 2018 IRM Application Amended October 24, 2018
C6: This was put together for repsonse to IR VECC 4
C10: Proposed Distribution Tariff Sheet Rates
C12: Rate Group | E12: Monthly Service Charge | F12: Delivery First 1,000 m3 | G12: Delivery Over 1,000 m3 | H12: Delivery Next 24,000 m3 | I12: Delivery Over 25,000 m3 | J12: Delivery - Firm | K12: Demand - Firm | L12: Commodity | M12: Delivery - Int - Lower | N12: Delivery - Int - Upper
C13: RATE 1 - General Service Rate - Residential | E13: ='D1.1 Rate 1 Adjustment'!K17 -> 13.5 | F13: ='D1.1 Rate 1 Adjustment'!K18 -> 17.2452599 | G13: ='D1.1 Rate 1 Adjustment'!K19 -> 11.35189322 | L13: ='D1.1 Rate 1 Adjustment'!K20 -> 0.0363
C14: RATE 1 - General Service Rate - Commercial | E14: ='D1.1 Rate 1 Adjustment'!K17 -> 13.5 | F14: ='D1.1 Rate 1 Adjustment'!K18 -> 17.2452599 | G14: ='D1.1 Rate 1 Adjustment'!K19 -> 11.35189322 | L14: ='D1.1 Rate 1 Adjustment'!K20 -> 0.0363
C15: RATE 1 - General Service Rate - Industrial | E15: ='D1.1 Rate 1 Adjustment'!K17 -> 13.5 | F15: ='D1.1 Rate 1 Adjustment'!K18 -> 17.2452599 | G15: ='D1.1 Rate 1 Adjustment'!K19 -> 11.35189322 | L15: ='D1.1 Rate 1 Adjustment'!K20 -> 0.0363
C16: RATE 2 - Seasonal Service - Apr to Oct | E16: ='D1.2 Rate 2 Adjustment'!K17 -> 15 | F16: ='D1.2 Rate 2 Adjustment'!K18 -> 17.6428509 | H16: ='D1.2 Rate 2 Adjustment'!K19 -> 9.4826 | I16: ='D1.2 Rate 2 Adjustment'!K20 -> 6.1698 | L16: ='D1.2 Rate 2 Adjustment'!K24 -> 0.0363
C17: RATE 2 - Seasonal Service - Nov to Mar | E17: ='D1.2 Rate 2 Adjustment'!K17 -> 15 | F17: ='D1.2 Rate 2 Adjustment'!K21 -> 22.23856532 | H17: ='D1.2 Rate 2 Adjustment'!K22 -> 15.696 | I17: ='D1.2 Rate 2 Adjustment'!K23 -> 15.2899 | L17: ='D1.2 Rate 2 Adjustment'!K24 -> 0.0363
C18: RATE 3 - Special Large Volume Contract Rate | E18: ='D1.3 Rate 3 Adjustment'!K17 -> 150 | J18: ='D1.3 Rate 3 Adjustment'!K18 -> 4.403534144 | K18: ='D1.3 Rate 3 Adjustment'!K19 -> 29.0974 | L18: ='D1.3 Rate 3 Adjustment'!K20 -> 0.0363 | M18: ='B1.1 Current Distribution Rates'!M21 -> 7.9412 | N18: ='B1.1 Current Distribution Rates'!N21 -> 10.9612
C19: RATE 4 - General Service Peaking - Apr to Dec | E19: ='D1.4 Rate 4 Adjustment'!K17 -> 15 | F19: ='D1.4 Rate 4 Adjustment'!K18 -> 17.40847394 | G19: ='D1.4 Rate 4 Adjustment'!K19 -> 10.5218 | L19: ='D1.4 Rate 4 Adjustment'!K22 -> 0.0363
C20: RATE 4 - General Service Peaking - Jan to Mar | E20: ='D1.4 Rate 4 Adjustment'!K17 -> 15 | F20: ='D1.4 Rate 4 Adjustment'!K20 -> 22.20846581 | G20: ='D1.4 Rate 4 Adjustment'!K21 -> 16.9052 | L20: ='D1.4 Rate 4 Adjustment'!K22 -> 0.0363
C21: RATE 5 - Interruptible Peaking Contract Rate | E21: ='D1.5 Rate 5 Adjustment'!K17 -> 150 | J21: ='D1.5 Rate 5 Adjustment'!K18 -> 7.545306657 | K21: 1 | L21: ='D1.5 Rate 5 Adjustment'!K19 -> 0.0363 | M21: ='B1.1 Current Distribution Rates'!M24 -> 5.4612 | N21: ='B1.1 Current Distribution Rates'!N24 -> 8.4612
C22: RATE 6 - Integrated Grain Processors Co-Operative Aylmer Ethanol Production Facility | E22: =155975.33 -> 155975.33 | M22: ='B1.1 Current Distribution Rates'!M25 -> 7.9412 | N22: ='B1.1 Current Distribution Rates'!N25 -> 10.9612
C24: 1 Placeholder rate for average application
C26: Rate Riders
E27: 2018 shared tax | F27: 2016-2017 shared tax | G27: REDA | H27: PGTVA and 2016 unrecovered IRM | I27: PGTVA and 2016 unrecovered IRM | J27: PGTVA and 2016 unrecovered IRM | K27: PGTVA and 2016 unrecovered IRM | L27: PGTVA and 2016 unrecovered IRM | M27: PGTVA and 2016 unrecovered IRM
C28: Rate Group | E28: Monthly | F28: Monthly | G28: Monthly | H28: Delivery First 1,000 m3 | I28: Delivery Over 1,000 m3 | J28: Delivery Next 24,000 m3 | K28: Delivery Over 25,000 m3 | L28: Delivery - Firm | M28: Demand - Firm | N28: Commodity | O28: Delivery - Int - Lower | P28: Delivery - Int - Upper
C29: RATE 1 - General Service Rate - Residential | E29: ='F1.3 Proposed Rate Riders'!E13 -> 0.1084 | F29: =E29 -> 0.1084 | G29: 1.5 | H29: =-1.7172+0.3729 -> -1.3443 | I29: -1.3443 | N29: ='D1.1 Rate 1 Adjustment'!K34 -> 0
C30: RATE 1 - General Service Rate - Commercial | E30: ='F1.3 Proposed Rate Riders'!E14 -> 0.1084 | F30: =E30 -> 0.1084 | G30: 1.5 | H30: -1.3443 | I30: -1.3443 | N30: ='D1.1 Rate 1 Adjustment'!K34 -> 0
C31: RATE 1 - General Service Rate - Industrial | E31: ='F1.3 Proposed Rate Riders'!E15 -> 0.1084 | F31: 0.1084 | G31: 1.5 | H31: -1.3443 | I31: -1.3443 | N31: ='D1.1 Rate 1 Adjustment'!K34 -> 0
C32: RATE 2 - Seasonal Service - Apr to Oct | E32: ='F1.3 Proposed Rate Riders'!E16 -> 0.6908 | F32: 0.6908 | G32: 1.5 | H32: =-1.7172+0.2053 -> -1.5119 | J32: =-1.7172+0.2053 -> -1.5119 | K32: =-1.7172+0.2053 -> -1.5119 | N32: ='D1.2 Rate 2 Adjustment'!K38 -> 0
C33: RATE 2 - Seasonal Service - Nov to Mar | E33: ='F1.3 Proposed Rate Riders'!E17 -> 0.6908 | F33: 0.6908 | G33: 1.5 | H33: =-1.7172+0.2053 -> -1.5119 | J33: =-1.7172+0.2053 -> -1.5119 | K33: =-1.7172+0.2053 -> -1.5119 | N33: ='D1.2 Rate 2 Adjustment'!K38 -> 0
C34: RATE 3 - Special Large Volume Contract Rate | E34: ='F1.3 Proposed Rate Riders'!E18 -> 5.6243 | F34: 5.6243 | G34: 1.5 | L34: =-1.7172+0.1543 -> -1.5629 | M34: ='D1.3 Rate 3 Adjustment'!K33 -> 0 | N34: ='D1.3 Rate 3 Adjustment'!K34 -> 0 | O34: ='B1.1 Current Distribution Rates'!M35 -> 0 | P34: ='B1.1 Current Distribution Rates'!N35 -> 0
C35: RATE 4 - General Service Peaking - Apr to Dec | E35: ='F1.3 Proposed Rate Riders'!E19 -> 0.8522 | F35: 0.8522 | G35: 1.5 | H35: =-1.7172+0.274 -> -1.4432 | I35: =-1.7172+0.274 -> -1.4432 | N35: ='D1.4 Rate 4 Adjustment'!K36 -> 0
C36: RATE 4 - General Service Peaking - Jan to Mar | E36: ='F1.3 Proposed Rate Riders'!E20 -> 0.8522 | F36: 0.8522 | G36: 1.5 | H36: =-1.7172+0.274 -> -1.4432 | I36: =-1.7172+0.274 -> -1.4432 | N36: ='D1.4 Rate 4 Adjustment'!K36 -> 0
C37: RATE 5 - Interruptible Peaking Contract Rate | E37: ='F1.3 Proposed Rate Riders'!E21 -> 2.4643 | F37: 2.4643 | G37: 1.5 | L37: =-1.7172+0.1451 -> -1.5721 | N37: ='D1.5 Rate 5 Adjustment'!K33 -> 0 | O37: ='B1.1 Current Distribution Rates'!M38 -> 0 | P37: ='B1.1 Current Distribution Rates'!N38 -> 0
C38: RATE 6 - Integrated Grain Processors Co-Operative Aylmer Ethanol Production Facility | E38: ='F1.3 Proposed Rate Riders'!E22 -> 375.0371 | F38: 375.0371 | G38: 0.04 | L38: =2548.33-45359 -> -42810.67 | M38: ='D1.6 Rate 6 Adjustment'!K33 -> 0 | O38: ='B1.1 Current Distribution Rates'!M39 -> 0 | P38: ='B1.1 Current Distribution Rates'!N39 -> 0
C40: 1 Placeholder rate for average application
C42: Proposed Distribution Rates net of Proposed Rate riders
C43: Rate Group | E43: Monthly Charge | F43: Delivery First 1,000 m3 | G43: Delivery Over 1,000 m3 | H43: Delivery Next 24,000 m3 | I43: Delivery Over 25,000 m3 | J43: Delivery - Firm | K43: Demand - Firm | L43: Commodity | M43: Delivery - Int - Lower | N43: Delivery - Int - Upper
C44: RATE 1 - General Service Rate - Residential | E44: =E13+E29+F29+G29 -> 15.2168 | F44: =F13+H29 -> 15.9009599 | G44: =G13+I29 -> 10.00759322 | H44: 0 | I44: 0 | J44: 0 | K44: 0 | L44: 0.0363 | M44: 0 | N44: 0
C45: RATE 1 - General Service Rate - Commercial | E45: =E14+E30+F30+G30 -> 15.2168 | F45: =F14+H30 -> 15.9009599 | G45: =G14+I30 -> 10.00759322 | H45: =H14+J30 -> 0 | I45: =I14+K30 -> 0 | J45: =J14+L30 -> 0 | K45: =K14+M30 -> 0 | L45: =L14+N30 -> 0.0363 | M45: =M14+O30 -> 0 | N45: =N14+P30 -> 0
C46: RATE 1 - General Service Rate - Industrial | E46: =E15+E31+F31+G31 -> 15.2168 | F46: 15.9009599 | G46: 10.00759322 | H46: 0 | I46: 0 | J46: 0 | K46: 0 | L46: 0.0363 | M46: 0 | N46: 0
C47: RATE 2 - Seasonal Service - Apr to Oct | E47: 17.8816 | F47: 16.1309509 | G47: 0 | H47: 7.9707 | I47: 4.6579 | J47: 0 | K47: 0 | L47: 0.0363 | M47: 0 | N47: 0
C48: RATE 2 - Seasonal Service - Nov to Mar | E48: 17.8816 | F48: 20.72666532 | G48: 0 | H48: 14.1841 | I48: 13.778 | J48: 0 | K48: 0 | L48: 0.0363 | M48: 0 | N48: 0
C49: RATE 3 - Special Large Volume Contract Rate | E49: 162.7486 | F49: 0 | G49: 0 | H49: 0 | I49: 0 | J49: 2.840634144 | K49: 29.0974 | L49: 0.0363 | M49: 7.9412 | N49: 10.9612
C50: RATE 4 - General Service Peaking - Apr to Dec | E50: 18.2044 | F50: 15.96527394 | G50: 9.0786 | H50: 0 | I50: 0 | J50: 0 | K50: 0 | L50: 0.0363 | M50: 0 | N50: 0
C51: RATE 4 - General Service Peaking - Jan to Mar | E51: 18.2044 | F51: 20.76526581 | G51: 15.462 | H51: 0 | I51: 0 | J51: 0 | K51: 0 | L51: 0.0363 | M51: 0 | N51: 0
C52: RATE 5 - Interruptible Peaking Contract Rate | E52: 156.4286 | F52: 0 | G52: 0 | H52: 0 | I52: 0 | J52: 5.973206657 | K52: 1 | L52: 0.0363 | M52: 5.4612 | N52: 8.4612
C53: RATE 6 - Integrated Grain Processors Co-Operative Aylmer Ethanol Production Facility | E53: =E22+E38+F38+G38+L38 -> 113914.7742 | F53: 0 | G53: 0 | H53: 0 | I53: 0 | K53: =K22+M38 -> 0 | L53: 0 | M53: 7.9412 | N53: 10.9612
C55: 1 Placeholder rate for average application
C60: =MID(CELL("filename",A1),FIND("]",CELL("filename",A1))+1,255) -> J1.1 Proposed Rates Net of Ride
